Service Area,Service Division,Expense Type,Expense Code,Detailed Expense Type,Payment Date,Transaction Number,Amount Exc VAT,Supplier Name
Neighbourhoods and Climate Change,Technical Services CM0300,Fees,901004,Capital - Detailed Design,03/05/2022,3997165-39764811,510.58,NEWSQUEST (YORKSHIRE & NORTH EAST) LTD.
Neighbourhoods and Climate Change,Technical Services CM0300,Fees,901004,Capital - Detailed Design,03/05/2022,3997165-39764891,510.58,NEWSQUEST (YORKSHIRE & NORTH EAST) LTD.
Non-Service Specific,Non Service Specific-Financing,Long Term Debtors,924001,Car loans,03/05/2022,3996918-119369,"1,086.00",ARRIVA DURHAM COUNTY LTD.
Regeneration Economy and Growth,Culture Sport and Tourism,Premises,145023,Cleaning and Domestic Supplies,03/05/2022,3996966-CN30169276,"1,074.84",CITRON HYGIENE UK LTD.
Resources BK0010,Transactional & Customer Services,Supplies and Services,352001,Conference Expenses,03/05/2022,3996898-55178,"2,415.00",ABILITY SMART LTD.
Neighbourhoods and Climate Change,Environmental Services,Premises,120037,Energy Costs,03/05/2022,3997048-0040396652,"307,616.00",HARTLEPOOL BOROUGH COUNCIL.
Regeneration Economy and Growth,Development and Housing,Supplies and Services,304259,Equipment and Materials,03/05/2022,3996904-174472,768.00,ALBANY OFFICE EQUIPMENT (WHOLESALE) LTD.
Neighbourhoods and Climate Change,Technical Services CM0300,Supplies and Services,304358,Equipment and Materials,03/05/2022,3996922-MG08011,"1,192.50",BAILEY CONCRETE PUMPING LTD.
Neighbourhoods and Climate Change,Technical Services CM0300,Supplies and Services,304221,Equipment and Materials,03/05/2022,3996929-207R01721A,"1,619.63",BIFFA WASTE SERVICES LTD.
Neighbourhoods and Climate Change,Technical Services CM0300,Supplies and Services,304221,Equipment and Materials,03/05/2022,3996929-207R01737A,"1,258.24",BIFFA WASTE SERVICES LTD.
Neighbourhoods and Climate Change,Technical Services CM0300,Supplies and Services,304221,Equipment and Materials,03/05/2022,3996929-207R01751A,859.60,BIFFA WASTE SERVICES LTD.
Neighbourhoods and Climate Change,Technical Services CM0300,Supplies and Services,304221,Equipment and Materials,03/05/2022,3997020-2204\033,515.02,EPPLETON QUARRY PRODUCTS LTD.
Neighbourhoods and Climate Change,Technical Services CM0300,Supplies and Services,304221,Equipment and Materials,03/05/2022,3997020-2204\034,516.31,EPPLETON QUARRY PRODUCTS LTD.
Neighbourhoods and Climate Change,Technical Services CM0300,Supplies and Services,304357,Equipment and Materials,03/05/2022,3997033-DCC030422,"22,348.09",GAP GROUP LTD.
Neighbourhoods and Climate Change,Technical Services CM0300,Supplies and Services,304358,Equipment and Materials,03/05/2022,3997085-31894,"1,587.20",JOHN R BUTTERFIELD LTD.
Neighbourhoods and Climate Change,Technical Services CM0300,Supplies and Services,304358,Equipment and Materials,03/05/2022,3997085-31896,"1,711.00",JOHN R BUTTERFIELD LTD.
Neighbourhoods and Climate Change,Technical Services CM0300,Supplies and Services,304358,Equipment and Materials,03/05/2022,3997085-31898,"1,938.50",JOHN R BUTTERFIELD LTD.
Neighbourhoods and Climate Change,Technical Services CM0300,Supplies and Services,304358,Equipment and Materials,03/05/2022,3997085-31904,"1,180.50",JOHN R BUTTERFIELD LTD.
Neighbourhoods and Climate Change,Technical Services CM0300,Supplies and Services,304358,Equipment and Materials,03/05/2022,3997085-31905,848.00,JOHN R BUTTERFIELD LTD.
Neighbourhoods and Climate Change,Technical Services CM0300,Supplies and Services,304358,Equipment and Materials,03/05/2022,3997085-31906,"1,080.00",JOHN R BUTTERFIELD LTD.
Neighbourhoods and Climate Change,Technical Services CM0300,Supplies and Services,304358,Equipment and Materials,03/05/2022,3997086-0000083504,800.00,JOHN WADE (HAULAGE) LTD.
Regeneration Economy and Growth,Corporate Property and Land,Supplies and Services,304221,Equipment and Materials,03/05/2022,3997088-0120/00628484,"1,201.49",JT DOVE LTD.
Neighbourhoods and Climate Change,Environmental Services,Supplies and Services,304259,Equipment and Materials,03/05/2022,3997115-6128024587,"1,202.00",LIBERTY PRINTERS (AR & RF REDDIN) LTD.
Neighbourhoods and Climate Change,Environmental Services,Supplies and Services,304221,Equipment and Materials,03/05/2022,3997163-065495,"1,176.60",NEW ROW FARM NURSERIES.
Neighbourhoods and Climate Change,Environmental Services,Supplies and Services,304221,Equipment and Materials,03/05/2022,3997167-39019,500.00,NIGEL BUCHANAN T/A PREMIER PARTS UK LTD.
Adult and Health Services,Public Health CC0450,Supplies and Services,304259,Equipment and Materials,03/05/2022,3997203-900959325,688.98,PORTAKABIN LTD.
Neighbourhoods and Climate Change,Technical Services CM0300,Supplies and Services,304358,Equipment and Materials,03/05/2022,3997225-3194,777.00,S & R LANDSCAPES.
Neighbourhoods and Climate Change,Technical Services CM0300,Supplies and Services,304358,Equipment and Materials,03/05/2022,3997225-3195,630.00,S & R LANDSCAPES.
Neighbourhoods and Climate Change,Technical Services CM0300,Supplies and Services,304358,Equipment and Materials,03/05/2022,3997225-3196,704.00,S & R LANDSCAPES.
Neighbourhoods and Climate Change,Technical Services CM0300,Supplies and Services,304358,Equipment and Materials,03/05/2022,3997225-3197,780.00,S & R LANDSCAPES.
Neighbourhoods and Climate Change,Environmental Services,Supplies and Services,304999,Equipment and Materials,03/05/2022,3997187-1224,933.85,REDACTED - PAYMENT TO INDIVIDUAL
Non-Service Specific,Insurances,Expenditure 8INSEX,810012,Insurance Expenditure,03/05/2022,3997316-MPS/9420849G/439128,940.50,WOODGATE & CLARK LTD.
Neighbourhoods and Climate Change,Partnerships & Community Engagement Div.,Supplies and Services,384086,Miscellaneous Expenses,03/05/2022,3996939-VOUCHERBLAJ01-22,500.00,BOWBURN COMMUNITY ASSOCIATION.
Neighbourhoods and Climate Change,Partnerships & Community Engagement Div.,Supplies and Services,384086,Miscellaneous Expenses,03/05/2022,3996940-VOUCHERTAYP02-22,750.00,BRANDON BOXING CLUB.
Neighbourhoods and Climate Change,Partnerships & Community Engagement Div.,Supplies and Services,384086,Miscellaneous Expenses,03/05/2022,3996980-VOUCHERHENS01-22,558.00,CORNERSTONES CENTRE FOR THE COMMUNITY.
Neighbourhoods and Climate Change,Partnerships & Community Engagement Div.,Supplies and Services,384086,Miscellaneous Expenses,03/05/2022,3997000-VOUCHERMADL01-22,600.00,DURHAM MINING MUSEUM.
Neighbourhoods and Climate Change,Partnerships & Community Engagement Div.,Supplies and Services,384086,Miscellaneous Expenses,03/05/2022,3997004-VOUCHERBOYD01-22,999.00,EASINGTON COLLIERY WELFARE CRICKET CLUB.
Regeneration Economy and Growth,Development and Housing,Supplies and Services,384899,Miscellaneous Expenses,03/05/2022,3997026-SD024/7,"4,244.89",FIRST FACE TO FACE LTD T/A FIRST.
Children and Young Peoples Services,Head of Early Help Inclusion & Vulnerable Children.,Supplies and Services,384491,Miscellaneous Expenses,03/05/2022,3997047-4100753549-290422,704.00,HAPPYTIMES DAYCARE LTD.
Neighbourhoods and Climate Change,Partnerships & Community Engagement Div.,Supplies and Services,384086,Miscellaneous Expenses,03/05/2022,3997061-VOUCHERMCLI02-22,999.00,HORDEN PARISH COUNCIL.
Neighbourhoods and Climate Change,Environmental Services,Supplies and Services,384199,Miscellaneous Expenses,03/05/2022,3997064-927/DUCC3960,"2,298.60",IMAGEMAKERS DESIGN & CONSULTANCY LTD.
Neighbourhoods and Climate Change,Partnerships & Community Engagement Div.,Supplies and Services,384086,Miscellaneous Expenses,03/05/2022,3997136-VOUCHERTAYP01-22,500.00,MEADOWFIELD & LANGLEY MOOR OVER 60`S.
Neighbourhoods and Climate Change,Partnerships & Community Engagement Div.,Supplies and Services,384086,Miscellaneous Expenses,03/05/2022,3997192-VOUCHERHAWK01-22,850.00,PETERLEE CRICKET CLUB.
Neighbourhoods and Climate Change,Partnerships & Community Engagement Div.,Supplies and Services,384086,Miscellaneous Expenses,03/05/2022,3997222-VOUCHERROOK01-22,600.00,ROSEMOUNT CARE HOME.
Neighbourhoods and Climate Change,Partnerships & Community Engagement Div.,Supplies and Services,384086,Miscellaneous Expenses,03/05/2022,3997241-VOUCHERQUIS01-22,999.00,SHILDON METHODIST CHURCH.
Regeneration Economy and Growth,Culture Sport and Tourism,Supplies and Services,312013,Newspapers books and periodicals E312,03/05/2022,3996919-6687854,580.82,ASKEWS & HOLTS LIBRARY SERVICES LTD.
Regeneration Economy and Growth,Culture Sport and Tourism,Supplies and Services,312013,Newspapers books and periodicals E312,03/05/2022,3996919-6689751,620.86,ASKEWS & HOLTS LIBRARY SERVICES LTD.
Regeneration Economy and Growth,Culture Sport and Tourism,Supplies and Services,312013,Newspapers books and periodicals E312,03/05/2022,3996919-6691494,527.98,ASKEWS & HOLTS LIBRARY SERVICES LTD.
Neighbourhoods and Climate Change,Environmental Services,Third Party Payments,430101,Rendered by Private Contractors,03/05/2022,3997135-HOL07064,"2,345.64",MCCONECHYS TYRE SERVICE LTD.
Neighbourhoods and Climate Change,Environmental Services,Third Party Payments,430101,Rendered by Private Contractors,03/05/2022,3997135-HOL07112,"3,203.95",MCCONECHYS TYRE SERVICE LTD.
Neighbourhoods and Climate Change,Environmental Services,Third Party Payments,430101,Rendered by Private Contractors,03/05/2022,3997135-HOL07113,"1,709.75",MCCONECHYS TYRE SERVICE LTD.
Neighbourhoods and Climate Change,Environmental Services,Third Party Payments,430101,Rendered by Private Contractors,03/05/2022,3997135-HOL07114,"1,055.45",MCCONECHYS TYRE SERVICE LTD.
Neighbourhoods and Climate Change,Environmental Services,Third Party Payments,430101,Rendered by Private Contractors,03/05/2022,3997135-HOL07115,962.75,MCCONECHYS TYRE SERVICE LTD.
Regeneration Economy and Growth,Corporate Property and Land,Third Party Payments,430100,Rendered by Private Contractors,03/05/2022,3997158-37627,"1,478.00",NE & C WINDOWS & DOORS LTD.
Regeneration Economy and Growth,Corporate Property and Land,Third Party Payments,430100,Rendered by Private Contractors,03/05/2022,3997182-2970,"7,148.75",PARAMOUNT CEILINGS & PARTITIONS LTD.
Regeneration Economy and Growth,Corporate Property and Land,Third Party Payments,430100,Rendered by Private Contractors,03/05/2022,3997182-3009,"24,439.50",PARAMOUNT CEILINGS & PARTITIONS LTD.
Neighbourhoods and Climate Change,Environmental Services,Third Party Payments,430100,Rendered by Private Contractors,03/05/2022,3997245-220/22/0019807,"1,220.00",SIEMENS FINANCIAL SERVICES LTD.
Neighbourhoods and Climate Change,Environmental Services,Third Party Payments,430100,Rendered by Private Contractors,03/05/2022,3997270-7814.,895.00,TEAM VALLEY TRANSMISSIONS LTD.
Regeneration Economy and Growth,Culture Sport and Tourism,Third Party Payments,430131,Rendered by Private Contractors,03/05/2022,3997273-TT/20220402,640.00,REDACTED - PAYMENT TO INDIVIDUAL
Neighbourhoods and Climate Change,Environmental Services,Transport,210057,Repair and Maintenance of Vehicles,03/05/2022,3996926-15202136,979.48,BELL TRUCK SALES LTD T/A BELL TRUCK & VAN.
Neighbourhoods and Climate Change,Environmental Services,Transport,210057,Repair and Maintenance of Vehicles,03/05/2022,3997218-774410,529.31,RICKERBY LTD.
Dedicated Schools Grant BG0015,DSG Early Years Block,Transfer Payments,510030,School Children,03/05/2022,3996900-30519,"9,674.44",ADVANCE LEARNING PARTNERSHIP.
Dedicated Schools Grant BG0015,DSG Early Years Block,Transfer Payments,510032,School Children,03/05/2022,3996902-30400,"2,311.08",ADVENTURE VALLEY DAY NURSERY LTD.
Dedicated Schools Grant BG0015,DSG Early Years Block,Transfer Payments,510030,School Children,03/05/2022,3996902-30507,"15,783.30",ADVENTURE VALLEY DAY NURSERY LTD.
Dedicated Schools Grant BG0015,DSG Early Years Block,Transfer Payments,510030,School Children,03/05/2022,3996917-30509,637.65,AROUND THE CLOCK CHILD-MINDER.
Dedicated Schools Grant BG0015,DSG Early Years Block,Transfer Payments,510032,School Children,03/05/2022,3996921-30406,"2,399.97",AYCLIFFE DAY NURSERY.
Dedicated Schools Grant BG0015,DSG Early Years Block,Transfer Payments,510030,School Children,03/05/2022,3996921-30515,"7,954.54",AYCLIFFE DAY NURSERY.
Dedicated Schools Grant BG0015,DSG Early Years Block,Transfer Payments,510032,School Children,03/05/2022,3996928-30407,"2,399.97",BEVERLEY LOWES (BIG HANDS LITTLE HANDS CHILDCARE).
Dedicated Schools Grant BG0015,DSG Early Years Block,Transfer Payments,510030,School Children,03/05/2022,3996928-30516,"5,814.90",BEVERLEY LOWES (BIG HANDS LITTLE HANDS CHILDCARE).
Dedicated Schools Grant BG0015,DSG Early Years Block,Transfer Payments,510030,School Children,03/05/2022,3996932-30636,"3,009.83",BISHOP HOGARTH CATHOLIC EDUCATION TRUST T/A ST JOSEPHS PRIMARY SCHOOL.
Dedicated Schools Grant BG0015,DSG Early Years Block,Transfer Payments,510030,School Children,03/05/2022,3996933-30635,"5,073.71",BISHOP HOGARTH CATHOLIC EDUCATION TRUST.
Dedicated Schools Grant BG0015,DSG Early Years Block,Transfer Payments,510030,School Children,03/05/2022,3996934-30638,"7,223.58",BISHOP HOGARTH CATHOLIC EDUCATION TRUST.
Dedicated Schools Grant BG0015,DSG Early Years Block,Transfer Payments,510030,School Children,03/05/2022,3996935-30637,"6,376.02",BISHOP HOGARTH CATHOLIC EDUCATION TRUST.
Dedicated Schools Grant BG0015,DSG Early Years Block,Transfer Payments,510030,School Children,03/05/2022,3996936-30634,"8,824.73",BISHOP WILKINSON CE TRUST.
Dedicated Schools Grant BG0015,DSG Early Years Block,Transfer Payments,510032,School Children,03/05/2022,3996945-30410,799.99,BUTTERFLIES DAY CARE.
Dedicated Schools Grant BG0015,DSG Early Years Block,Transfer Payments,510030,School Children,03/05/2022,3996945-30520,"3,530.48",BUTTERFLIES DAY CARE.
Dedicated Schools Grant BG0015,DSG Early Years Block,Transfer Payments,510032,School Children,03/05/2022,3996946-30411,"4,533.27",BYERLEY ROAD PRE SCHOOL.
Dedicated Schools Grant BG0015,DSG Early Years Block,Transfer Payments,510030,School Children,03/05/2022,3996946-30521,"3,869.78",BYERLEY ROAD PRE SCHOOL.
Dedicated Schools Grant BG0015,DSG Early Years Block,Transfer Payments,510032,School Children,03/05/2022,3996953-30413,"1,066.65",CASTLE KINDERGARTEN LTD.
Dedicated Schools Grant BG0015,DSG Early Years Block,Transfer Payments,510030,School Children,03/05/2022,3996953-30525,"5,607.23",CASTLE KINDERGARTEN LTD.
Dedicated Schools Grant BG0015,DSG Early Years Block,Transfer Payments,510032,School Children,03/05/2022,3996954-30412,"4,266.60",CASTLE KINDERGARTEN LTD.
Dedicated Schools Grant BG0015,DSG Early Years Block,Transfer Payments,510030,School Children,03/05/2022,3996954-30524,"13,815.75",CASTLE KINDERGARTEN LTD.
Dedicated Schools Grant BG0015,DSG Early Years Block,Transfer Payments,510032,School Children,03/05/2022,3996955-30414,992.81,CASTLE VIEW PRIVATE DAY NURSERY LTD.
Dedicated Schools Grant BG0015,DSG Early Years Block,Transfer Payments,510030,School Children,03/05/2022,3996955-30526,"49,448.63",CASTLE VIEW PRIVATE DAY NURSERY LTD.
Dedicated Schools Grant BG0015,DSG Early Years Block,Transfer Payments,510030,School Children,03/05/2022,3996976-30534,"2,843.53",CONKERS LIFE LTD (NURSERY SCHOOL).
Dedicated Schools Grant BG0015,DSG Early Years Block,Transfer Payments,510032,School Children,03/05/2022,3996983-30419,"4,266.60",COUNDON & LEEHOLME EARLY YEARS CENTRE LTD.
Dedicated Schools Grant BG0015,DSG Early Years Block,Transfer Payments,510030,School Children,03/05/2022,3996983-30535,"7,827.30",COUNDON & LEEHOLME EARLY YEARS CENTRE LTD.
Dedicated Schools Grant BG0015,DSG Early Years Block,Transfer Payments,510032,School Children,03/05/2022,3996985-30420,"4,399.93",CRAGHEAD CHILDCARE CENTRE.
Dedicated Schools Grant BG0015,DSG Early Years Block,Transfer Payments,510030,School Children,03/05/2022,3996985-30536,"7,372.47",CRAGHEAD CHILDCARE CENTRE.
Dedicated Schools Grant BG0015,DSG Early Years Block,Transfer Payments,510030,School Children,03/05/2022,3996997-30564,"2,241.20",DURHAM & NEWCASTLE DIOCESAN LEARNING TRUST T/A INGLETON CE PRIMARY SCHOOL
Dedicated Schools Grant BG0015,DSG Early Years Block,Transfer Payments,510030,School Children,03/05/2022,3996998-30639,"7,406.47",DURHAM & NEWCASTLE DIOCESAN LEARNING TRUST T/A STANHOPE BARRINGTON C OF E PRIMARY SCHOOL.
Dedicated Schools Grant BG0015,DSG Early Years Block,Transfer Payments,510032,School Children,03/05/2022,3997005-30465,"2,399.97",EAST DURHAM COLLEGE.
Dedicated Schools Grant BG0015,DSG Early Years Block,Transfer Payments,510030,School Children,03/05/2022,3997005-30616,"7,353.94",EAST DURHAM COLLEGE.
Dedicated Schools Grant BG0015,DSG Early Years Block,Transfer Payments,510032,School Children,03/05/2022,3997007-30409,"1,866.64",EDEN ACADEMY TRUST LTD T/A BLUEBELL MEADOW PRIMARY SCHOOL.
Dedicated Schools Grant BG0015,DSG Early Years Block,Transfer Payments,510030,School Children,03/05/2022,3997007-30518,"6,019.65",EDEN ACADEMY TRUST LTD T/A BLUEBELL MEADOW PRIMARY SCHOOL.
Dedicated Schools Grant BG0015,DSG Early Years Block,Transfer Payments,510032,School Children,03/05/2022,3997008-30424,"3,466.62",EDEN GARDEN NURSERY.
Dedicated Schools Grant BG0015,DSG Early Years Block,Transfer Payments,510030,School Children,03/05/2022,3997008-30544,"9,004.32",EDEN GARDEN NURSERY.
Dedicated Schools Grant BG0015,DSG Early Years Block,Transfer Payments,510030,School Children,03/05/2022,3997009-30531,"14,189.18",EDEN LEARNING TRUST T/A CHILTON ACADEMY.
Dedicated Schools Grant BG0015,DSG Early Years Block,Transfer Payments,510032,School Children,03/05/2022,3997017-30426,"5,066.59",EMERALDS LITTLE GEMS DAYCARE LTD.
Dedicated Schools Grant BG0015,DSG Early Years Block,Transfer Payments,510032,School Children,03/05/2022,3997017-30427,"7,199.89",EMERALDS LITTLE GEMS DAYCARE LTD.
Dedicated Schools Grant BG0015,DSG Early Years Block,Transfer Payments,510030,School Children,03/05/2022,3997017-30547,"7,954.54",EMERALDS LITTLE GEMS DAYCARE LTD.
Dedicated Schools Grant BG0015,DSG Early Years Block,Transfer Payments,510030,School Children,03/05/2022,3997017-30548,"27,174.42",EMERALDS LITTLE GEMS DAYCARE LTD.
Dedicated Schools Grant BG0015,DSG Early Years Block,Transfer Payments,510032,School Children,03/05/2022,3997036-30429,"2,666.63",GIANT STEPS LTD.
Dedicated Schools Grant BG0015,DSG Early Years Block,Transfer Payments,510030,School Children,03/05/2022,3997036-30551,"7,388.55",GIANT STEPS LTD.
Dedicated Schools Grant BG0015,DSG Early Years Block,Transfer Payments,510032,School Children,03/05/2022,3997037-30430,"2,133.30",GIANT STEPS LTD.
Dedicated Schools Grant BG0015,DSG Early Years Block,Transfer Payments,510030,School Children,03/05/2022,3997037-30552,"16,306.88",GIANT STEPS LTD.
Dedicated Schools Grant BG0015,DSG Early Years Block,Transfer Payments,510032,School Children,03/05/2022,3997038-30431,"1,333.32",GIANT STEPS LTD.
Dedicated Schools Grant BG0015,DSG Early Years Block,Transfer Payments,510030,School Children,03/05/2022,3997038-30553,"3,738.15",GIANT STEPS LTD.
Dedicated Schools Grant BG0015,DSG Early Years Block,Transfer Payments,510032,School Children,03/05/2022,3997041-30432,"1,599.98",GREEN LANE NURSERY & CHILDCARE CENTRE.
Dedicated Schools Grant BG0015,DSG Early Years Block,Transfer Payments,510030,School Children,03/05/2022,3997041-30554,"14,644.85",GREEN LANE NURSERY & CHILDCARE CENTRE.
Dedicated Schools Grant BG0015,DSG Early Years Block,Transfer Payments,510030,School Children,03/05/2022,3997049-30555,"7,739.55",HARTSIDE PRIMARY ACADEMY.
Dedicated Schools Grant BG0015,DSG Early Years Block,Transfer Payments,510030,School Children,03/05/2022,3997081-30611,"6,009.22",JIGSAW LEARNING TRUST.
Dedicated Schools Grant BG0015,DSG Early Years Block,Transfer Payments,510032,School Children,03/05/2022,3997093-30446,"3,733.28",KELLOE PHOENIX CENTRE (CHILDCARE).
Dedicated Schools Grant BG0015,DSG Early Years Block,Transfer Payments,510030,School Children,03/05/2022,3997093-30580,"5,399.55",KELLOE PHOENIX CENTRE (CHILDCARE).
Dedicated Schools Grant BG0015,DSG Early Years Block,Transfer Payments,510032,School Children,03/05/2022,3997096-30447,"3,199.95",KIDZONE.
Dedicated Schools Grant BG0015,DSG Early Years Block,Transfer Payments,510030,School Children,03/05/2022,3997096-30582,"15,091.05",KIDZONE.
Dedicated Schools Grant BG0015,DSG Early Years Block,Transfer Payments,510030,School Children,03/05/2022,3997098-30583,"6,293.95",KIRK MERRINGTON PRE SCHOOL.
Dedicated Schools Grant BG0015,DSG Early Years Block,Transfer Payments,510030,School Children,03/05/2022,3997099-30584,"4,583.28",KIRKLANDS DAY NURSERY.
Dedicated Schools Grant BG0015,DSG Early Years Block,Transfer Payments,510032,School Children,03/05/2022,3997110-30451,"3,733.28",LEADGATE CHILD CENTRE LTD.
Dedicated Schools Grant BG0015,DSG Early Years Block,Transfer Payments,510030,School Children,03/05/2022,3997110-30592,"11,135.97",LEADGATE CHILD CENTRE LTD.
Dedicated Schools Grant BG0015,DSG Early Years Block,Transfer Payments,510032,School Children,03/05/2022,3997118-30454,"2,133.30",LITTLE ACORNS NORTH EAST LTD.
Dedicated Schools Grant BG0015,DSG Early Years Block,Transfer Payments,510030,School Children,03/05/2022,3997118-30595,"11,958.38",LITTLE ACORNS NORTH EAST LTD.
Dedicated Schools Grant BG0015,DSG Early Years Block,Transfer Payments,510032,School Children,03/05/2022,3997119-30456,"4,799.93",LITTLE WAVES DAY NURSERY LTD.
Dedicated Schools Grant BG0015,DSG Early Years Block,Transfer Payments,510030,School Children,03/05/2022,3997119-30598,"9,553.05",LITTLE WAVES DAY NURSERY LTD.
Dedicated Schools Grant BG0015,DSG Early Years Block,Transfer Payments,510032,School Children,03/05/2022,3997161-30461,"3,199.95",NELLIE`S DAY NURSERY LTD.
Dedicated Schools Grant BG0015,DSG Early Years Block,Transfer Payments,510030,School Children,03/05/2022,3997161-30608,"6,156.15",NELLIE`S DAY NURSERY LTD.
Dedicated Schools Grant BG0015,DSG Early Years Block,Transfer Payments,510032,School Children,03/05/2022,3997162-30462,"2,933.29",NEW BEGINNINGS (MOORSIDE) CO LTD.
Dedicated Schools Grant BG0015,DSG Early Years Block,Transfer Payments,510030,School Children,03/05/2022,3997162-30609,"6,853.28",NEW BEGINNINGS (MOORSIDE) CO LTD.
Dedicated Schools Grant BG0015,DSG Early Years Block,Transfer Payments,510032,School Children,03/05/2022,3997174-30464,"2,666.63",NORTHUMBRIAN TRUST DAY NURSERIES LTD.
Dedicated Schools Grant BG0015,DSG Early Years Block,Transfer Payments,510030,School Children,03/05/2022,3997174-30614,"4,038.45",NORTHUMBRIAN TRUST DAY NURSERIES LTD.
Dedicated Schools Grant BG0015,DSG Early Years Block,Transfer Payments,510030,School Children,03/05/2022,3997177-30610,"2,731.47",OLD BRIDGE NURSERY.
Dedicated Schools Grant BG0015,DSG Early Years Block,Transfer Payments,510030,School Children,03/05/2022,3997202-30615,"5,757.09",PLAYOLOGY LTD.
Dedicated Schools Grant BG0015,DSG Early Years Block,Transfer Payments,510032,School Children,03/05/2022,3997213-30468,"3,466.62",RAINBOW NURSERY LTD (MIDDLESTONE MOOR).
Dedicated Schools Grant BG0015,DSG Early Years Block,Transfer Payments,510030,School Children,03/05/2022,3997213-30620,"17,872.63",RAINBOW NURSERY LTD (MIDDLESTONE MOOR).
Dedicated Schools Grant BG0015,DSG Early Years Block,Transfer Payments,510030,School Children,03/05/2022,3997216-30622,"16,769.03",RIBBON ACADEMY TRUST.
Dedicated Schools Grant BG0015,DSG Early Years Block,Transfer Payments,510032,School Children,03/05/2022,3997217-30470,"7,199.89",RIBBON DAYCARE.
Dedicated Schools Grant BG0015,DSG Early Years Block,Transfer Payments,510030,School Children,03/05/2022,3997217-30623,"13,630.21",RIBBON DAYCARE.
Dedicated Schools Grant BG0015,DSG Early Years Block,Transfer Payments,510030,School Children,03/05/2022,3997226-30624,"3,224.82",SACRISTON ACADEMY - EARLY YEARS T/A PRIVATE NURSERY.
Dedicated Schools Grant BG0015,DSG Early Years Block,Transfer Payments,510032,School Children,03/05/2022,3997236-30473,799.99,SEASIDE LANE NURSERY.
Dedicated Schools Grant BG0015,DSG Early Years Block,Transfer Payments,510030,School Children,03/05/2022,3997236-30628,"2,975.70",SEASIDE LANE NURSERY.
Dedicated Schools Grant BG0015,DSG Early Years Block,Transfer Payments,510030,School Children,03/05/2022,3997237-30629,664.56,SEDGEFIELD OUT OF SCHOOL FUN CLUB.
Dedicated Schools Grant BG0015,DSG Early Years Block,Transfer Payments,510032,School Children,03/05/2022,3997242-30475,799.99,SHINING STARS PARKHILL LTD.
Dedicated Schools Grant BG0015,DSG Early Years Block,Transfer Payments,510030,School Children,03/05/2022,3997242-30631,830.70,SHINING STARS PARKHILL LTD.
Dedicated Schools Grant BG0015,DSG Early Years Block,Transfer Payments,510032,School Children,03/05/2022,3997250-30449,"3,466.62",STANLEY LEARNING PARTNERSHIP.
Dedicated Schools Grant BG0015,DSG Early Years Block,Transfer Payments,510030,School Children,03/05/2022,3997250-30586,"7,739.55",STANLEY LEARNING PARTNERSHIP.
Dedicated Schools Grant BG0015,DSG Early Years Block,Transfer Payments,510032,School Children,03/05/2022,3997251-30476,799.99,STANLEY LEARNING PARTNERSHIP.
Dedicated Schools Grant BG0015,DSG Early Years Block,Transfer Payments,510030,School Children,03/05/2022,3997251-30633,"6,376.02",STANLEY LEARNING PARTNERSHIP.
Dedicated Schools Grant BG0015,DSG Early Years Block,Transfer Payments,510032,School Children,03/05/2022,3997252-30408,533.33,STANLEY LEARNING PARTNERSHIP.
Dedicated Schools Grant BG0015,DSG Early Years Block,Transfer Payments,510030,School Children,03/05/2022,3997252-30517,"4,299.75",STANLEY LEARNING PARTNERSHIP.
Dedicated Schools Grant BG0015,DSG Early Years Block,Transfer Payments,510032,School Children,03/05/2022,3997257-30477,533.33,STEPPING STONES DAY NURSERY (DURHAM).
Dedicated Schools Grant BG0015,DSG Early Years Block,Transfer Payments,510030,School Children,03/05/2022,3997257-30640,"2,770.95",STEPPING STONES DAY NURSERY (DURHAM).
Dedicated Schools Grant BG0015,DSG Early Years Block,Transfer Payments,510032,School Children,03/05/2022,3997261-30480,"3,466.62",SUNSHINE DAY NURSERY LTD.
Dedicated Schools Grant BG0015,DSG Early Years Block,Transfer Payments,510030,School Children,03/05/2022,3997261-30643,"7,739.55",SUNSHINE DAY NURSERY LTD.
Dedicated Schools Grant BG0015,DSG Early Years Block,Transfer Payments,510032,School Children,03/05/2022,3997262-30478,"4,799.93",SUNSHINE DAY NURSERY LTD.
Dedicated Schools Grant BG0015,DSG Early Years Block,Transfer Payments,510030,School Children,03/05/2022,3997262-30641,"16,306.88",SUNSHINE DAY NURSERY LTD.
Dedicated Schools Grant BG0015,DSG Early Years Block,Transfer Payments,510032,School Children,03/05/2022,3997263-30479,"4,266.60",SUNSHINE DAY NURSERY LTD.
Dedicated Schools Grant BG0015,DSG Early Years Block,Transfer Payments,510030,School Children,03/05/2022,3997263-30642,"12,752.03",SUNSHINE DAY NURSERY LTD.
Dedicated Schools Grant BG0015,DSG Early Years Block,Transfer Payments,510032,School Children,03/05/2022,3997275-30483,"3,199.95",THE LAURELS CHILD CARE COMPANY LTD.
Dedicated Schools Grant BG0015,DSG Early Years Block,Transfer Payments,510030,School Children,03/05/2022,3997275-30647,"7,035.60",THE LAURELS CHILD CARE COMPANY LTD.
Dedicated Schools Grant BG0015,DSG Early Years Block,Transfer Payments,510032,School Children,03/05/2022,3997276-30484,"4,799.93",THE NURSERY.
Dedicated Schools Grant BG0015,DSG Early Years Block,Transfer Payments,510030,School Children,03/05/2022,3997276-30648,"12,875.85",THE NURSERY.
Dedicated Schools Grant BG0015,DSG Early Years Block,Transfer Payments,510032,School Children,03/05/2022,3997281-30439,"2,666.63",TM NURSERY ENTERPRISES LTD T/A JACK IN THE BOX DAYCARE.
Dedicated Schools Grant BG0015,DSG Early Years Block,Transfer Payments,510030,School Children,03/05/2022,3997281-30565,"13,329.23",TM NURSERY ENTERPRISES LTD T/A JACK IN THE BOX DAYCARE.
Dedicated Schools Grant BG0015,DSG Early Years Block,Transfer Payments,510032,School Children,03/05/2022,3997288-30485,"1,066.65",TRIMDON`S LITTLE TYKES LTD.
Dedicated Schools Grant BG0015,DSG Early Years Block,Transfer Payments,510030,School Children,03/05/2022,3997291-30632,"4,120.60",TUDHOE LEARNING TRUST T/A SOUTH HETTON PRIMARY SCHOOL.
Dedicated Schools Grant BG0015,DSG Early Years Block,Transfer Payments,510032,School Children,03/05/2022,3997294-30423,533.33,UNIVERSITY OF DURHAM DAY NURSERY.
Dedicated Schools Grant BG0015,DSG Early Years Block,Transfer Payments,510030,School Children,03/05/2022,3997294-30543,"9,034.84",UNIVERSITY OF DURHAM DAY NURSERY.
Dedicated Schools Grant BG0015,DSG Early Years Block,Transfer Payments,510032,School Children,03/05/2022,3997297-30486,"6,933.23",USHAW MOOR DAYCARE.
Dedicated Schools Grant BG0015,DSG Early Years Block,Transfer Payments,510030,School Children,03/05/2022,3997297-30652,"3,188.25",USHAW MOOR DAYCARE.
Dedicated Schools Grant BG0015,DSG Early Years Block,Transfer Payments,510030,School Children,03/05/2022,3997299-30653,"5,716.43",VICTORIA LANE ACADEMY.
Dedicated Schools Grant BG0015,DSG Early Years Block,Transfer Payments,510032,School Children,03/05/2022,3997305-30416,"4,266.60",WAYMAN DEVELOPMENTS LTD T/A CHILDSPLAY PRIVATE NURSERY.
Dedicated Schools Grant BG0015,DSG Early Years Block,Transfer Payments,510030,School Children,03/05/2022,3997305-30529,"7,439.25",WAYMAN DEVELOPMENTS LTD T/A CHILDSPLAY PRIVATE NURSERY.
Dedicated Schools Grant BG0015,DSG Early Years Block,Transfer Payments,510032,School Children,03/05/2022,3997306-30417,"4,266.60",WAYMAN DEVELOPMENTS LTD T/A CHILDSPLAY PRIVATE NURSERY.
Dedicated Schools Grant BG0015,DSG Early Years Block,Transfer Payments,510030,School Children,03/05/2022,3997306-30530,"15,128.10",WAYMAN DEVELOPMENTS LTD T/A CHILDSPLAY PRIVATE NURSERY.
Dedicated Schools Grant BG0015,DSG Early Years Block,Transfer Payments,510032,School Children,03/05/2022,3997309-30488,533.33,WENDY TAYLOR.
Dedicated Schools Grant BG0015,DSG Early Years Block,Transfer Payments,510032,School Children,03/05/2022,3997312-30489,"3,466.62",WHEATLEY HILL COMMUNITY NURSERY LTD.
Dedicated Schools Grant BG0015,DSG Early Years Block,Transfer Payments,510030,School Children,03/05/2022,3997312-30656,"8,814.49",WHEATLEY HILL COMMUNITY NURSERY LTD.
Dedicated Schools Grant BG0015,DSG Early Years Block,Transfer Payments,510032,School Children,03/05/2022,3997315-30490,"6,133.24",WINGATE COMMUNITY CHILDCARE LTD.
Dedicated Schools Grant BG0015,DSG Early Years Block,Transfer Payments,510030,School Children,03/05/2022,3997315-30657,"2,801.50",WINGATE COMMUNITY CHILDCARE LTD.
Dedicated Schools Grant BG0015,DSG Early Years Block,Transfer Payments,510032,School Children,03/05/2022,3997319-30491,"1,066.65",YORK HOUSE NURSERY.
Dedicated Schools Grant BG0015,DSG Early Years Block,Transfer Payments,510030,School Children,03/05/2022,3997319-30658,"13,972.77",YORK HOUSE NURSERY.
Dedicated Schools Grant BG0015,DSG Early Years Block,Transfer Payments,510030,School Children,03/05/2022,3996908-30510,"1,496.04",REDACTED - PAYMENT TO INDIVIDUAL
Dedicated Schools Grant BG0015,DSG Early Years Block,Transfer Payments,510030,School Children,03/05/2022,3996911-30512,811.20,REDACTED - PAYMENT TO INDIVIDUAL
Dedicated Schools Grant BG0015,DSG Early Years Block,Transfer Payments,510032,School Children,03/05/2022,3996912-30403,533.33,REDACTED - PAYMENT TO INDIVIDUAL
Dedicated Schools Grant BG0015,DSG Early Years Block,Transfer Payments,510030,School Children,03/05/2022,3996912-30513,830.70,REDACTED - PAYMENT TO INDIVIDUAL
Dedicated Schools Grant BG0015,DSG Early Years Block,Transfer Payments,510032,School Children,03/05/2022,3996914-30405,799.99,REDACTED - PAYMENT TO INDIVIDUAL
Dedicated Schools Grant BG0015,DSG Early Years Block,Transfer Payments,510030,School Children,03/05/2022,3996952-30523,830.70,REDACTED - PAYMENT TO INDIVIDUAL
Dedicated Schools Grant BG0015,DSG Early Years Block,Transfer Payments,510030,School Children,03/05/2022,3997015-30545,601.09,REDACTED - PAYMENT TO INDIVIDUAL
Dedicated Schools Grant BG0015,DSG Early Years Block,Transfer Payments,510030,School Children,03/05/2022,3997035-30550,708.50,REDACTED - PAYMENT TO INDIVIDUAL
Dedicated Schools Grant BG0015,DSG Early Years Block,Transfer Payments,510030,School Children,03/05/2022,3997045-30597,"4,832.59",REDACTED - PAYMENT TO INDIVIDUAL
Dedicated Schools Grant BG0015,DSG Early Years Block,Transfer Payments,510032,School Children,03/05/2022,3997051-30434,533.33,REDACTED - PAYMENT TO INDIVIDUAL
Dedicated Schools Grant BG0015,DSG Early Years Block,Transfer Payments,510030,School Children,03/05/2022,3997051-30557,"1,661.40",REDACTED - PAYMENT TO INDIVIDUAL
Dedicated Schools Grant BG0015,DSG Early Years Block,Transfer Payments,510030,School Children,03/05/2022,3997052-30558,811.20,REDACTED - PAYMENT TO INDIVIDUAL
Dedicated Schools Grant BG0015,DSG Early Years Block,Transfer Payments,510032,School Children,03/05/2022,3997053-30435,533.33,REDACTED - PAYMENT TO INDIVIDUAL
Dedicated Schools Grant BG0015,DSG Early Years Block,Transfer Payments,510030,School Children,03/05/2022,3997053-30559,840.45,REDACTED - PAYMENT TO INDIVIDUAL
Dedicated Schools Grant BG0015,DSG Early Years Block,Transfer Payments,510032,School Children,03/05/2022,3997055-30437,"1,066.65",REDACTED - PAYMENT TO INDIVIDUAL
Dedicated Schools Grant BG0015,DSG Early Years Block,Transfer Payments,510030,School Children,03/05/2022,3997055-30562,"1,719.90",REDACTED - PAYMENT TO INDIVIDUAL
Dedicated Schools Grant BG0015,DSG Early Years Block,Transfer Payments,510030,School Children,03/05/2022,3997072-30566,"1,062.75",REDACTED - PAYMENT TO INDIVIDUAL
Dedicated Schools Grant BG0015,DSG Early Years Block,Transfer Payments,510030,School Children,03/05/2022,3997076-30569,608.40,REDACTED - PAYMENT TO INDIVIDUAL
Dedicated Schools Grant BG0015,DSG Early Years Block,Transfer Payments,510030,School Children,03/05/2022,3997077-30570,623.03,REDACTED - PAYMENT TO INDIVIDUAL
Dedicated Schools Grant BG0015,DSG Early Years Block,Transfer Payments,510032,School Children,03/05/2022,3997083-30421,"1,066.65",REDACTED - PAYMENT TO INDIVIDUAL
Dedicated Schools Grant BG0015,DSG Early Years Block,Transfer Payments,510030,School Children,03/05/2022,3997083-30538,"8,040.31",REDACTED - PAYMENT TO INDIVIDUAL
Dedicated Schools Grant BG0015,DSG Early Years Block,Transfer Payments,510032,School Children,03/05/2022,3997084-30441,799.99,REDACTED - PAYMENT TO INDIVIDUAL
Dedicated Schools Grant BG0015,DSG Early Years Block,Transfer Payments,510030,School Children,03/05/2022,3997091-30576,"2,052.38",REDACTED - PAYMENT TO INDIVIDUAL
Dedicated Schools Grant BG0015,DSG Early Years Block,Transfer Payments,510032,School Children,03/05/2022,3997092-30445,533.33,REDACTED - PAYMENT TO INDIVIDUAL
Dedicated Schools Grant BG0015,DSG Early Years Block,Transfer Payments,510030,School Children,03/05/2022,3997094-30581,"1,700.40",REDACTED - PAYMENT TO INDIVIDUAL
Dedicated Schools Grant BG0015,DSG Early Years Block,Transfer Payments,510032,School Children,03/05/2022,3997101-30455,"1,066.65",REDACTED - PAYMENT TO INDIVIDUAL
Dedicated Schools Grant BG0015,DSG Early Years Block,Transfer Payments,510030,School Children,03/05/2022,3997108-30590,"1,402.54",REDACTED - PAYMENT TO INDIVIDUAL
Dedicated Schools Grant BG0015,DSG Early Years Block,Transfer Payments,510030,School Children,03/05/2022,3997121-30599,"1,231.43",REDACTED - PAYMENT TO INDIVIDUAL
Dedicated Schools Grant BG0015,DSG Early Years Block,Transfer Payments,510030,School Children,03/05/2022,3997131-30605,"1,641.90",REDACTED - PAYMENT TO INDIVIDUAL
Dedicated Schools Grant BG0015,DSG Early Years Block,Transfer Payments,510030,School Children,03/05/2022,3997137-30606,"1,246.05",REDACTED - PAYMENT TO INDIVIDUAL
Dedicated Schools Grant BG0015,DSG Early Years Block,Transfer Payments,510030,School Children,03/05/2022,3997138-30527,850.20,REDACTED - PAYMENT TO INDIVIDUAL
Dedicated Schools Grant BG0015,DSG Early Years Block,Transfer Payments,510030,School Children,03/05/2022,3997143-30541,"1,216.80",REDACTED - PAYMENT TO INDIVIDUAL
Dedicated Schools Grant BG0015,DSG Early Years Block,Transfer Payments,510032,School Children,03/05/2022,3997144-30428,533.33,REDACTED - PAYMENT TO INDIVIDUAL
Dedicated Schools Grant BG0015,DSG Early Years Block,Transfer Payments,510030,School Children,03/05/2022,3997148-30575,801.45,REDACTED - PAYMENT TO INDIVIDUAL
Dedicated Schools Grant BG0015,DSG Early Years Block,Transfer Payments,510032,School Children,03/05/2022,3997155-30459,666.66,REDACTED - PAYMENT TO INDIVIDUAL
Dedicated Schools Grant BG0015,DSG Early Years Block,Transfer Payments,510032,School Children,03/05/2022,3997156-30460,"1,066.65",REDACTED - PAYMENT TO INDIVIDUAL
Dedicated Schools Grant BG0015,DSG Early Years Block,Transfer Payments,510030,School Children,03/05/2022,3997156-30607,"2,907.45",REDACTED - PAYMENT TO INDIVIDUAL
Dedicated Schools Grant BG0015,DSG Early Years Block,Transfer Payments,510030,School Children,03/05/2022,3997181-30612,606.97,REDACTED - PAYMENT TO INDIVIDUAL
Dedicated Schools Grant BG0015,DSG Early Years Block,Transfer Payments,510032,School Children,03/05/2022,3997188-30463,533.33,REDACTED - PAYMENT TO INDIVIDUAL
Dedicated Schools Grant BG0015,DSG Early Years Block,Transfer Payments,510030,School Children,03/05/2022,3997188-30613,"1,891.02",REDACTED - PAYMENT TO INDIVIDUAL
Dedicated Schools Grant BG0015,DSG Early Years Block,Transfer Payments,510032,School Children,03/05/2022,3997210-30466,533.33,REDACTED - PAYMENT TO INDIVIDUAL
Dedicated Schools Grant BG0015,DSG Early Years Block,Transfer Payments,510032,School Children,03/05/2022,3997211-30467,533.33,REDACTED - PAYMENT TO INDIVIDUAL
Dedicated Schools Grant BG0015,DSG Early Years Block,Transfer Payments,510030,School Children,03/05/2022,3997211-30619,"1,869.08",REDACTED - PAYMENT TO INDIVIDUAL
Dedicated Schools Grant BG0015,DSG Early Years Block,Transfer Payments,510030,School Children,03/05/2022,3997229-30625,820.95,REDACTED - PAYMENT TO INDIVIDUAL
Dedicated Schools Grant BG0015,DSG Early Years Block,Transfer Payments,510030,School Children,03/05/2022,3997230-30626,"1,038.38",REDACTED - PAYMENT TO INDIVIDUAL
Dedicated Schools Grant BG0015,DSG Early Years Block,Transfer Payments,510030,School Children,03/05/2022,3997232-30627,"1,001.82",REDACTED - PAYMENT TO INDIVIDUAL
Dedicated Schools Grant BG0015,DSG Early Years Block,Transfer Payments,510032,School Children,03/05/2022,3997240-30474,"1,066.65",REDACTED - PAYMENT TO INDIVIDUAL
Dedicated Schools Grant BG0015,DSG Early Years Block,Transfer Payments,510030,School Children,03/05/2022,3997284-30649,830.70,REDACTED - PAYMENT TO INDIVIDUAL
Children and Young Peoples Services,Head of Childrens Social Care,Supplies and Services,338044,Services,03/05/2022,3996996-CR-1-180322,772.20,DR URSULA CAWTHORNE T/A CAWTHORNE PSYCHOLOGICAL SERVICES LTD.
Regeneration Economy and Growth,Culture Sport and Tourism,Supplies and Services,338047,Services,03/05/2022,3997065-22/1067,"3,353.69",INDIVIDUAL ENTERTAINMENT LTD.
Neighbourhoods and Climate Change,Environmental Services,Supplies and Services,338066,Services,03/05/2022,3997166-RES-04-2022-411,500.00,NICOLA JAYNE COLCLOUGH.
Regeneration Economy and Growth,Culture Sport and Tourism,Supplies and Services,338047,Services,03/05/2022,3997183-R2267505,"1,288.75",PARAMOUNT PICTURES UK.
Regeneration Economy and Growth,Culture Sport and Tourism,Supplies and Services,338047,Services,03/05/2022,3997293-22314447053-1,885.63,UNIVERSAL PICTURES INTERNATIONAL UK & EIRE LTD.
Neighbourhoods and Climate Change,Environmental Services,Supplies and Services,338099,Services,03/05/2022,3997142-SI-7,"1,690.00",REDACTED - PAYMENT TO INDIVIDUAL
Neighbourhoods and Climate Change,Technical Services CM0300,Stock A926,926900,Stock in hand-Inventory system,03/05/2022,3997024-141436,"1,055.00",FABRIKAT (NOTTINGHAM) LTD.
Neighbourhoods and Climate Change,Technical Services CM0300,Stock A926,926900,Stock in hand-Inventory system,03/05/2022,3997088-0113/00617796,505.60,JT DOVE LTD.
Neighbourhoods and Climate Change,Technical Services CM0300,Stock A926,926900,Stock in hand-Inventory system,03/05/2022,3997279-NSIN00074027,"1,532.45",THOMAS OWEN & SONS (NEWCASTLE) LTD.
Neighbourhoods and Climate Change,Technical Services CM0300,Stock A926,926900,Stock in hand-Inventory system,03/05/2022,3997322-145475476,"12,992.00",ZG LIGHTING (UK) LTD.
Neighbourhoods and Climate Change,Community Protection,Supplies and Services,372009,Subscriptions E372,03/05/2022,3997068-35793,615.00,INSTITUTE OF LICENSING LTD.
Regeneration Economy and Growth,Development and Housing,Fees,901003,Capital - Contract Supervision,04/05/2022,3998294-J/22/05/3/APK/TM,"1,200.00",RNJ PARTNERSHIP LLP.
Regeneration Economy and Growth,Development and Housing,Fees,901003,Capital - Contract Supervision,04/05/2022,3998294-J/22/10/3/APK/TM,"1,200.00",RNJ PARTNERSHIP LLP.
Regeneration Economy and Growth,Culture Sport and Tourism,Premises,145023,Cleaning and Domestic Supplies,04/05/2022,3998090-06/170386,688.55,GREENHAM TRADING LTD.
Children and Young Peoples Services,Head of Early Help Inclusion & Vulnerable Children.,Supplies and Services,328041,Clothing uniforms and laundry E328,04/05/2022,3998146-OFF-C43B050404-1,"3,102.29",KITLOCKER.COM LTD.
Regeneration Economy and Growth,Culture Sport and Tourism,Supplies and Services,328041,Clothing uniforms and laundry E328,04/05/2022,3998351-NSIN00074051,"1,462.81",THOMAS OWEN & SONS (NEWCASTLE) LTD.
Resources BK0010,Digital Services,Vehicles Equipment Furniture and Fittings,912701,Computer equipment,04/05/2022,3998118-2100214795,742.00,INSIGHT DIRECT (UK) LTD.
Resources BK0010,Digital Services,Vehicles Equipment Furniture and Fittings,912701,Computer equipment,04/05/2022,3998118-2100214796,"2,199.00",INSIGHT DIRECT (UK) LTD.
Resources BK0010,Legal & Democratic Services,Supplies and Services,352001,Conference Expenses,04/05/2022,3998009-DURHAMCOUNTYCOUNCIL,750.00,CORONERS` SOCIETY OF ENGLAND & WALES.
Regeneration Economy and Growth,Transport and Contracted Services,Construction work A908,908105,Construction work,04/05/2022,3997977-28643,"3,211.84",BUS SHELTERS LTD.
Regeneration Economy and Growth,Transport and Contracted Services,Construction work A908,908105,Construction work,04/05/2022,3997977-28680,"2,420.50",BUS SHELTERS LTD.
Regeneration Economy and Growth,Transport and Contracted Services,Construction work A908,908105,Construction work,04/05/2022,3997977-28681,"3,211.84",BUS SHELTERS LTD.
Neighbourhoods and Climate Change,Environmental Services,Fees,901002,Professional fees,04/05/2022,3998031-64021176,"19,251.02",DESCO (DESIGN & CONSULTANCY) LTD.
Children and Young Peoples Services,Head of Education and Skills,Transport,230008,Contract Hire,04/05/2022,3997928-04/22,"1,342.00",ADVANCE TRAVEL.
Children and Young Peoples Services,Head of Education and Skills,Transport,230008,Contract Hire,04/05/2022,3997932-008-APR22,"1,210.00",AIRPORT TRANSFER DURHAM.
Children and Young Peoples Services,Head of Education and Skills,Transport,230008,Contract Hire,04/05/2022,3997953-090,"1,474.00",AUCKLAND TRAVEL.
Children and Young Peoples Services,Head of Education and Skills,Transport,230008,Contract Hire,04/05/2022,3997953-091,"1,287.00",AUCKLAND TRAVEL.
Children and Young Peoples Services,Head of Education and Skills,Transport,230008,Contract Hire,04/05/2022,3997953-092,"1,469.40",AUCKLAND TRAVEL.
Children and Young Peoples Services,Head of Education and Skills,Transport,230008,Contract Hire,04/05/2022,3997953-093,"1,562.00",AUCKLAND TRAVEL.
Children and Young Peoples Services,Head of Education and Skills,Transport,230008,Contract Hire,04/05/2022,3997953-094,"1,320.00",AUCKLAND TRAVEL.
Children and Young Peoples Services,Head of Education and Skills,Transport,230008,Contract Hire,04/05/2022,3997953-095,"1,738.00",AUCKLAND TRAVEL.
Children and Young Peoples Services,Head of Education and Skills,Transport,230034,Contract Hire,04/05/2022,3997955-290422,"1,122.00",AVALON TAXIS.
Children and Young Peoples Services,Head of Education and Skills,Transport,230007,Contract Hire,04/05/2022,3997955-2904221,660.00,AVALON TAXIS.
Adult and Health Services,Head of Adults,Transport,230005,Contract Hire,04/05/2022,3997955-2904222,"1,140.00",AVALON TAXIS.
Children and Young Peoples Services,Head of Education and Skills,Transport,230007,Contract Hire,04/05/2022,3997955-2904223,"1,400.00",AVALON TAXIS.
Children and Young Peoples Services,Head of Education and Skills,Transport,230006,Contract Hire,04/05/2022,3997964-1-APR22,"1,320.00",BH TRAVEL.
Children and Young Peoples Services,Head of Education and Skills,Transport,230007,Contract Hire,04/05/2022,3997966-1283-APR22,833.20,BIG MAMA`S TAXI.
Children and Young Peoples Services,Head of Education and Skills,Transport,230007,Contract Hire,04/05/2022,3997966-6069-APR22,879.78,BIG MAMA`S TAXI.
Children and Young Peoples Services,Head of Education and Skills,Transport,230010,Contract Hire,04/05/2022,3997966-BL035-APR22,966.89,BIG MAMA`S TAXI.
Children and Young Peoples Services,Head of Education and Skills,Transport,230006,Contract Hire,04/05/2022,3997966-F109-APR22,"1,209.10",BIG MAMA`S TAXI.
Children and Young Peoples Services,Head of Education and Skills,Transport,230007,Contract Hire,04/05/2022,3997969-F-APR22,"1,756.70",BOBS TAXIS.
Children and Young Peoples Services,Head of Education and Skills,Transport,230008,Contract Hire,04/05/2022,3997989-073,"1,471.14",CHANNER`S CABS.
Children and Young Peoples Services,Head of Education and Skills,Transport,230008,Contract Hire,04/05/2022,3997998-INV-074,540.00,CLARE LYNSEY STEWART T/A K&C TAXIS.
Children and Young Peoples Services,Head of Education and Skills,Transport,230008,Contract Hire,04/05/2022,3998004-1771,"1,699.28",CONNORS MINI BUSES.*
Children and Young Peoples Services,Head of Education and Skills,Transport,230006,Contract Hire,04/05/2022,3998004-1772,"1,300.09",CONNORS MINI BUSES.*
Children and Young Peoples Services,Head of Education and Skills,Transport,230008,Contract Hire,04/05/2022,3998004-1773,"1,137.51",CONNORS MINI BUSES.*
Children and Young Peoples Services,Head of Education and Skills,Transport,230008,Contract Hire,04/05/2022,3998004-1774,979.00,CONNORS MINI BUSES.*
Children and Young Peoples Services,Head of Education and Skills,Transport,230008,Contract Hire,04/05/2022,3998022-1770,663.68,DA TAXIS.
Children and Young Peoples Services,Head of Education and Skills,Transport,230008,Contract Hire,04/05/2022,3998022-1771,854.88,DA TAXIS.
Children and Young Peoples Services,Head of Education and Skills,Transport,230008,Contract Hire,04/05/2022,3998022-1772,880.00,DA TAXIS.
Children and Young Peoples Services,Head of Education and Skills,Transport,230008,Contract Hire,04/05/2022,3998023-532,"1,324.10",DA TRAVEL.
Children and Young Peoples Services,Head of Education and Skills,Transport,230008,Contract Hire,04/05/2022,3998023-533,908.00,DA TRAVEL.
Children and Young Peoples Services,Head of Education and Skills,Transport,230006,Contract Hire,04/05/2022,3998023-535,725.90,DA TRAVEL.
Children and Young Peoples Services,Head of Education and Skills,Transport,230008,Contract Hire,04/05/2022,3998023-536,572.72,DA TRAVEL.
Children and Young Peoples Services,Head of Education and Skills,Transport,230007,Contract Hire,04/05/2022,3998025-62-4227,"2,079.00",DANNY`S TRAVEL.
Children and Young Peoples Services,Head of Education and Skills,Transport,230003,Contract Hire,04/05/2022,3998025-62-4270,"1,195.00",DANNY`S TRAVEL.
Children and Young Peoples Services,Head of Education and Skills,Transport,230008,Contract Hire,04/05/2022,3998064-E003-APR22,"1,170.00",FAIR FARE TRAVEL (TAXIS).
Children and Young Peoples Services,Head of Education and Skills,Transport,230008,Contract Hire,04/05/2022,3998076-102834,931.28,G & P JOHNSON LTD T/A NIGHTINGALE COACHES.
Children and Young Peoples Services,Head of Education and Skills,Transport,230009,Contract Hire,04/05/2022,3998077-1-APR22,948.60,G ANGHEL T/A A TAXI.
Children and Young Peoples Services,Head of Education and Skills,Transport,230007,Contract Hire,04/05/2022,3998079-23491-4034,"1,529.00",GARNETTS LTD (COACHES).
Children and Young Peoples Services,Head of Education and Skills,Transport,230007,Contract Hire,04/05/2022,3998079-23491-4035,"1,595.00",GARNETTS LTD (COACHES).
Children and Young Peoples Services,Head of Education and Skills,Transport,230007,Contract Hire,04/05/2022,3998079-23491-4037,"3,058.00",GARNETTS LTD (COACHES).
Children and Young Peoples Services,Head of Education and Skills,Transport,230007,Contract Hire,04/05/2022,3998079-23491-4038,"1,815.00",GARNETTS LTD (COACHES).
Children and Young Peoples Services,Head of Education and Skills,Transport,230034,Contract Hire,04/05/2022,3998080-SM008,792.00,GARY JACKSON PRIVATE HIRE.
Children and Young Peoples Services,Head of Education and Skills,Transport,230008,Contract Hire,04/05/2022,3998087-88,"1,466.02",GP TAXIS.
Adult and Health Services,Head of Adults,Transport,230005,Contract Hire,04/05/2022,3998094-126,950.00,HAMLET TAXIS.
Children and Young Peoples Services,Head of Education and Skills,Transport,230006,Contract Hire,04/05/2022,3998094-127,814.76,HAMLET TAXIS.
Children and Young Peoples Services,Head of Education and Skills,Transport,230008,Contract Hire,04/05/2022,3998103-805,"1,270.00",HEPWORTHS TRAVEL.
Children and Young Peoples Services,Head of Education and Skills,Transport,230008,Contract Hire,04/05/2022,3998103-806,"1,200.00",HEPWORTHS TRAVEL.
Children and Young Peoples Services,Head of Education and Skills,Transport,230008,Contract Hire,04/05/2022,3998103-807,"1,200.00",HEPWORTHS TRAVEL.
Children and Young Peoples Services,Head of Education and Skills,Transport,230007,Contract Hire,04/05/2022,3998103-808,"1,320.00",HEPWORTHS TRAVEL.
Children and Young Peoples Services,Head of Education and Skills,Transport,230008,Contract Hire,04/05/2022,3998110-1054,"1,266.00",I & R EXECUTIVE TRAVEL.
Children and Young Peoples Services,Head of Education and Skills,Transport,230008,Contract Hire,04/05/2022,3998110-1055,989.20,I & R EXECUTIVE TRAVEL.
Adult and Health Services,Head of Adults,Transport,230005,Contract Hire,04/05/2022,3998110-1056,"1,871.88",I & R EXECUTIVE TRAVEL.
Adult and Health Services,Head of Adults,Transport,230005,Contract Hire,04/05/2022,3998123-0859,979.00,JACKSON`S TAXI.
Adult and Health Services,Head of Adults,Transport,230005,Contract Hire,04/05/2022,3998123-0860,"1,987.50",JACKSON`S TAXI.
Children and Young Peoples Services,Head of Education and Skills,Transport,230008,Contract Hire,04/05/2022,3998123-0862,"1,021.32",JACKSON`S TAXI.
Children and Young Peoples Services,Head of Education and Skills,Transport,230009,Contract Hire,04/05/2022,3998123-0863,660.00,JACKSON`S TAXI.
Children and Young Peoples Services,Head of Education and Skills,Transport,230008,Contract Hire,04/05/2022,3998123-0864,"1,403.60",JACKSON`S TAXI.
Adult and Health Services,Head of Adults,Transport,230005,Contract Hire,04/05/2022,3998123-0865,"1,130.00",JACKSON`S TAXI.
Children and Young Peoples Services,Head of Education and Skills,Transport,230006,Contract Hire,04/05/2022,3998130-8-21/22,665.80,JOHN BELL TAXI.
Adult and Health Services,Head of Adults,Transport,230005,Contract Hire,04/05/2022,3998131-36-APRIL22,"1,590.30",JOHN CRAKE & SONS MINI BUSES LTD.
Adult and Health Services,Head of Adults,Transport,230005,Contract Hire,04/05/2022,3998131-37-APRIL22,560.00,JOHN CRAKE & SONS MINI BUSES LTD.
Children and Young Peoples Services,Head of Education and Skills,Transport,230006,Contract Hire,04/05/2022,3998142-008,700.00,KELLY`S.
Children and Young Peoples Services,Head of Education and Skills,Transport,230006,Contract Hire,04/05/2022,3998153-2014,966.40,LD TAXIS.
Children and Young Peoples Services,Head of Education and Skills,Transport,230007,Contract Hire,04/05/2022,3998153-2015,770.00,LD TAXIS.
Children and Young Peoples Services,Head of Education and Skills,Transport,230006,Contract Hire,04/05/2022,3998153-2016,770.00,LD TAXIS.
Children and Young Peoples Services,Head of Education and Skills,Transport,230008,Contract Hire,04/05/2022,3998153-2017,962.94,LD TAXIS.
Adult and Health Services,Head of Adults,Transport,230005,Contract Hire,04/05/2022,3998153-2018,"1,426.14",LD TAXIS.
Children and Young Peoples Services,Head of Education and Skills,Transport,230008,Contract Hire,04/05/2022,3998153-2020,"1,199.79",LD TAXIS.
Children and Young Peoples Services,Head of Education and Skills,Transport,230007,Contract Hire,04/05/2022,3998153-2021,704.00,LD TAXIS.
Children and Young Peoples Services,Head of Education and Skills,Transport,230003,Contract Hire,04/05/2022,3998156-30868,"2,048.10",LEE`S COACHES LTD.
Children and Young Peoples Services,Head of Education and Skills,Transport,230003,Contract Hire,04/05/2022,3998156-30869,"2,483.60",LEE`S COACHES LTD.
Children and Young Peoples Services,Head of Education and Skills,Transport,230003,Contract Hire,04/05/2022,3998156-30870,"2,498.10",LEE`S COACHES LTD.
Children and Young Peoples Services,Head of Education and Skills,Transport,230007,Contract Hire,04/05/2022,3998156-30871,"1,134.98",LEE`S COACHES LTD.
Children and Young Peoples Services,Head of Education and Skills,Transport,230007,Contract Hire,04/05/2022,3998156-30872,"2,155.89",LEE`S COACHES LTD.
Children and Young Peoples Services,Head of Education and Skills,Transport,230007,Contract Hire,04/05/2022,3998156-30873,"1,265.00",LEE`S COACHES LTD.
Children and Young Peoples Services,Head of Education and Skills,Transport,230007,Contract Hire,04/05/2022,3998156-30874,"1,265.00",LEE`S COACHES LTD.
Children and Young Peoples Services,Head of Education and Skills,Transport,230007,Contract Hire,04/05/2022,3998156-30875,"1,650.00",LEE`S COACHES LTD.
Adult and Health Services,Head of Adults,Transport,230005,Contract Hire,04/05/2022,3998157-PEACO012,610.48,LETS TRAVEL.
Children and Young Peoples Services,Head of Education and Skills,Transport,230007,Contract Hire,04/05/2022,3998215-APRIL2022/5431,880.00,ND TAXIS.
Children and Young Peoples Services,Head of Education and Skills,Transport,230007,Contract Hire,04/05/2022,3998235-7168,"1,859.00",NORTH EAST COACHWAYS LTD.
Children and Young Peoples Services,Head of Education and Skills,Transport,230007,Contract Hire,04/05/2022,3998235-7169,"1,639.00",NORTH EAST COACHWAYS LTD.
Children and Young Peoples Services,Head of Education and Skills,Transport,230007,Contract Hire,04/05/2022,3998235-7170,"3,278.00",NORTH EAST COACHWAYS LTD.
Children and Young Peoples Services,Head of Education and Skills,Transport,230007,Contract Hire,04/05/2022,3998235-7171,"1,320.00",NORTH EAST COACHWAYS LTD.
Children and Young Peoples Services,Head of Education and Skills,Transport,230007,Contract Hire,04/05/2022,3998235-7172,"1,375.00",NORTH EAST COACHWAYS LTD.
Children and Young Peoples Services,Head of Education and Skills,Transport,230007,Contract Hire,04/05/2022,3998235-7173,"1,474.00",NORTH EAST COACHWAYS LTD.
Children and Young Peoples Services,Head of Education and Skills,Transport,230007,Contract Hire,04/05/2022,3998235-7174,"1,529.00",NORTH EAST COACHWAYS LTD.
Children and Young Peoples Services,Head of Education and Skills,Transport,230034,Contract Hire,04/05/2022,3998240-240463,924.00,NORTHUMBERLAND COUNTY COUNCIL.
Children and Young Peoples Services,Head of Education and Skills,Transport,230006,Contract Hire,04/05/2022,3998261-47141,"1,229.52",PHOENIX TAXIS T/A PRATT`S TAXIS.
Children and Young Peoples Services,Head of Education and Skills,Transport,230008,Contract Hire,04/05/2022,3998308-22501,"1,311.93",SHOTTON PRIVATE HIRE.
Children and Young Peoples Services,Head of Education and Skills,Transport,230007,Contract Hire,04/05/2022,3998308-22502,807.50,SHOTTON PRIVATE HIRE.
Children and Young Peoples Services,Head of Education and Skills,Transport,230008,Contract Hire,04/05/2022,3998308-22503,"1,305.00",SHOTTON PRIVATE HIRE.
Children and Young Peoples Services,Head of Education and Skills,Transport,230008,Contract Hire,04/05/2022,3998308-22504,"1,185.84",SHOTTON PRIVATE HIRE.
Children and Young Peoples Services,Head of Education and Skills,Transport,230008,Contract Hire,04/05/2022,3998308-22505,"1,705.00",SHOTTON PRIVATE HIRE.
Children and Young Peoples Services,Head of Education and Skills,Transport,230008,Contract Hire,04/05/2022,3998308-22506,"1,350.00",SHOTTON PRIVATE HIRE.
Children and Young Peoples Services,Head of Education and Skills,Transport,230008,Contract Hire,04/05/2022,3998308-22507,"1,022.00",SHOTTON PRIVATE HIRE.
Children and Young Peoples Services,Head of Education and Skills,Transport,230008,Contract Hire,04/05/2022,3998308-22508,"1,374.28",SHOTTON PRIVATE HIRE.
Children and Young Peoples Services,Head of Education and Skills,Transport,230008,Contract Hire,04/05/2022,3998334-DCC/2021/79,"1,726.01",TAYLOR`S TAXIS.
Children and Young Peoples Services,Head of Education and Skills,Transport,230008,Contract Hire,04/05/2022,3998334-DCC/2021/80,"1,075.68",TAYLOR`S TAXIS.
Children and Young Peoples Services,Head of Education and Skills,Transport,230006,Contract Hire,04/05/2022,3998334-DCC/2021/81,"1,531.74",TAYLOR`S TAXIS.
Children and Young Peoples Services,Head of Education and Skills,Transport,230035,Contract Hire,04/05/2022,3998334-DCC/2021/82,715.00,TAYLOR`S TAXIS.
Children and Young Peoples Services,Head of Education and Skills,Transport,230034,Contract Hire,04/05/2022,3998334-DCC/2021/83,"1,009.44",TAYLOR`S TAXIS.
Children and Young Peoples Services,Head of Education and Skills,Transport,230009,Contract Hire,04/05/2022,3997937-6-APR22,839.41,REDACTED - PAYMENT TO INDIVIDUAL
Children and Young Peoples Services,Head of Education and Skills,Transport,230010,Contract Hire,04/05/2022,3997937-8-APR22-BL007,848.76,REDACTED - PAYMENT TO INDIVIDUAL
Dedicated Schools Grant BG0015,DSG High Needs Block,Transport,230009,Contract Hire,04/05/2022,3998020-0113066-1,"1,101.26",REDACTED - PAYMENT TO INDIVIDUAL
Children and Young Peoples Services,Head of Education and Skills,Transport,230007,Contract Hire,04/05/2022,3998021-290422,550.00,REDACTED - PAYMENT TO INDIVIDUAL
Children and Young Peoples Services,Head of Education and Skills,Transport,230035,Contract Hire,04/05/2022,3998021-WHIT290422,682.00,REDACTED - PAYMENT TO INDIVIDUAL
Children and Young Peoples Services,Head of Education and Skills,Transport,230008,Contract Hire,04/05/2022,3998026-14,"1,738.55",REDACTED - PAYMENT TO INDIVIDUAL
Children and Young Peoples Services,Head of Education and Skills,Transport,230008,Contract Hire,04/05/2022,3998028-0088,"1,864.50",REDACTED - PAYMENT TO INDIVIDUAL
Children and Young Peoples Services,Head of Education and Skills,Transport,230008,Contract Hire,04/05/2022,3998032-02/2022-W016,"3,217.66",REDACTED - PAYMENT TO INDIVIDUAL
Children and Young Peoples Services,Head of Education and Skills,Transport,230006,Contract Hire,04/05/2022,3998081-13C,"1,416.00",REDACTED - PAYMENT TO INDIVIDUAL
Children and Young Peoples Services,Head of Education and Skills,Transport,230006,Contract Hire,04/05/2022,3998096-08-APR22,633.60,REDACTED - PAYMENT TO INDIVIDUAL
Children and Young Peoples Services,Head of Education and Skills,Transport,230006,Contract Hire,04/05/2022,3998096-62,"1,085.59",REDACTED - PAYMENT TO INDIVIDUAL
Adult and Health Services,Head of Adults,Transport,230005,Contract Hire,04/05/2022,3998132-01042022,840.23,REDACTED - PAYMENT TO INDIVIDUAL
Children and Young Peoples Services,Head of Education and Skills,Transport,230006,Contract Hire,04/05/2022,3998133-261,616.00,REDACTED - PAYMENT TO INDIVIDUAL
Children and Young Peoples Services,Head of Education and Skills,Transport,230010,Contract Hire,04/05/2022,3998143-BRIDGE0006,"1,557.00",REDACTED - PAYMENT TO INDIVIDUAL
Children and Young Peoples Services,Head of Education and Skills,Transport,230013,Contract Hire,04/05/2022,3998149-007-6058,704.00,REDACTED - PAYMENT TO INDIVIDUAL
Children and Young Peoples Services,Head of Education and Skills,Transport,230008,Contract Hire,04/05/2022,3998158-74,"1,080.00",REDACTED - PAYMENT TO INDIVIDUAL
Children and Young Peoples Services,Head of Education and Skills,Transport,230008,Contract Hire,04/05/2022,3998158-75,"1,639.00",REDACTED - PAYMENT TO INDIVIDUAL
Children and Young Peoples Services,Head of Education and Skills,Transport,230008,Contract Hire,04/05/2022,3998176-8,823.50,REDACTED - PAYMENT TO INDIVIDUAL
Children and Young Peoples Services,Head of Education and Skills,Transport,230008,Contract Hire,04/05/2022,3998177-93,540.00,REDACTED - PAYMENT TO INDIVIDUAL
Children and Young Peoples Services,Head of Education and Skills,Transport,230008,Contract Hire,04/05/2022,3998184-INV234,737.00,REDACTED - PAYMENT TO INDIVIDUAL
Children and Young Peoples Services,Head of Education and Skills,Transport,230006,Contract Hire,04/05/2022,3998184-INV235,748.00,REDACTED - PAYMENT TO INDIVIDUAL
Children and Young Peoples Services,Head of Education and Skills,Transport,230008,Contract Hire,04/05/2022,3998197-CROFT1-04-22,"1,234.56",REDACTED - PAYMENT TO INDIVIDUAL
Children and Young Peoples Services,Head of Education and Skills,Transport,230009,Contract Hire,04/05/2022,3998197-FRAM1-04022,823.20,REDACTED - PAYMENT TO INDIVIDUAL
Children and Young Peoples Services,Head of Education and Skills,Transport,230008,Contract Hire,04/05/2022,3998197-OAK1-04-22,"1,339.20",REDACTED - PAYMENT TO INDIVIDUAL
Children and Young Peoples Services,Head of Education and Skills,Transport,230008,Contract Hire,04/05/2022,3998197-OAK2-4-22,"1,079.55",REDACTED - PAYMENT TO INDIVIDUAL
Children and Young Peoples Services,Head of Education and Skills,Transport,230008,Contract Hire,04/05/2022,3998197-THPK04-22,"1,066.52",REDACTED - PAYMENT TO INDIVIDUAL
Children and Young Peoples Services,Head of Education and Skills,Transport,230012,Contract Hire,04/05/2022,3998198-E054-8,"1,199.00",REDACTED - PAYMENT TO INDIVIDUAL
Children and Young Peoples Services,Head of Education and Skills,Transport,230007,Contract Hire,04/05/2022,3998200-5428-APR22,848.00,REDACTED - PAYMENT TO INDIVIDUAL
Children and Young Peoples Services,Head of Education and Skills,Transport,230008,Contract Hire,04/05/2022,3998200-A046-APR22,"1,700.00",REDACTED - PAYMENT TO INDIVIDUAL
Children and Young Peoples Services,Head of Education and Skills,Transport,230012,Contract Hire,04/05/2022,3998200-E037-APR22,843.70,REDACTED - PAYMENT TO INDIVIDUAL
Children and Young Peoples Services,Head of Education and Skills,Transport,230008,Contract Hire,04/05/2022,3998200-E049-APR22,"1,727.28",REDACTED - PAYMENT TO INDIVIDUAL
Children and Young Peoples Services,Head of Education and Skills,Transport,230006,Contract Hire,04/05/2022,3998200-E217-APR22,"1,430.00",REDACTED - PAYMENT TO INDIVIDUAL
Children and Young Peoples Services,Head of Education and Skills,Transport,230008,Contract Hire,04/05/2022,3998200-M020-APR22,"1,310.40",REDACTED - PAYMENT TO INDIVIDUAL
Children and Young Peoples Services,Head of Education and Skills,Transport,230010,Contract Hire,04/05/2022,3998200-PL013-APR22,"1,620.00",REDACTED - PAYMENT TO INDIVIDUAL
Children and Young Peoples Services,Head of Education and Skills,Transport,230008,Contract Hire,04/05/2022,3998202-274,"1,590.84",REDACTED - PAYMENT TO INDIVIDUAL
Children and Young Peoples Services,Head of Education and Skills,Transport,230008,Contract Hire,04/05/2022,3998202-275,"1,113.53",REDACTED - PAYMENT TO INDIVIDUAL
Children and Young Peoples Services,Head of Education and Skills,Transport,230012,Contract Hire,04/05/2022,3998202-276,"1,824.05",REDACTED - PAYMENT TO INDIVIDUAL
Children and Young Peoples Services,Head of Education and Skills,Transport,230012,Contract Hire,04/05/2022,3998202-277,990.00,REDACTED - PAYMENT TO INDIVIDUAL
Children and Young Peoples Services,Head of Education and Skills,Transport,230008,Contract Hire,04/05/2022,3998202-278,"1,650.00",REDACTED - PAYMENT TO INDIVIDUAL
Children and Young Peoples Services,Head of Education and Skills,Transport,230008,Contract Hire,04/05/2022,3998202-279,"1,260.82",REDACTED - PAYMENT TO INDIVIDUAL
Children and Young Peoples Services,Head of Education and Skills,Transport,230008,Contract Hire,04/05/2022,3998202-280,"1,078.00",REDACTED - PAYMENT TO INDIVIDUAL
Children and Young Peoples Services,Head of Education and Skills,Transport,230009,Contract Hire,04/05/2022,3998202-281,869.88,REDACTED - PAYMENT TO INDIVIDUAL
Children and Young Peoples Services,Head of Education and Skills,Transport,230008,Contract Hire,04/05/2022,3998202-282,"1,008.48",REDACTED - PAYMENT TO INDIVIDUAL
Adult and Health Services,Head of Adults,Transport,230005,Contract Hire,04/05/2022,3998202-283,784.00,REDACTED - PAYMENT TO INDIVIDUAL
Adult and Health Services,Head of Adults,Transport,230005,Contract Hire,04/05/2022,3998202-284,560.00,REDACTED - PAYMENT TO INDIVIDUAL
Children and Young Peoples Services,Head of Education and Skills,Transport,230008,Contract Hire,04/05/2022,3998204-0069,"1,487.50",REDACTED - PAYMENT TO INDIVIDUAL
Children and Young Peoples Services,Head of Education and Skills,Transport,230006,Contract Hire,04/05/2022,3998204-070,693.00,REDACTED - PAYMENT TO INDIVIDUAL
Children and Young Peoples Services,Head of Education and Skills,Transport,230008,Contract Hire,04/05/2022,3998204-071,"1,248.00",REDACTED - PAYMENT TO INDIVIDUAL
Children and Young Peoples Services,Head of Education and Skills,Transport,230008,Contract Hire,04/05/2022,3998204-072,967.50,REDACTED - PAYMENT TO INDIVIDUAL
Children and Young Peoples Services,Head of Education and Skills,Transport,230008,Contract Hire,04/05/2022,3998206-3220,825.75,REDACTED - PAYMENT TO INDIVIDUAL
Children and Young Peoples Services,Head of Education and Skills,Transport,230008,Contract Hire,04/05/2022,3998206-3221,"1,425.93",REDACTED - PAYMENT TO INDIVIDUAL
Children and Young Peoples Services,Head of Education and Skills,Transport,230008,Contract Hire,04/05/2022,3998206-3222,"2,200.00",REDACTED - PAYMENT TO INDIVIDUAL
Children and Young Peoples Services,Head of Education and Skills,Transport,230010,Contract Hire,04/05/2022,3998207-311230,"1,150.16",REDACTED - PAYMENT TO INDIVIDUAL
Children and Young Peoples Services,Head of Education and Skills,Transport,230007,Contract Hire,04/05/2022,3998207-311231,550.00,REDACTED - PAYMENT TO INDIVIDUAL
Children and Young Peoples Services,Head of Education and Skills,Transport,230035,Contract Hire,04/05/2022,3998207-311232,"1,199.66",REDACTED - PAYMENT TO INDIVIDUAL
Children and Young Peoples Services,Head of Education and Skills,Transport,230008,Contract Hire,04/05/2022,3998219-86,"1,320.00",REDACTED - PAYMENT TO INDIVIDUAL
Children and Young Peoples Services,Head of Education and Skills,Transport,230007,Contract Hire,04/05/2022,3998223-280,"1,169.63",REDACTED - PAYMENT TO INDIVIDUAL
Children and Young Peoples Services,Head of Education and Skills,Transport,230008,Contract Hire,04/05/2022,3998260-76,849.36,REDACTED - PAYMENT TO INDIVIDUAL
Children and Young Peoples Services,Head of Education and Skills,Transport,230006,Contract Hire,04/05/2022,3998323-F859-APR22,823.05,REDACTED - PAYMENT TO INDIVIDUAL
Children and Young Peoples Services,Head of Education and Skills,Transport,230007,Contract Hire,04/05/2022,3998327-86,621.27,REDACTED - PAYMENT TO INDIVIDUAL
Adult and Health Services,Public Health CC0450,Third Party Payments,460803,Contract Payments,04/05/2022,3997925-INV03927,"3,750.00",ADFERIAD RECOVERY LTD.
Adult and Health Services,Public Health CC0450,Third Party Payments,460803,Contract Payments,04/05/2022,3997936-INV-1179,"2,390.00",AN COMPUTING LTD.
Adult and Health Services,Public Health CC0450,Third Party Payments,460803,Contract Payments,04/05/2022,3998099-2510044149,"929,271.75",HARROGATE & DISTRICT NHS FOUNDATION TRUST.
Adult and Health Services,Public Health CC0450,Third Party Payments,460803,Contract Payments,04/05/2022,3998099-2510044153,"929,271.75",HARROGATE & DISTRICT NHS FOUNDATION TRUST.
Neighbourhoods and Climate Change,Technical Services CM0300,Supplies and Services,304221,Equipment and Materials,04/05/2022,3997919-011997,"1,450.35",A HILL & SONS LTD.
Regeneration Economy and Growth,Corporate Property and Land,Supplies and Services,304221,Equipment and Materials,04/05/2022,3997986-7185,800.00,CENTURY FABRICATIONS LTD.
Regeneration Economy and Growth,Corporate Property and Land,Supplies and Services,304221,Equipment and Materials,04/05/2022,3998003-55981,698.89,COMPLETE DETECTION SYSTEMS LTD (CDS).
Neighbourhoods and Climate Change,Environmental Services,Supplies and Services,304221,Equipment and Materials,04/05/2022,3998047-0000083978,654.09,EAST RIDING HORTICULTURE LTD.
Neighbourhoods and Climate Change,Environmental Services,Supplies and Services,304221,Equipment and Materials,04/05/2022,3998047-0000084414,913.44,EAST RIDING HORTICULTURE LTD.
Regeneration Economy and Growth,Corporate Property and Land,Supplies and Services,304221,Equipment and Materials,04/05/2022,3998050-059-295246,"6,803.70",EDMUNDSON ELECTRICAL LTD.
Regeneration Economy and Growth,Corporate Property and Land,Supplies and Services,304221,Equipment and Materials,04/05/2022,3998050-059-299620,588.38,EDMUNDSON ELECTRICAL LTD.
Regeneration Economy and Growth,Corporate Property and Land,Supplies and Services,304221,Equipment and Materials,04/05/2022,3998050-059-299630,541.43,EDMUNDSON ELECTRICAL LTD.
Regeneration Economy and Growth,Corporate Property and Land,Supplies and Services,304221,Equipment and Materials,04/05/2022,3998050-059-299790,974.00,EDMUNDSON ELECTRICAL LTD.
Regeneration Economy and Growth,Corporate Property and Land,Supplies and Services,304221,Equipment and Materials,04/05/2022,3998050-059-299845,805.55,EDMUNDSON ELECTRICAL LTD.
Regeneration Economy and Growth,Corporate Property and Land,Supplies and Services,304221,Equipment and Materials,04/05/2022,3998050-059-299920,"1,716.08",EDMUNDSON ELECTRICAL LTD.
Regeneration Economy and Growth,Corporate Property and Land,Supplies and Services,304221,Equipment and Materials,04/05/2022,3998050-059-299965,612.80,EDMUNDSON ELECTRICAL LTD.
Regeneration Economy and Growth,Corporate Property and Land,Supplies and Services,304221,Equipment and Materials,04/05/2022,3998050-059-300078,800.33,EDMUNDSON ELECTRICAL LTD.
Regeneration Economy and Growth,Corporate Property and Land,Supplies and Services,304221,Equipment and Materials,04/05/2022,3998112-SI19243509,835.03,ICI DULUX DECORATOR CENTRES.
Regeneration Economy and Growth,Corporate Property and Land,Supplies and Services,304221,Equipment and Materials,04/05/2022,3998112-SI19253376,"1,399.49",ICI DULUX DECORATOR CENTRES.
Regeneration Economy and Growth,Corporate Property and Land,Supplies and Services,304221,Equipment and Materials,04/05/2022,3998139-0107/00634329,"1,025.20",JT DOVE LTD.
Regeneration Economy and Growth,Corporate Property and Land,Supplies and Services,304221,Equipment and Materials,04/05/2022,3998139-0113/00633152,"1,050.82",JT DOVE LTD.
Regeneration Economy and Growth,Corporate Property and Land,Supplies and Services,304221,Equipment and Materials,04/05/2022,3998139-0213/00635452,816.59,JT DOVE LTD.
Neighbourhoods and Climate Change,Technical Services CM0300,Supplies and Services,304221,Equipment and Materials,04/05/2022,3998139-0303/00636549,615.70,JT DOVE LTD.
Regeneration Economy and Growth,Corporate Property and Land,Supplies and Services,304221,Equipment and Materials,04/05/2022,3998163-5370466,555.55,LONDON GENERAL SALES LTD.
Regeneration Economy and Growth,Transport and Contracted Services,Supplies and Services,304259,Equipment and Materials,04/05/2022,3998170-0000229146,"1,905.21",MANGAR INTERNATIONAL LTD.
Regeneration Economy and Growth,Culture Sport and Tourism,Supplies and Services,304259,Equipment and Materials,04/05/2022,3998187-INV-2825,770.00,MID NITE EXPRESS.
Regeneration Economy and Growth,Corporate Property and Land,Supplies and Services,304999,Equipment and Materials,04/05/2022,3998239-792921,550.00,NORTHERN TOOLS & ACCESSORIES.
Regeneration Economy and Growth,Corporate Property and Land,Supplies and Services,304221,Equipment and Materials,04/05/2022,3998331-791858,644.42,T CROSSLING & CO LTD.
Regeneration Economy and Growth,Corporate Property and Land,Supplies and Services,304221,Equipment and Materials,04/05/2022,3998331-792668,"1,696.95",T CROSSLING & CO LTD.
Regeneration Economy and Growth,Corporate Property and Land,Supplies and Services,304221,Equipment and Materials,04/05/2022,3998354-36610,547.00,TOTAL PUMP SOLUTIONS LTD.
Neighbourhoods and Climate Change,Technical Services CM0300,Supplies and Services,304040,Equipment and Materials,04/05/2022,3998355-110736,"1,228.20",TOTAL RENTAL SOLUTIONS.
Regeneration Economy and Growth,Transport and Contracted Services,Supplies and Services,304245,Equipment and Materials,04/05/2022,3998359-3IN/10389504,"1,400.00",TUNSTALL HEALTHCARE (UK) LTD.
Regeneration Economy and Growth,Transport and Contracted Services,Supplies and Services,304245,Equipment and Materials,04/05/2022,3998359-3IN/10389535,"4,840.00",TUNSTALL HEALTHCARE (UK) LTD.
Neighbourhoods and Climate Change,Environmental Services,Supplies and Services,304259,Equipment and Materials,04/05/2022,3998367-7501450862,768.00,VERIFONE (UK) LTD.
Regeneration Economy and Growth,Corporate Property and Land,Supplies and Services,304221,Equipment and Materials,04/05/2022,3998390-82172240,747.30,WOLSELEY UK LTD.
Neighbourhoods and Climate Change,Environmental Services,Supplies and Services,304221,Equipment and Materials,04/05/2022,3998395-0000039976,"2,310.00",WYBONE LTD.
Resources BK0010,Digital Services,Supplies and Services,304639,Equipment and Materials,04/05/2022,3998396-LB67275,800.00,XMA LTD.
Neighbourhoods and Climate Change,Environmental Services,Cap Exp on Grants & Other Financial Assistance (REFCUS),918501,Exp assets not owned by authority,04/05/2022,3998179-1313,"10,469.51",MARSDEN AES LTD.
Neighbourhoods and Climate Change,Environmental Services,Cap Exp on Grants & Other Financial Assistance (REFCUS),918501,Exp assets not owned by authority,04/05/2022,3998179-1315,"7,918.56",MARSDEN AES LTD.
Regeneration Economy and Growth,Culture Sport and Tourism,Supplies and Services,384199,Miscellaneous Expenses,04/05/2022,3998002-126O,"3,050.00",COMMENDIUM LTD.
Neighbourhoods and Climate Change,Environmental Services,Supplies and Services,384956,Miscellaneous Expenses,04/05/2022,3998060-Y00008867T,"4,599.90",ENVIRONMENT AGENCY.
Regeneration Economy and Growth,Culture Sport and Tourism,Supplies and Services,384237,Miscellaneous Expenses,04/05/2022,3998066-INV-0022,699.00,FEATHERBED TALES LTD.
Neighbourhoods and Climate Change,Environmental Services,Supplies and Services,384199,Miscellaneous Expenses,04/05/2022,3998140-1502,"9,550.58",JW BAINBRIDGE CONTRACTORS LTD.
Neighbourhoods and Climate Change,Environmental Services,Supplies and Services,384199,Miscellaneous Expenses,04/05/2022,3998140-1503,573.92,JW BAINBRIDGE CONTRACTORS LTD.
Regeneration Economy and Growth,Culture Sport and Tourism,Supplies and Services,384302,Miscellaneous Expenses,04/05/2022,3998168-23/4/22,"1,225.00",MAD ALICE THEATRE COMPANY LTD.
Children and Young Peoples Services,Head of Education and Skills,Supplies and Services,384199,Miscellaneous Expenses,04/05/2022,3998187-INV-2830,"1,375.00",MID NITE EXPRESS.
Adult and Health Services,Public Health CC0450,Supplies and Services,384155,Miscellaneous Expenses,04/05/2022,3998230-1000072980,"68,039.79",NHS BUSINESS SERVICES AUTHORITY (NHSBSA).
Regeneration Economy and Growth,Culture Sport and Tourism,Supplies and Services,384199,Miscellaneous Expenses,04/05/2022,3998245-00020326,"1,551.12",NSL LTD.
Regeneration Economy and Growth,Development and Housing,Supplies and Services,384999,Miscellaneous Expenses,04/05/2022,3998251-4100768859,900.00,P&M PROPERTIES.
Regeneration Economy and Growth,Culture Sport and Tourism,Supplies and Services,384956,Miscellaneous Expenses,04/05/2022,3998268-SIN2051048,563.56,PPL PRS LTD.
Regeneration Economy and Growth,Culture Sport and Tourism,Supplies and Services,384956,Miscellaneous Expenses,04/05/2022,3998268-SIN2051055,"1,205.40",PPL PRS LTD.
Neighbourhoods and Climate Change,Environmental Services,Supplies and Services,384199,Miscellaneous Expenses,04/05/2022,3998280-RAD51825,620.00,RA DALTON LTD.
Children and Young Peoples Services,Head of Early Help Inclusion & Vulnerable Children.,Supplies and Services,384199,Miscellaneous Expenses,04/05/2022,3998357-LINV48934,"2,238.75",TRINITY MEDICAL PROPERTIES LTD.
Children and Young Peoples Services,Head of Childrens Social Care,Third Party Payments,440046,Other third party payments E440,04/05/2022,3997981-21998,"1,770.00",CASTLE VIEW GROUP TRAINING.
Children and Young Peoples Services,Head of Childrens Social Care,Third Party Payments,440046,Other third party payments E440,04/05/2022,3997981-22000,"6,240.00",CASTLE VIEW GROUP TRAINING.
Children and Young Peoples Services,Head of Childrens Social Care,Third Party Payments,440046,Other third party payments E440,04/05/2022,3997981-22003,730.00,CASTLE VIEW GROUP TRAINING.
Children and Young Peoples Services,Head of Childrens Social Care,Third Party Payments,440046,Other third party payments E440,04/05/2022,3997981-22004,"8,962.50",CASTLE VIEW GROUP TRAINING.
Children and Young Peoples Services,Head of Childrens Social Care,Third Party Payments,440046,Other third party payments E440,04/05/2022,3997981-22006,"6,740.00",CASTLE VIEW GROUP TRAINING.
Children and Young Peoples Services,Head of Childrens Social Care,Third Party Payments,440046,Other third party payments E440,04/05/2022,3997981-22007,"6,720.00",CASTLE VIEW GROUP TRAINING.
Children and Young Peoples Services,Head of Childrens Social Care,Third Party Payments,440038,Other third party payments E440,04/05/2022,3998127-208,"27,320.40",JIGSAW RECOVERY PROJECT CIC.
Children and Young Peoples Services,Head of Childrens Social Care,Third Party Payments,440038,Other third party payments E440,04/05/2022,3998296-5950,"16,620.00",ROC FAMILY SUPPORT LTD.
Children and Young Peoples Services,Head of Childrens Social Care,Third Party Payments,440038,Other third party payments E440,04/05/2022,3998296-5951,"14,880.00",ROC FAMILY SUPPORT LTD.
Children and Young Peoples Services,Head of Childrens Social Care,Third Party Payments,440038,Other third party payments E440,04/05/2022,3998296-6057,"2,656.08",ROC FAMILY SUPPORT LTD.
Children and Young Peoples Services,Head of Childrens Social Care,Third Party Payments,440038,Other third party payments E440,04/05/2022,3998296-6058,"2,713.20",ROC FAMILY SUPPORT LTD.
Children and Young Peoples Services,Head of Childrens Social Care,Third Party Payments,440038,Other third party payments E440,04/05/2022,3998296-6059,"14,880.00",ROC FAMILY SUPPORT LTD.
Children and Young Peoples Services,Head of Childrens Social Care,Third Party Payments,440046,Other third party payments E440,04/05/2022,3998376-INV-3060,"3,464.16",WE CARE RECRUITMENT SOLUTIONS LTD.
Children and Young Peoples Services,Head of Childrens Social Care,Third Party Payments,440046,Other third party payments E440,04/05/2022,3998376-INV-3063,"4,041.52",WE CARE RECRUITMENT SOLUTIONS LTD.
Children and Young Peoples Services,Head of Childrens Social Care,Third Party Payments,440046,Other third party payments E440,04/05/2022,3998376-INV-3067,"2,474.40",WE CARE RECRUITMENT SOLUTIONS LTD.
Resources BK0010,Procurement Sales & Business Services,Supplies and Services,340001,Postages E340,04/05/2022,3998297-9064604762,"4,100.00",ROYAL MAIL GROUP PLC.
Regeneration Economy and Growth,Development and Housing,Supplies and Services,340001,Postages E340,04/05/2022,3998297-9064740491,"16,022.84",ROYAL MAIL GROUP PLC.
Regeneration Economy and Growth,Culture Sport and Tourism,Supplies and Services,324117,Provisions E324,04/05/2022,3997965-51083721,591.53,BIDFOOD.
Regeneration Economy and Growth,Culture Sport and Tourism,Supplies and Services,324117,Provisions E324,04/05/2022,3997965-51170389,622.53,BIDFOOD.
Regeneration Economy and Growth,Culture Sport and Tourism,Supplies and Services,324117,Provisions E324,04/05/2022,3997965-51199862,838.53,BIDFOOD.
Regeneration Economy and Growth,Culture Sport and Tourism,Supplies and Services,324117,Provisions E324,04/05/2022,3997965-51341044,634.79,BIDFOOD.
Regeneration Economy and Growth,Culture Sport and Tourism,Supplies and Services,324001,Provisions E324,04/05/2022,3998193-906520114,"2,795.19",MOLSON COORS BREWING COMPANY (UK) LTD.
Adult and Health Services,Head of Adults,Third Party Payments,472101,Purchase of Care,04/05/2022,3998102-I-22-4482826,"24,328.53",HELPING HANDS HOME CARE.
Neighbourhoods and Climate Change,Environmental Services,Third Party Payments,430100,Rendered by Private Contractors,04/05/2022,3997926-INV/28732,"2,032.00",ADMEC ENVIRONMENTAL SERVICES LTD.
Regeneration Economy and Growth,Corporate Property and Land,Third Party Payments,430100,Rendered by Private Contractors,04/05/2022,3997982-9454,693.00,CATHEDRAL LOCK & SAFE SERVICES LTD.
Neighbourhoods and Climate Change,Environmental Services,Third Party Payments,430100,Rendered by Private Contractors,04/05/2022,3997995-CN30176089,591.78,CITRON HYGIENE UK LTD.
Regeneration Economy and Growth,Corporate Property and Land,Third Party Payments,430100,Rendered by Private Contractors,04/05/2022,3998117-12549,"1,221.75",INGLEFORD SCAFFOLDING LTD.
Regeneration Economy and Growth,Corporate Property and Land,Third Party Payments,430100,Rendered by Private Contractors,04/05/2022,3998117-12551,987.00,INGLEFORD SCAFFOLDING LTD.
Neighbourhoods and Climate Change,Technical Services CM0300,Third Party Payments,430100,Rendered by Private Contractors,04/05/2022,3998270-174167,"2,419.00",PREMIER TRAFFIC MANAGEMENT LTD.
Neighbourhoods and Climate Change,Environmental Services,Third Party Payments,430113,Rendered by Private Contractors,04/05/2022,3998309-182367,772.32,SHOWSEC INTERNATIONAL LTD.
Regeneration Economy and Growth,Corporate Property and Land,Third Party Payments,430100,Rendered by Private Contractors,04/05/2022,3998314-34010,"11,598.00",SOUND REDUCTION SYSTEMS LTD (SRS).
Neighbourhoods and Climate Change,Technical Services CM0300,Third Party Payments,430128,Rendered by Private Contractors,04/05/2022,3998373-50570,"3,406.00",W MARLEY AGRICULTURAL CONTRACTORS LTD.
Regeneration Economy and Growth,Transport and Contracted Services,Third Party Payments,430106,Rendered by Private Contractors,04/05/2022,3998278-2132,"4,448.88",REDACTED - PAYMENT TO INDIVIDUAL
Regeneration Economy and Growth,Culture Sport and Tourism,Third Party Payments,430131,Rendered by Private Contractors,04/05/2022,3998186-2022017,844.00,REDACTED - PAYMENT TO INDIVIDUAL
Neighbourhoods and Climate Change,Environmental Services,Transport,215005,Running Costs of Vehicles,04/05/2022,3998400-928805,"22,236.80",YOUR NRG LTD.
Neighbourhoods and Climate Change,Environmental Services,Transport,215005,Running Costs of Vehicles,04/05/2022,3998400-928806,"2,822.19",YOUR NRG LTD.
Neighbourhoods and Climate Change,Environmental Services,Transport,215005,Running Costs of Vehicles,04/05/2022,3998400-928809,"6,983.19",YOUR NRG LTD.
Neighbourhoods and Climate Change,Environmental Services,Transport,215005,Running Costs of Vehicles,04/05/2022,3998400-931694,"17,397.50",YOUR NRG LTD.
Regeneration Economy and Growth,Corporate Property and Land,Premises,108099,Service Repairs and Maintenance,04/05/2022,3998391-226225,"4,500.00",WOLSINGHAM LOGS.
Resources BK0010,Legal & Democratic Services,Supplies and Services,338042,Services,04/05/2022,3998030-358021/INVSRG208,"1,187.50",DERE STREET BARRISTERS.
Children and Young Peoples Services,Head of Education and Skills,Supplies and Services,338094,Services,04/05/2022,3998063-0000000776,539.95,EXCEL ACADEMY PARTNERSHIP T/A FRAMWELLGATE SCHOOL DURHAM.
Children and Young Peoples Services,Head of Education and Skills,Supplies and Services,338094,Services,04/05/2022,3998063-0000000778,528.00,EXCEL ACADEMY PARTNERSHIP T/A FRAMWELLGATE SCHOOL DURHAM.
Resources BK0010,Legal & Democratic Services,Supplies and Services,338025,Services,04/05/2022,3998097-22-085,650.00,HARDYS FUNERAL SERVICE.
Children and Young Peoples Services,Head of Childrens Social Care,Supplies and Services,338045,Services,04/05/2022,3998111-INV-0365,"1,393.20",IBJ CONSULTING LTD.
Regeneration Economy and Growth,Transport and Contracted Services,Supplies and Services,338099,Services,04/05/2022,3998114-109843,895.00,IMPACT MARKETING & PUBLICITY.
Regeneration Economy and Growth,Transport and Contracted Services,Supplies and Services,338099,Services,04/05/2022,3998114-109845,895.00,IMPACT MARKETING & PUBLICITY.
Children and Young Peoples Services,Head of Childrens Social Care,Supplies and Services,338044,Services,04/05/2022,3998119-427,"1,131.36",INVICTUS MEDICAL LTD.
Children and Young Peoples Services,Head of Childrens Social Care,Supplies and Services,338099,Services,04/05/2022,3998122-20000008443,"37,008.00",ITV BROADCASTING LTD T/A ITV PLC.
Regeneration Economy and Growth,Business Durham CL0850,Supplies and Services,338066,Services,04/05/2022,3998183-INV-0536,660.00,MCDONOUGH MARKETING COMMUNICATIONS LTD T/A MMC.
Regeneration Economy and Growth,Culture Sport and Tourism,Supplies and Services,338047,Services,04/05/2022,3998238-INV0008740,"2,968.17",NORTHERN BALLET THEATRE LTD.
Neighbourhoods and Climate Change,Environmental Services,Supplies and Services,338099,Services,04/05/2022,3998347-0812,771.00,THE SKILL MILL LTD.
Children and Young Peoples Services,Head of Education and Skills,Supplies and Services,338078,Services,04/05/2022,3998371-INV-48435,632.50,VISTECH SERVICES LTD.
Children and Young Peoples Services,Head of Education and Skills,Supplies and Services,338045,Services,04/05/2022,3998386-411020,810.00,WINCKWORTH SHERWOOD LLP.
Regeneration Economy and Growth,Development and Housing,Supplies and Services,338045,Services,04/05/2022,3998392-3613687,"2,584.40",WOMBLE BOND DICKINSON (UK) LLP.
Children and Young Peoples Services,Head of Childrens Social Care,Supplies and Services,338044,Services,04/05/2022,3998037-CS09391,"1,015.00",REDACTED - PAYMENT TO INDIVIDUAL
Children and Young Peoples Services,Head of Childrens Social Care,Supplies and Services,338057,Services,04/05/2022,3998037-CS09391-170222,"3,420.00",REDACTED - PAYMENT TO INDIVIDUAL
Children and Young Peoples Services,Head of Education and Skills,Supplies and Services,338027,Services,04/05/2022,3998189-9-2022,"3,987.50",REDACTED - PAYMENT TO INDIVIDUAL
Neighbourhoods and Climate Change,Technical Services CM0300,Stock A926,926900,Stock in hand-Inventory system,04/05/2022,3997956-INV151154,547.20,AZTEC CHEMICALS LTD.
Neighbourhoods and Climate Change,Technical Services CM0300,Stock A926,926900,Stock in hand-Inventory system,04/05/2022,3997956-INV151156,547.20,AZTEC CHEMICALS LTD.
Neighbourhoods and Climate Change,Technical Services CM0300,Stock A926,926900,Stock in hand-Inventory system,04/05/2022,3997956-INV151157,547.20,AZTEC CHEMICALS LTD.
Neighbourhoods and Climate Change,Technical Services CM0300,Stock A926,926900,Stock in hand-Inventory system,04/05/2022,3997956-INV151159,547.20,AZTEC CHEMICALS LTD.
Neighbourhoods and Climate Change,Technical Services CM0300,Stock A926,926900,Stock in hand-Inventory system,04/05/2022,3998139-0113/00634330,697.32,JT DOVE LTD.
Neighbourhoods and Climate Change,Technical Services CM0300,Stock A926,926900,Stock in hand-Inventory system,04/05/2022,3998253-XL284910,"5,611.20",PARK ELECTRICAL DISTRIBUTORS LTD.
Neighbourhoods and Climate Change,Technical Services CM0300,Stock A926,926900,Stock in hand-Inventory system,04/05/2022,3998355-110615,"3,148.52",TOTAL RENTAL SOLUTIONS.
Neighbourhoods and Climate Change,Technical Services CM0300,Stock A926,926900,Stock in hand-Inventory system,04/05/2022,3998355-110617,"1,344.00",TOTAL RENTAL SOLUTIONS.
Neighbourhoods and Climate Change,Technical Services CM0300,Stock A926,926900,Stock in hand-Inventory system,04/05/2022,3998355-110618,"3,088.00",TOTAL RENTAL SOLUTIONS.
Neighbourhoods and Climate Change,Technical Services CM0300,Stock A926,926900,Stock in hand-Inventory system,04/05/2022,3998355-110619,"1,757.00",TOTAL RENTAL SOLUTIONS.
Neighbourhoods and Climate Change,Technical Services CM0300,Stock A926,926900,Stock in hand-Inventory system,04/05/2022,3998355-110735,"1,522.50",TOTAL RENTAL SOLUTIONS.
Neighbourhoods and Climate Change,Technical Services CM0300,Stock A926,926900,Stock in hand-Inventory system,04/05/2022,3998402-145475475,"2,017.57",ZG LIGHTING (UK) LTD.
Children and Young Peoples Services,Head of Education and Skills,Supplies and Services,372009,Subscriptions E372,04/05/2022,3998361-11384,"1,335.00",UK ASSOCIATION FOR MUSIC EDUCATION (MUSIC MARK).
Resources BK0010,Digital Services,Supplies and Services,344111,Telephones,04/05/2022,3998222-203032,"4,833.00",NETWORKS 2 BUSINESS LTD.
Dedicated Schools Grant BG0015,DSG High Needs Block,Central Support and Other Recharges,689996,Unclassified E690,04/05/2022,3998107-RES-05-2022-026,"121,573.00",HOPE WOOD ACADEMY.
Children and Young Peoples Services,Head of Childrens Social Care,Employees,080025,Agency Staff,05/05/2022,3998687-2459103,"162,053.35",GEOMETRIC RESULTS INTERNATIONAL.
Resources BK0010,Digital Services,Vehicles Equipment Furniture and Fittings,912701,Computer equipment,05/05/2022,3998542-PSINV03515047,"96,770.00",CDW LTD.
Children and Young Peoples Services,Head of Early Help Inclusion & Vulnerable Children.,Supplies and Services,342033,Computers and Communications,05/05/2022,216-ARCMIN/00000052,"9,237.90",ADVANCED T/A CAREWORKS (IRELAND) LTD.
Regeneration Economy and Growth,Corporate Property and Land,Supplies and Services,342053,Computers and Communications,05/05/2022,3998937-BCI-012001,"16,540.00",RICS BOOKS.*
Regeneration Economy and Growth,Development and Housing,Fees,901002,Professional fees,05/05/2022,3998507-SIN033060,"696,805.68",BLOOM PROCUREMENT SERVICES LTD (FORMERLY NEPRO LTD).
Neighbourhoods and Climate Change,Environmental Services,Fees,901002,Professional fees,05/05/2022,3998610-64021179,"5,585.10",DESCO (DESIGN & CONSULTANCY) LTD.
Children and Young Peoples Services,Head of Education and Skills,Transport,230007,Contract Hire,05/05/2022,3998437-DCC106,"1,208.57",ALSTON ROAD GARAGE.
Children and Young Peoples Services,Head of Education and Skills,Transport,230007,Contract Hire,05/05/2022,3998437-DCC107,"1,899.59",ALSTON ROAD GARAGE.
Children and Young Peoples Services,Head of Education and Skills,Transport,230006,Contract Hire,05/05/2022,3998456-04284,905.30,ATLAS TAXIS CONSETT.
Children and Young Peoples Services,Head of Education and Skills,Transport,230006,Contract Hire,05/05/2022,3998457-04283,696.44,ATLAS TAXIS CONSETT.
Children and Young Peoples Services,Head of Education and Skills,Transport,230006,Contract Hire,05/05/2022,3998467-33,"1,217.52",BELMONT TAXIS.
Children and Young Peoples Services,Head of Education and Skills,Transport,230007,Contract Hire,05/05/2022,3998468-4-APR22,693.00,BENNETTS TAXIS.
Children and Young Peoples Services,Head of Education and Skills,Transport,230007,Contract Hire,05/05/2022,3998469-SH-PITT0422,598.50,BENS TAXIS.
Children and Young Peoples Services,Head of Education and Skills,Transport,230034,Contract Hire,05/05/2022,3998469-SUNHASBEL0422,"1,023.00",BENS TAXIS.
Children and Young Peoples Services,Head of Education and Skills,Transport,230008,Contract Hire,05/05/2022,3998529-W046030,"1,055.07",C & R TAXIS.
Children and Young Peoples Services,Head of Education and Skills,Transport,230008,Contract Hire,05/05/2022,3998529-W112033,"1,026.63",C & R TAXIS.
Children and Young Peoples Services,Head of Education and Skills,Transport,230007,Contract Hire,05/05/2022,3998585-113184,"2,197.36",CROFT BUSINESS SERVICES LTD T/A CROFT TRAVEL.
Children and Young Peoples Services,Head of Education and Skills,Transport,230006,Contract Hire,05/05/2022,3998585-113185,"2,544.36",CROFT BUSINESS SERVICES LTD T/A CROFT TRAVEL.
Children and Young Peoples Services,Head of Education and Skills,Transport,230008,Contract Hire,05/05/2022,3998585-113186,"1,768.62",CROFT BUSINESS SERVICES LTD T/A CROFT TRAVEL.
Children and Young Peoples Services,Head of Education and Skills,Transport,230008,Contract Hire,05/05/2022,3998585-113187,"1,192.60",CROFT BUSINESS SERVICES LTD T/A CROFT TRAVEL.
Children and Young Peoples Services,Head of Education and Skills,Transport,230006,Contract Hire,05/05/2022,3998585-113190,"1,132.92",CROFT BUSINESS SERVICES LTD T/A CROFT TRAVEL.
Children and Young Peoples Services,Head of Education and Skills,Transport,230006,Contract Hire,05/05/2022,3998585-113191,"1,042.16",CROFT BUSINESS SERVICES LTD T/A CROFT TRAVEL.
Children and Young Peoples Services,Head of Education and Skills,Transport,230006,Contract Hire,05/05/2022,3998585-113192,"1,094.86",CROFT BUSINESS SERVICES LTD T/A CROFT TRAVEL.
Children and Young Peoples Services,Head of Education and Skills,Transport,230008,Contract Hire,05/05/2022,3998585-113195,"1,320.84",CROFT BUSINESS SERVICES LTD T/A CROFT TRAVEL.
Children and Young Peoples Services,Head of Education and Skills,Transport,230008,Contract Hire,05/05/2022,3998585-113196,"1,384.20",CROFT BUSINESS SERVICES LTD T/A CROFT TRAVEL.
Children and Young Peoples Services,Head of Education and Skills,Transport,230008,Contract Hire,05/05/2022,3998585-113201,939.05,CROFT BUSINESS SERVICES LTD T/A CROFT TRAVEL.
Children and Young Peoples Services,Head of Education and Skills,Transport,230008,Contract Hire,05/05/2022,3998585-113202,990.00,CROFT BUSINESS SERVICES LTD T/A CROFT TRAVEL.
Children and Young Peoples Services,Head of Education and Skills,Transport,230008,Contract Hire,05/05/2022,3998585-113203,959.31,CROFT BUSINESS SERVICES LTD T/A CROFT TRAVEL.
Children and Young Peoples Services,Head of Education and Skills,Transport,230006,Contract Hire,05/05/2022,3998595-3579,930.60,DAVES MINIBUSES.
Children and Young Peoples Services,Head of Education and Skills,Transport,230008,Contract Hire,05/05/2022,3998595-3707,"1,067.40",DAVES MINIBUSES.
Children and Young Peoples Services,Head of Education and Skills,Transport,230008,Contract Hire,05/05/2022,3998596-3706,"1,377.75",DAVES MINIBUSES.
Children and Young Peoples Services,Head of Education and Skills,Transport,230008,Contract Hire,05/05/2022,3998596-3709,828.72,DAVES MINIBUSES.
Children and Young Peoples Services,Head of Education and Skills,Transport,230008,Contract Hire,05/05/2022,3998596-3711,"1,078.00",DAVES MINIBUSES.
Children and Young Peoples Services,Head of Education and Skills,Transport,230008,Contract Hire,05/05/2022,3998601-0422-001,894.51,DCM TAXIS.
Children and Young Peoples Services,Head of Education and Skills,Transport,230008,Contract Hire,05/05/2022,3998636-1296,"1,738.00",EAST DURHAM TAXIS.
Children and Young Peoples Services,Head of Education and Skills,Transport,230006,Contract Hire,05/05/2022,3998636-1297,"2,228.00",EAST DURHAM TAXIS.
Children and Young Peoples Services,Head of Education and Skills,Transport,230016,Contract Hire,05/05/2022,3998636-1299,552.00,EAST DURHAM TAXIS.
Children and Young Peoples Services,Head of Education and Skills,Transport,230008,Contract Hire,05/05/2022,3998636-1300,"1,180.00",EAST DURHAM TAXIS.
Adult and Health Services,Head of Adults,Transport,230005,Contract Hire,05/05/2022,3998636-1301,"1,252.00",EAST DURHAM TAXIS.
Children and Young Peoples Services,Head of Education and Skills,Transport,230006,Contract Hire,05/05/2022,3998636-1302,"1,476.80",EAST DURHAM TAXIS.
Adult and Health Services,Head of Adults,Transport,230005,Contract Hire,05/05/2022,3998636-1303,"2,128.00",EAST DURHAM TAXIS.
Children and Young Peoples Services,Head of Education and Skills,Transport,230008,Contract Hire,05/05/2022,3998636-1304,"1,546.74",EAST DURHAM TAXIS.
Children and Young Peoples Services,Head of Education and Skills,Transport,230009,Contract Hire,05/05/2022,3998636-1305,"1,474.00",EAST DURHAM TAXIS.
Children and Young Peoples Services,Head of Education and Skills,Transport,230006,Contract Hire,05/05/2022,3998636-1306,528.00,EAST DURHAM TAXIS.
Children and Young Peoples Services,Head of Education and Skills,Transport,230006,Contract Hire,05/05/2022,3998636-1307,"1,960.00",EAST DURHAM TAXIS.
Children and Young Peoples Services,Head of Education and Skills,Transport,230008,Contract Hire,05/05/2022,3998636-1308,"1,890.00",EAST DURHAM TAXIS.
Children and Young Peoples Services,Head of Education and Skills,Transport,230008,Contract Hire,05/05/2022,3998636-1309,"2,308.40",EAST DURHAM TAXIS.
Children and Young Peoples Services,Head of Education and Skills,Transport,230008,Contract Hire,05/05/2022,3998636-1310,"1,914.00",EAST DURHAM TAXIS.
Children and Young Peoples Services,Head of Education and Skills,Transport,230016,Contract Hire,05/05/2022,3998636-1311,592.00,EAST DURHAM TAXIS.
Children and Young Peoples Services,Head of Education and Skills,Transport,230009,Contract Hire,05/05/2022,3998673-1568,586.96,FMR SILVA PITA.
Children and Young Peoples Services,Head of Education and Skills,Transport,230007,Contract Hire,05/05/2022,3998682-23486,"2,840.31",GARNETTS LTD (COACHES).
Children and Young Peoples Services,Head of Education and Skills,Transport,230007,Contract Hire,05/05/2022,3998682-23487,"2,794.77",GARNETTS LTD (COACHES).
Children and Young Peoples Services,Head of Education and Skills,Transport,230007,Contract Hire,05/05/2022,3998682-23488,"3,498.00",GARNETTS LTD (COACHES).
Children and Young Peoples Services,Head of Education and Skills,Transport,230007,Contract Hire,05/05/2022,3998682-23489,"6,556.00",GARNETTS LTD (COACHES).
Children and Young Peoples Services,Head of Education and Skills,Transport,230007,Contract Hire,05/05/2022,3998682-23490-3007,"1,628.00",GARNETTS LTD (COACHES).
Children and Young Peoples Services,Head of Education and Skills,Transport,230007,Contract Hire,05/05/2022,3998682-23490-3315,"1,529.00",GARNETTS LTD (COACHES).
Children and Young Peoples Services,Head of Education and Skills,Transport,230007,Contract Hire,05/05/2022,3998682-23490-3435,"2,068.00",GARNETTS LTD (COACHES).
Children and Young Peoples Services,Head of Education and Skills,Transport,230003,Contract Hire,05/05/2022,3998682-23492-3020,"1,642.63",GARNETTS LTD (COACHES).
Children and Young Peoples Services,Head of Education and Skills,Transport,230003,Contract Hire,05/05/2022,3998682-23492-3024,"1,357.40",GARNETTS LTD (COACHES).
Children and Young Peoples Services,Head of Education and Skills,Transport,230003,Contract Hire,05/05/2022,3998682-23492-3027,"1,448.70",GARNETTS LTD (COACHES).
Children and Young Peoples Services,Head of Education and Skills,Transport,230003,Contract Hire,05/05/2022,3998682-23492-3028,"1,585.54",GARNETTS LTD (COACHES).
Children and Young Peoples Services,Head of Education and Skills,Transport,230007,Contract Hire,05/05/2022,3998682-23492-3029,"1,631.19",GARNETTS LTD (COACHES).
Children and Young Peoples Services,Head of Education and Skills,Transport,230007,Contract Hire,05/05/2022,3998682-23492-3199,"1,551.33",GARNETTS LTD (COACHES).
Children and Young Peoples Services,Head of Education and Skills,Transport,230003,Contract Hire,05/05/2022,3998682-23493-3301,"2,041.82",GARNETTS LTD (COACHES).
Children and Young Peoples Services,Head of Education and Skills,Transport,230003,Contract Hire,05/05/2022,3998682-23493-3302,"2,041.82",GARNETTS LTD (COACHES).
Children and Young Peoples Services,Head of Education and Skills,Transport,230003,Contract Hire,05/05/2022,3998682-23494-3004,"2,327.05",GARNETTS LTD (COACHES).
Children and Young Peoples Services,Head of Education and Skills,Transport,230003,Contract Hire,05/05/2022,3998682-23494-3005,"3,399.33",GARNETTS LTD (COACHES).
Children and Young Peoples Services,Head of Education and Skills,Transport,230003,Contract Hire,05/05/2022,3998682-23494-3008,"1,927.75",GARNETTS LTD (COACHES).
Children and Young Peoples Services,Head of Education and Skills,Transport,230003,Contract Hire,05/05/2022,3998682-23494-3203,"1,813.68",GARNETTS LTD (COACHES).
Children and Young Peoples Services,Head of Education and Skills,Transport,230003,Contract Hire,05/05/2022,3998682-23494-3223,"3,627.47",GARNETTS LTD (COACHES).
Children and Young Peoples Services,Head of Education and Skills,Transport,230003,Contract Hire,05/05/2022,3998682-23494-3262,"2,133.12",GARNETTS LTD (COACHES).
Children and Young Peoples Services,Head of Education and Skills,Transport,230003,Contract Hire,05/05/2022,3998682-23494-3333,"1,916.42",GARNETTS LTD (COACHES).
Children and Young Peoples Services,Head of Education and Skills,Transport,230007,Contract Hire,05/05/2022,3998682-23496,"1,699.61",GARNETTS LTD (COACHES).
Children and Young Peoples Services,Head of Education and Skills,Transport,230008,Contract Hire,05/05/2022,3998682-23497-1,"1,704.76",GARNETTS LTD (COACHES).
Children and Young Peoples Services,Head of Education and Skills,Transport,230008,Contract Hire,05/05/2022,3998682-23497-2,"1,063.90",GARNETTS LTD (COACHES).
Children and Young Peoples Services,Head of Education and Skills,Transport,230003,Contract Hire,05/05/2022,3998682-25422,"2,041.82",GARNETTS LTD (COACHES).
Children and Young Peoples Services,Head of Education and Skills,Transport,230007,Contract Hire,05/05/2022,3998686-5901,912.78,GEM TRAVEL.
Children and Young Peoples Services,Head of Education and Skills,Transport,230003,Contract Hire,05/05/2022,3998686-5902,"2,006.00",GEM TRAVEL.
Children and Young Peoples Services,Head of Education and Skills,Transport,230007,Contract Hire,05/05/2022,3998740-6142,577.06,J YOUNG T/A VIP TAXIS.
Children and Young Peoples Services,Head of Education and Skills,Transport,230007,Contract Hire,05/05/2022,3998740-6143,849.53,J YOUNG T/A VIP TAXIS.
Children and Young Peoples Services,Head of Education and Skills,Transport,230008,Contract Hire,05/05/2022,3998740-6144,830.17,J YOUNG T/A VIP TAXIS.
Children and Young Peoples Services,Head of Education and Skills,Transport,230008,Contract Hire,05/05/2022,3998740-6145,788.04,J YOUNG T/A VIP TAXIS.
Children and Young Peoples Services,Head of Education and Skills,Transport,230006,Contract Hire,05/05/2022,3998740-6146,748.12,J YOUNG T/A VIP TAXIS.
Children and Young Peoples Services,Head of Education and Skills,Transport,230007,Contract Hire,05/05/2022,3998747-3178,944.90,JEFF ANDERSON COACHES LTD.
Children and Young Peoples Services,Head of Education and Skills,Transport,230008,Contract Hire,05/05/2022,3998747-INV3174,875.59,JEFF ANDERSON COACHES LTD.
Children and Young Peoples Services,Head of Education and Skills,Transport,230008,Contract Hire,05/05/2022,3998747-INV3175,829.62,JEFF ANDERSON COACHES LTD.
Children and Young Peoples Services,Head of Education and Skills,Transport,230007,Contract Hire,05/05/2022,3998747-INV3176,"1,482.91",JEFF ANDERSON COACHES LTD.
Children and Young Peoples Services,Head of Education and Skills,Transport,230008,Contract Hire,05/05/2022,3998747-INV3177,889.38,JEFF ANDERSON COACHES LTD.
Children and Young Peoples Services,Head of Education and Skills,Transport,230008,Contract Hire,05/05/2022,3998762-M00947,"1,024.87",JOVIAL PRIVATE HIRE.
Children and Young Peoples Services,Head of Education and Skills,Transport,230008,Contract Hire,05/05/2022,3998762-M01608,770.00,JOVIAL PRIVATE HIRE.
Children and Young Peoples Services,Head of Education and Skills,Transport,230008,Contract Hire,05/05/2022,3998762-M01747,532.40,JOVIAL PRIVATE HIRE.
Children and Young Peoples Services,Head of Education and Skills,Transport,230008,Contract Hire,05/05/2022,3998788-008-S014,"2,136.64",LIMASEC LTD T/A LIMA TRANSPORT.
Children and Young Peoples Services,Head of Education and Skills,Transport,230034,Contract Hire,05/05/2022,3998893-47817,"1,254.00",PHOENIX TAXIS T/A PRATT`S TAXIS.
Children and Young Peoples Services,Head of Education and Skills,Transport,230007,Contract Hire,05/05/2022,3998893-47819,528.00,PHOENIX TAXIS T/A PRATT`S TAXIS.
Children and Young Peoples Services,Head of Education and Skills,Transport,230034,Contract Hire,05/05/2022,3998893-47820,528.00,PHOENIX TAXIS T/A PRATT`S TAXIS.
Children and Young Peoples Services,Head of Education and Skills,Transport,230034,Contract Hire,05/05/2022,3998893-47821,840.40,PHOENIX TAXIS T/A PRATT`S TAXIS.
Children and Young Peoples Services,Head of Education and Skills,Transport,230007,Contract Hire,05/05/2022,3998893-47822,588.00,PHOENIX TAXIS T/A PRATT`S TAXIS.
Children and Young Peoples Services,Head of Education and Skills,Transport,230010,Contract Hire,05/05/2022,3998893-47825,934.56,PHOENIX TAXIS T/A PRATT`S TAXIS.
Children and Young Peoples Services,Head of Education and Skills,Transport,230006,Contract Hire,05/05/2022,3998893-47831,528.00,PHOENIX TAXIS T/A PRATT`S TAXIS.
Children and Young Peoples Services,Head of Education and Skills,Transport,230008,Contract Hire,05/05/2022,3998893-47834,"1,364.00",PHOENIX TAXIS T/A PRATT`S TAXIS.
Children and Young Peoples Services,Head of Education and Skills,Transport,230008,Contract Hire,05/05/2022,3998893-47835,"1,139.05",PHOENIX TAXIS T/A PRATT`S TAXIS.
Children and Young Peoples Services,Head of Education and Skills,Transport,230010,Contract Hire,05/05/2022,3998893-47836,980.00,PHOENIX TAXIS T/A PRATT`S TAXIS.
Children and Young Peoples Services,Head of Education and Skills,Transport,230006,Contract Hire,05/05/2022,3999046-1-A105APR22,"1,550.01",TONYS TAXIS (J BIRCH).
Children and Young Peoples Services,Head of Education and Skills,Transport,230008,Contract Hire,05/05/2022,3999081-0003322,"1,146.24",WATSONS OF SPENNYMOOR.
Children and Young Peoples Services,Head of Education and Skills,Transport,230008,Contract Hire,05/05/2022,3999081-0003323-1,686.88,WATSONS OF SPENNYMOOR.
Children and Young Peoples Services,Head of Education and Skills,Transport,230006,Contract Hire,05/05/2022,3998445-00451,885.34,REDACTED - PAYMENT TO INDIVIDUAL
Children and Young Peoples Services,Head of Education and Skills,Transport,230008,Contract Hire,05/05/2022,3998445-00481,"1,980.00",REDACTED - PAYMENT TO INDIVIDUAL
Children and Young Peoples Services,Head of Education and Skills,Transport,230012,Contract Hire,05/05/2022,3998445-00482,"1,884.08",REDACTED - PAYMENT TO INDIVIDUAL
Children and Young Peoples Services,Head of Education and Skills,Transport,230006,Contract Hire,05/05/2022,3998445-00483,"1,705.33",REDACTED - PAYMENT TO INDIVIDUAL
Adult and Health Services,Head of Adults,Transport,230005,Contract Hire,05/05/2022,3998445-00484,"1,520.00",REDACTED - PAYMENT TO INDIVIDUAL
Children and Young Peoples Services,Head of Education and Skills,Transport,230008,Contract Hire,05/05/2022,3998583-78,990.00,REDACTED - PAYMENT TO INDIVIDUAL
Dedicated Schools Grant BG0015,DSG High Needs Block,Transport,230009,Contract Hire,05/05/2022,3998583-79,955.88,REDACTED - PAYMENT TO INDIVIDUAL
Dedicated Schools Grant BG0015,DSG High Needs Block,Transport,230009,Contract Hire,05/05/2022,3998583-80,990.00,REDACTED - PAYMENT TO INDIVIDUAL
Children and Young Peoples Services,Head of Education and Skills,Transport,230010,Contract Hire,05/05/2022,3998727-008-APRIL22,"1,554.10",REDACTED - PAYMENT TO INDIVIDUAL
Children and Young Peoples Services,Head of Education and Skills,Transport,230008,Contract Hire,05/05/2022,3998757-80-APRIL22,880.00,REDACTED - PAYMENT TO INDIVIDUAL
Children and Young Peoples Services,Head of Education and Skills,Transport,230008,Contract Hire,05/05/2022,3998757-81-APRIL22,"1,760.00",REDACTED - PAYMENT TO INDIVIDUAL
Children and Young Peoples Services,Head of Education and Skills,Transport,230008,Contract Hire,05/05/2022,3998757-82-APRIL22,"1,100.00",REDACTED - PAYMENT TO INDIVIDUAL
Children and Young Peoples Services,Head of Education and Skills,Transport,230008,Contract Hire,05/05/2022,3998757-83-APRIL22,"1,700.16",REDACTED - PAYMENT TO INDIVIDUAL
Children and Young Peoples Services,Head of Education and Skills,Transport,230016,Contract Hire,05/05/2022,3998757-84-APRIL22,"1,820.00",REDACTED - PAYMENT TO INDIVIDUAL
Children and Young Peoples Services,Head of Education and Skills,Transport,230008,Contract Hire,05/05/2022,3998757-85-APRIL22,"1,710.00",REDACTED - PAYMENT TO INDIVIDUAL
Children and Young Peoples Services,Head of Education and Skills,Transport,230010,Contract Hire,05/05/2022,3998757-86-APRIL22,"1,870.33",REDACTED - PAYMENT TO INDIVIDUAL
Children and Young Peoples Services,Head of Education and Skills,Transport,230008,Contract Hire,05/05/2022,3998757-87-APRIL22,"2,090.00",REDACTED - PAYMENT TO INDIVIDUAL
Children and Young Peoples Services,Head of Education and Skills,Transport,230008,Contract Hire,05/05/2022,3998757-89-APRIL22,"1,100.00",REDACTED - PAYMENT TO INDIVIDUAL
Children and Young Peoples Services,Head of Education and Skills,Transport,230006,Contract Hire,05/05/2022,3998760-0002-APR22,792.44,REDACTED - PAYMENT TO INDIVIDUAL
Children and Young Peoples Services,Head of Education and Skills,Transport,230008,Contract Hire,05/05/2022,3998760-0039,"1,230.84",REDACTED - PAYMENT TO INDIVIDUAL
Children and Young Peoples Services,Head of Education and Skills,Transport,230009,Contract Hire,05/05/2022,3998773-010422-1,707.04,REDACTED - PAYMENT TO INDIVIDUAL
Children and Young Peoples Services,Head of Education and Skills,Transport,230009,Contract Hire,05/05/2022,3998825-AT263,831.00,REDACTED - PAYMENT TO INDIVIDUAL
Children and Young Peoples Services,Head of Education and Skills,Transport,230034,Contract Hire,05/05/2022,3998825-AT264,880.00,REDACTED - PAYMENT TO INDIVIDUAL
Children and Young Peoples Services,Head of Education and Skills,Transport,230008,Contract Hire,05/05/2022,3998831-W174/19,"1,453.43",REDACTED - PAYMENT TO INDIVIDUAL
Children and Young Peoples Services,Head of Education and Skills,Transport,230008,Contract Hire,05/05/2022,3998840-079,990.00,REDACTED - PAYMENT TO INDIVIDUAL
Children and Young Peoples Services,Head of Education and Skills,Transport,230008,Contract Hire,05/05/2022,3998840-081,"1,593.00",REDACTED - PAYMENT TO INDIVIDUAL
Children and Young Peoples Services,Head of Education and Skills,Transport,230006,Contract Hire,05/05/2022,3998880-APR22-F848,"1,258.71",REDACTED - PAYMENT TO INDIVIDUAL
Children and Young Peoples Services,Head of Education and Skills,Transport,230008,Contract Hire,05/05/2022,3998880-APR22-M014,"1,639.00",REDACTED - PAYMENT TO INDIVIDUAL
Children and Young Peoples Services,Head of Education and Skills,Transport,230008,Contract Hire,05/05/2022,3998880-APR22-N023,"1,540.00",REDACTED - PAYMENT TO INDIVIDUAL
Children and Young Peoples Services,Head of Education and Skills,Transport,230034,Contract Hire,05/05/2022,3998888-112,917.60,REDACTED - PAYMENT TO INDIVIDUAL
Children and Young Peoples Services,Head of Education and Skills,Transport,230007,Contract Hire,05/05/2022,3998888-115,704.00,REDACTED - PAYMENT TO INDIVIDUAL
Children and Young Peoples Services,Head of Education and Skills,Transport,230008,Contract Hire,05/05/2022,3998888-116,"1,155.00",REDACTED - PAYMENT TO INDIVIDUAL
Children and Young Peoples Services,Head of Education and Skills,Transport,230007,Contract Hire,05/05/2022,3998888-117,563.64,REDACTED - PAYMENT TO INDIVIDUAL
Children and Young Peoples Services,Head of Education and Skills,Transport,230009,Contract Hire,05/05/2022,3998892-APR22-7381,"1,015.60",REDACTED - PAYMENT TO INDIVIDUAL
Children and Young Peoples Services,Head of Education and Skills,Transport,230008,Contract Hire,05/05/2022,3998892-APR22-A028,"2,244.00",REDACTED - PAYMENT TO INDIVIDUAL
Children and Young Peoples Services,Head of Education and Skills,Transport,230008,Contract Hire,05/05/2022,3998999-SI-1767,"1,100.00",REDACTED - PAYMENT TO INDIVIDUAL
Children and Young Peoples Services,Head of Education and Skills,Transport,230007,Contract Hire,05/05/2022,3998999-SI-1768,968.00,REDACTED - PAYMENT TO INDIVIDUAL
Children and Young Peoples Services,Head of Education and Skills,Transport,230007,Contract Hire,05/05/2022,3998999-SI-1769,500.00,REDACTED - PAYMENT TO INDIVIDUAL
Children and Young Peoples Services,Head of Education and Skills,Transport,230008,Contract Hire,05/05/2022,3998999-SI-1772,"2,284.15",REDACTED - PAYMENT TO INDIVIDUAL
Children and Young Peoples Services,Head of Education and Skills,Transport,230006,Contract Hire,05/05/2022,3998999-SI-1773,"1,511.64",REDACTED - PAYMENT TO INDIVIDUAL
Children and Young Peoples Services,Head of Education and Skills,Transport,230013,Contract Hire,05/05/2022,3998999-SI-1774,"1,045.00",REDACTED - PAYMENT TO INDIVIDUAL
Children and Young Peoples Services,Head of Education and Skills,Transport,230006,Contract Hire,05/05/2022,3998999-SI-1775,"1,394.69",REDACTED - PAYMENT TO INDIVIDUAL
Children and Young Peoples Services,Head of Education and Skills,Transport,230034,Contract Hire,05/05/2022,3998999-SI-1776,686.00,REDACTED - PAYMENT TO INDIVIDUAL
Children and Young Peoples Services,Head of Education and Skills,Transport,230034,Contract Hire,05/05/2022,3998999-SI-1777,590.00,REDACTED - PAYMENT TO INDIVIDUAL
Regeneration Economy and Growth,Business Durham CL0850,Third Party Payments,460305,Contract Payments,05/05/2022,3999062-RES-04-2022-415,"13,416.94",UMI COMMERCIAL LTD.
Regeneration Economy and Growth,Business Durham CL0850,Third Party Payments,460305,Contract Payments,05/05/2022,3999062-RES-05-2022-001,"9,721.06",UMI COMMERCIAL LTD.
Regeneration Economy and Growth,Transport and Contracted Services,Third Party Payments,460160,Contract Payments,05/05/2022,3999092-651556,707.72,WILLIAM SMITH GROUP 1832.
Regeneration Economy and Growth,Culture Sport and Tourism,Premises,120009,Energy Costs,05/05/2022,3998731-16173,"3,065.65",IMPALA ESTATES LTD.
Neighbourhoods and Climate Change,Technical Services CM0300,Supplies and Services,304221,Equipment and Materials,05/05/2022,3998431-CD971326547,777.88,AGROVISTA UK LTD FORMERLY SHERRIFF AMENITY.
Resources BK0010,Digital Services,Supplies and Services,304303,Equipment and Materials,05/05/2022,3998454-235192,"4,028.10",ASPIRE TECHNOLOGY SOLUTIONS.
Neighbourhoods and Climate Change,Environmental Services,Supplies and Services,304221,Equipment and Materials,05/05/2022,3998462-99026547,929.60,BALL COLEGRAVE LTD.
Neighbourhoods and Climate Change,Environmental Services,Supplies and Services,304221,Equipment and Materials,05/05/2022,3998462-99026548,782.95,BALL COLEGRAVE LTD.
Adult and Health Services,Head of Adults,Supplies and Services,304516,Equipment and Materials,05/05/2022,3998476-INV-589,"1,290.90",BILL SCOTT TAXIS LTD.
Adult and Health Services,Head of Adults,Supplies and Services,304516,Equipment and Materials,05/05/2022,3998476-INV-607,"1,262.00",BILL SCOTT TAXIS LTD.
Regeneration Economy and Growth,Corporate Property and Land,Supplies and Services,304221,Equipment and Materials,05/05/2022,3998555-2852ABN512,685.00,CITY PLUMBING SUPPLIES HOLDINGS LTD.
Regeneration Economy and Growth,Corporate Property and Land,Supplies and Services,304221,Equipment and Materials,05/05/2022,3998644-059-299492,560.63,EDMUNDSON ELECTRICAL LTD.
Regeneration Economy and Growth,Corporate Property and Land,Supplies and Services,304221,Equipment and Materials,05/05/2022,3998645-059-299760,540.69,EDMUNDSON ELECTRICAL LTD.
Regeneration Economy and Growth,Corporate Property and Land,Supplies and Services,304221,Equipment and Materials,05/05/2022,3998645-059-299925,598.11,EDMUNDSON ELECTRICAL LTD.
Regeneration Economy and Growth,Corporate Property and Land,Supplies and Services,304221,Equipment and Materials,05/05/2022,3998645-059-300075,512.93,EDMUNDSON ELECTRICAL LTD.
Neighbourhoods and Climate Change,Environmental Services,Supplies and Services,304999,Equipment and Materials,05/05/2022,3998672-UK150007,580.32,FLOWBIRD SMART CITY UK LTD.
Neighbourhoods and Climate Change,Environmental Services,Supplies and Services,304259,Equipment and Materials,05/05/2022,3998685-9872,736.00,GB SPORT & LEISURE UK LTD.
Neighbourhoods and Climate Change,Technical Services CM0300,Supplies and Services,304221,Equipment and Materials,05/05/2022,3998806-Z001238734,908.64,MARSHALLS MONO LTD.
Neighbourhoods and Climate Change,Technical Services CM0300,Supplies and Services,304221,Equipment and Materials,05/05/2022,3998806-ZO01249021,"1,078.21",MARSHALLS MONO LTD.
Neighbourhoods and Climate Change,Technical Services CM0300,Supplies and Services,304221,Equipment and Materials,05/05/2022,3998806-ZOO1260391,"2,246.88",MARSHALLS MONO LTD.
Regeneration Economy and Growth,Culture Sport and Tourism,Supplies and Services,304252,Equipment and Materials,05/05/2022,3998823-INV-0043,600.00,MOUNTAIN ACTIVITY CO.
Neighbourhoods and Climate Change,Environmental Services,Supplies and Services,304221,Equipment and Materials,05/05/2022,3998853-39025,"4,905.00",NIGEL BUCHANAN T/A PREMIER PARTS UK LTD.
Neighbourhoods and Climate Change,Technical Services CM0300,Supplies and Services,304221,Equipment and Materials,05/05/2022,3999012-9045127390,"1,211.12",TARMAC TRADING LTD.
Neighbourhoods and Climate Change,Technical Services CM0300,Supplies and Services,304221,Equipment and Materials,05/05/2022,3999012-9045200404,861.61,TARMAC TRADING LTD.
Neighbourhoods and Climate Change,Technical Services CM0300,Supplies and Services,304221,Equipment and Materials,05/05/2022,3999012-9045202229,670.22,TARMAC TRADING LTD.
Regeneration Economy and Growth,Corporate Property and Land,Supplies and Services,304221,Equipment and Materials,05/05/2022,3999048-36689,"1,183.00",TOTAL PUMP SOLUTIONS LTD.
Neighbourhoods and Climate Change,Environmental Services,Supplies and Services,304221,Equipment and Materials,05/05/2022,3999061-64149,"1,065.60",TURF CARE SPECIALISTS LTD.
Neighbourhoods and Climate Change,Environmental Services,Supplies and Services,304221,Equipment and Materials,05/05/2022,3999093-56340,"1,158.78",WILLOWCRETE MANUFACTURING COMPANY LTD (MFG).
Resources BK0010,Digital Services,Supplies and Services,304639,Equipment and Materials,05/05/2022,3999101-LB67220,585.11,XMA LTD.
Neighbourhoods and Climate Change,Environmental Services,Supplies and Services,304337,Equipment and Materials,05/05/2022,3998816-RES-05-2022-046,"2,388.75",REDACTED - PAYMENT TO INDIVIDUAL
Neighbourhoods and Climate Change,Environmental Services,Cap Exp on Grants & Other Financial Assistance (REFCUS),918501,Exp assets not owned by authority,05/05/2022,3998805-1314,736.00,MARSDEN AES LTD.
Children and Young Peoples Services,Head of Education and Skills,Supplies and Services,384906,Miscellaneous Expenses,05/05/2022,3998487-RES-05-2022-050,"7,929.50",BISHOP HOGARTH CATHOLIC EDUCATION TRUST T/A ST JOSEPHS PRIMARY SCHOOL.
Children and Young Peoples Services,Head of Education and Skills,Supplies and Services,384906,Miscellaneous Expenses,05/05/2022,3998492-RES-05-2022-051,"6,000.00",BISHOP HOGARTH CATHOLIC EDUCATION TRUST.
Regeneration Economy and Growth,Culture Sport and Tourism,Supplies and Services,384999,Miscellaneous Expenses,05/05/2022,3998579-SI-4262,"1,666.00",COUNTY DURHAM SPORT.
Regeneration Economy and Growth,Culture Sport and Tourism,Supplies and Services,384199,Miscellaneous Expenses,05/05/2022,3998592-BAFF4100766733,540.00,DALEHEAD FLIGHT CONNECT NE LTD.
Children and Young Peoples Services,Head of Education and Skills,Supplies and Services,384906,Miscellaneous Expenses,05/05/2022,3998638-RES-05-2022-049,"13,000.00",EDEN ACADEMY TRUST LTD T/A BLUEBELL MEADOW PRIMARY SCHOOL.
Neighbourhoods and Climate Change,Environmental Services,Supplies and Services,384956,Miscellaneous Expenses,05/05/2022,3998657-Y00009653T,"5,504.30",ENVIRONMENT AGENCY.
Children and Young Peoples Services,Head of Early Help Inclusion & Vulnerable Children.,Supplies and Services,384302,Miscellaneous Expenses,05/05/2022,3998859-1817,916.00,NORTH EAST ENVIRONMENT NETWORK LTD T/A (OASES).
Dedicated Schools Grant BG0015,DSG High Needs Block,Supplies and Services,384302,Miscellaneous Expenses,05/05/2022,3998877-4047000630..,"9,845.00",PARK VIEW ACADEMY.
Regeneration Economy and Growth,Culture Sport and Tourism,Supplies and Services,384199,Miscellaneous Expenses,05/05/2022,3999070-30466,"1,300.00",VIPER FILM & TELEVISION LTD T/A JOHN NOEL MANAGEMENT.
Neighbourhoods and Climate Change,Environmental Services,Supplies and Services,384700,Miscellaneous Expenses,05/05/2022,3998755-RES-05-2022-057,"6,518.00",REDACTED - PAYMENT TO INDIVIDUAL
Regeneration Economy and Growth,Culture Sport and Tourism,Supplies and Services,384302,Miscellaneous Expenses,05/05/2022,3998744-1,540.00,REDACTED - PAYMENT TO INDIVIDUAL
Regeneration Economy and Growth,Culture Sport and Tourism,Supplies and Services,312013,Newspapers books and periodicals E312,05/05/2022,3998453-6691582,527.85,ASKEWS & HOLTS LIBRARY SERVICES LTD.
Regeneration Economy and Growth,Culture Sport and Tourism,Supplies and Services,312013,Newspapers books and periodicals E312,05/05/2022,3998624-09/04/22,"1,014.57",DURHAM CITY NEWSTORE.
Children and Young Peoples Services,Head of Education and Skills,Supplies and Services,312009,Newspapers books and periodicals E312,05/05/2022,3998890-1903063,"1,207.19",PETERS LTD.
Children and Young Peoples Services,Childrens Services Operational Support,Supplies and Services,312009,Newspapers books and periodicals E312,05/05/2022,3999079-1160101073,"1,987.27",WATERSTONES.
Dedicated Schools Grant BG0015,DSG High Needs Block,Third Party Payments,440080,Other third party payments E440,05/05/2022,3998464-APRIL2022TOPUP-1,"9,524.00",BARBARA PRIESTMAN ACADEMY.
Dedicated Schools Grant BG0015,DSG High Needs Block,Third Party Payments,440080,Other third party payments E440,05/05/2022,3998478-APRIL2022TOPUP-1,"84,502.00",BISHOP AUCKLAND COLLEGE.
Children and Young Peoples Services,Head of Education and Skills,Third Party Payments,440999,Other third party payments E440,05/05/2022,3998486-NEI-EXP-05-2022-014,941.16,BISHOP CHADWICK CATHOLIC EDUCATION TRUST.
Dedicated Schools Grant BG0015,DSG High Needs Block,Third Party Payments,440080,Other third party payments E440,05/05/2022,3998491-APRIL2022TOPUP-1,"4,116.00",BISHOP HOGARTH CATHOLIC EDUCATION TRUST.
Resources BK0010,Transactional & Customer Services,Third Party Payments,440999,Other third party payments E440,05/05/2022,3998491-RES-04-2022-437,"18,130.00",BISHOP HOGARTH CATHOLIC EDUCATION TRUST.
Resources BK0010,Transactional & Customer Services,Third Party Payments,440999,Other third party payments E440,05/05/2022,3998497-RES-04-2022-434,"8,960.00",BISHOP WILKINSON CE TRUST.
Children and Young Peoples Services,Head of Education and Skills,Third Party Payments,440999,Other third party payments E440,05/05/2022,3998524-NEI-EXP-05-2022-020,746.52,BURNS PETCARE LTD T/A WOOFS N SCRUFFS.
Dedicated Schools Grant BG0015,DSG High Needs Block,Third Party Payments,440080,Other third party payments E440,05/05/2022,3998539-APRIL2022TOPUP,"11,790.00",CATCH 22.*
Dedicated Schools Grant BG0015,DSG High Needs Block,Third Party Payments,440080,Other third party payments E440,05/05/2022,3998540-APRIL2022TOPUP-1,"7,226.00",CATCOTE ACADEMY.
Children and Young Peoples Services,Head of Education and Skills,Third Party Payments,440999,Other third party payments E440,05/05/2022,3998546-NEI-EXP-05-2022-023,"1,085.21",CHANGING RELATIONS CIC.
Dedicated Schools Grant BG0015,DSG High Needs Block,Third Party Payments,440080,Other third party payments E440,05/05/2022,3998593-APRIL2022TOPUP,"6,256.00",DARLINGTON COLLEGE.
Children and Young Peoples Services,Head of Education and Skills,Third Party Payments,440999,Other third party payments E440,05/05/2022,3998599-NEI-EXP-05-2022-022,"1,044.28",DAYPARK LTD T/A YELLOW WELLIES.
Dedicated Schools Grant BG0015,DSG High Needs Block,Third Party Payments,440080,Other third party payments E440,05/05/2022,3998609-APRIL2022TOPUP,"2,157.00",DERWENTSIDE COLLEGE.
Dedicated Schools Grant BG0015,DSG High Needs Block,Third Party Payments,440080,Other third party payments E440,05/05/2022,3998635-APRIL2022TOPUP,"203,320.00",EAST DURHAM COLLEGE.
Resources BK0010,Transactional & Customer Services,Third Party Payments,440999,Other third party payments E440,05/05/2022,3998642-RES-04-2022-438,"15,050.00",EDEN LEARNING TRUST T/A TANFIELD SCHOOL.
Dedicated Schools Grant BG0015,DSG High Needs Block,Third Party Payments,440080,Other third party payments E440,05/05/2022,3998649-APRIL2022TOPUP-1,"10,613.00",EDUCATION VILLAGE ACADEMY TRUST.*
Children and Young Peoples Services,Head of Education and Skills,Third Party Payments,440999,Other third party payments E440,05/05/2022,3998658-NEI-EXP-05-2022-015,746.52,EPICURIUM LTD.
Children and Young Peoples Services,Head of Education and Skills,Third Party Payments,440999,Other third party payments E440,05/05/2022,3998675-0000000774,"2,925.00",FOUNDATION OF LIGHT.
Dedicated Schools Grant BG0015,DSG High Needs Block,Third Party Payments,440080,Other third party payments E440,05/05/2022,3998701-APRIL2022TOPUP,"5,712.00",HARTLEPOOL COLLEGE OF FURTHER EDUCATION.
Dedicated Schools Grant BG0015,DSG High Needs Block,Third Party Payments,440080,Other third party payments E440,05/05/2022,3998706-APRIL2022TOPUP,"9,655.00",HEALTH EDUCATION ENGLAND.
Dedicated Schools Grant BG0015,DSG High Needs Block,Third Party Payments,440080,Other third party payments E440,05/05/2022,3998716-APRIL2022TOPUP-1,"148,421.00",HOPE WOOD ACADEMY.
Dedicated Schools Grant BG0015,DSG High Needs Block,Third Party Payments,440080,Other third party payments E440,05/05/2022,3998724-APRIL2022TOPUP,"27,893.00",HUMANKIND CHARITY.
Children and Young Peoples Services,Head of Education and Skills,Third Party Payments,440999,Other third party payments E440,05/05/2022,3998736-NEI-EXP-05-2022-016,716.39,INVESTING IN CHILDREN CIC.
Dedicated Schools Grant BG0015,DSG High Needs Block,Third Party Payments,440080,Other third party payments E440,05/05/2022,3998738-APRIL2022TOPUP,"20,784.00",IXION HOLDINGS LTD T/A PROSPECTS SERVICES LTD.
Children and Young Peoples Services,Head of Education and Skills,Third Party Payments,440999,Other third party payments E440,05/05/2022,3998745-NEI-EXP-05-2022-017,"1,044.28",JAX FIRST AID.
Regeneration Economy and Growth,Development and Housing,Third Party Payments,440999,Other third party payments E440,05/05/2022,3998752-218,"12,375.00",JIGSAW RECOVERY PROJECT CIC.
Dedicated Schools Grant BG0015,DSG High Needs Block,Third Party Payments,440080,Other third party payments E440,05/05/2022,3998778-APRIL2022TOPUP-1,"5,408.00",KING JAMES I ACADEMY.
Resources BK0010,Transactional & Customer Services,Third Party Payments,440999,Other third party payments E440,05/05/2022,3998848-RES-04-2022-432,"31,951.00",NEW COLLEGE ACADEMIES TRUST - CONSETT ACADEMY.
Dedicated Schools Grant BG0015,DSG High Needs Block,Third Party Payments,440080,Other third party payments E440,05/05/2022,3998849-APRIL2022TOPUP,"51,883.00",NEW COLLEGE DURHAM.
Dedicated Schools Grant BG0015,DSG High Needs Block,Third Party Payments,440080,Other third party payments E440,05/05/2022,3998850-APRIL2022TOPUP,"2,903.00",NEWCASTLE COLLEGE.
Resources BK0010,Transactional & Customer Services,Third Party Payments,440999,Other third party payments E440,05/05/2022,3998856-RES-04-2022-436,"32,389.50",NORTH DURHAM ACADEMY.
Dedicated Schools Grant BG0015,DSG High Needs Block,Third Party Payments,440080,Other third party payments E440,05/05/2022,3998860-APRIL2022TOPUP-2,964.00,NORTH EAST LEARNING TRUST (NELT).
Resources BK0010,Transactional & Customer Services,Third Party Payments,440999,Other third party payments E440,05/05/2022,3998860-RES-04-2022-435,"19,600.00",NORTH EAST LEARNING TRUST (NELT).
Dedicated Schools Grant BG0015,DSG High Needs Block,Third Party Payments,440080,Other third party payments E440,05/05/2022,3998907-APRIL2022TOPUP-1,"3,488.00",PORTLAND ACADEMY.
Dedicated Schools Grant BG0015,DSG High Needs Block,Third Party Payments,440080,Other third party payments E440,05/05/2022,3998956-APRIL2022TOPUP,"2,961.00",SALFORD CITY COLLEGE.
Dedicated Schools Grant BG0015,DSG High Needs Block,Third Party Payments,440080,Other third party payments E440,05/05/2022,3998983-APRIL2022TOPUP,"1,222.00",SPRINGBOARD SUNDERLAND TRUST.
Resources BK0010,Transactional & Customer Services,Third Party Payments,440999,Other third party payments E440,05/05/2022,3998984-RES-04-2022-433,"13,650.00",ST BEDES CATHOLIC ACADEMY (LANCHESTER).
Dedicated Schools Grant BG0015,DSG High Needs Block,Third Party Payments,440080,Other third party payments E440,05/05/2022,3999030-APRIL2022TOPUP,"2,880.00",THE EDUCATION TRAINING COLLEGE (ETC) T/A STOCKTON RIVERSIDE COLLEGE.
Dedicated Schools Grant BG0015,DSG High Needs Block,Third Party Payments,440080,Other third party payments E440,05/05/2022,3999055-APRIL2022TOPUP-1,"14,690.00",TRINITY ACADEMY NEWCASTLE.
Children and Young Peoples Services,Head of Education and Skills,Third Party Payments,440999,Other third party payments E440,05/05/2022,3999097-NEI-EXP-05-2022-019,"1,044.28",WOODSHED WORKSHOP CIC.
Children and Young Peoples Services,Head of Education and Skills,Third Party Payments,440999,Other third party payments E440,05/05/2022,3999097-NEI-EXP-05-2022-021,"1,044.28",WOODSHED WORKSHOP CIC.
Regeneration Economy and Growth,Culture Sport and Tourism,Supplies and Services,324117,Provisions E324,05/05/2022,3998822-906485156,"2,610.16",MOLSON COORS BREWING COMPANY (UK) LTD.
Adult and Health Services,Head of Adults,Third Party Payments,479154,Purchase of Care,05/05/2022,3998530-OMICRONSUPPORT1/80,"4,173.12",CARE UK COMMUNITY PARTNERSHIPS LTD.
Adult and Health Services,Head of Adults,Third Party Payments,479154,Purchase of Care,05/05/2022,3998531-OMICRONSUPPORT1/82,"7,054.56",CARE UK COMMUNITY PARTNERSHIPS LTD.
Adult and Health Services,Head of Adults,Third Party Payments,474101,Purchase of Care,05/05/2022,3998704-CAS-03-2022-131,"1,220.48",HC-ONE LTD.
Neighbourhoods and Climate Change,Environmental Services,Vehicles Equipment Furniture and Fittings,912529,Purchase-equipment,05/05/2022,3998455-1122010059,"4,552.52",ATLAS COPCO LTD T/A ATLAS COPCO COMPRESSORS.
Regeneration Economy and Growth,Corporate Property and Land,Third Party Payments,430100,Rendered by Private Contractors,05/05/2022,3998449-5326,870.00,APEX ROOFING SPECIALISTS LTD.
Regeneration Economy and Growth,Corporate Property and Land,Third Party Payments,430100,Rendered by Private Contractors,05/05/2022,3998465-SI-7037,"2,004.00",BELL CONTROL SOLUTIONS LTD.
Regeneration Economy and Growth,Corporate Property and Land,Third Party Payments,430100,Rendered by Private Contractors,05/05/2022,3998515-4100767807,750.00,BRIAN YOUNGER T/A B & E YOUNGER FLOORING.
Regeneration Economy and Growth,Corporate Property and Land,Third Party Payments,430100,Rendered by Private Contractors,05/05/2022,3998541-9466,"2,760.00",CATHEDRAL LOCK & SAFE SERVICES LTD.
Neighbourhoods and Climate Change,Technical Services CM0300,Third Party Payments,430100,Rendered by Private Contractors,05/05/2022,3998919-14047,"2,356.54",QUANTUM POWER CONNECTIONS LTD.
Neighbourhoods and Climate Change,Technical Services CM0300,Third Party Payments,430100,Rendered by Private Contractors,05/05/2022,3998919-14062,779.52,QUANTUM POWER CONNECTIONS LTD.
Neighbourhoods and Climate Change,Technical Services CM0300,Third Party Payments,430100,Rendered by Private Contractors,05/05/2022,3998919-14063,"1,169.28",QUANTUM POWER CONNECTIONS LTD.
Regeneration Economy and Growth,Corporate Property and Land,Third Party Payments,430100,Rendered by Private Contractors,05/05/2022,3999008-180702,572.00,SUPATINT LTD T/A SUPATINT WINDOW FILMS & BLINDS.
Neighbourhoods and Climate Change,Environmental Services,Third Party Payments,430100,Rendered by Private Contractors,05/05/2022,3999022-SIP-73477,574.03,TH WHITE LTD.
Neighbourhoods and Climate Change,Environmental Services,Transport,215023,Running Costs of Vehicles,05/05/2022,3999019-4119057,"1,174.80",TENNANTS DISTRIBUTION LTD.
Neighbourhoods and Climate Change,Environmental Services,Transport,215022,Running Costs of Vehicles,05/05/2022,3999104-930294,"1,411.80",YOUR NRG LTD.
Neighbourhoods and Climate Change,Environmental Services,Transport,215022,Running Costs of Vehicles,05/05/2022,3999104-930295,"1,411.80",YOUR NRG LTD.
Neighbourhoods and Climate Change,Environmental Services,Transport,215022,Running Costs of Vehicles,05/05/2022,3999104-930297,"1,013.67",YOUR NRG LTD.
Neighbourhoods and Climate Change,Environmental Services,Transport,215005,Running Costs of Vehicles,05/05/2022,3999104-930542,"18,098.97",YOUR NRG LTD.
Neighbourhoods and Climate Change,Environmental Services,Transport,215005,Running Costs of Vehicles,05/05/2022,3999104-930985,"41,785.73",YOUR NRG LTD.
Neighbourhoods and Climate Change,Environmental Services,Transport,215005,Running Costs of Vehicles,05/05/2022,3999104-930986,"8,374.80",YOUR NRG LTD.
Dedicated Schools Grant BG0015,DSG High Needs Block,Transfer Payments,510025,School Children,05/05/2022,3998420-APRIL2022TOPUP-1,"3,391.00",ADVANCE LEARNING PARTNERSHIP.
Children and Young Peoples Services,Head of Education and Skills,Transfer Payments,510027,School Children,05/05/2022,3998424-APRIL2022TOPUP-2,"1,453.00",ADVANCE LEARNING PARTNERSHIP.
Dedicated Schools Grant BG0015,DSG High Needs Block,Transfer Payments,510025,School Children,05/05/2022,3998428-APRIL2022TOPUP-2,"2,906.00",ADVANCE LEARNING PARTNERSHIP.
Dedicated Schools Grant BG0015,DSG High Needs Block,Transfer Payments,510025,School Children,05/05/2022,3998429-APRIL2022TOPUP,"2,068.00",ADVENTURE VALLEY DAY NURSERY LTD.
Children and Young Peoples Services,Head of Education and Skills,Transfer Payments,510026,School Children,05/05/2022,3998477-APRIL2022TOPUP,"4,965.00",BISHOP AUCKLAND COLLEGE NURSERY.
Children and Young Peoples Services,Head of Education and Skills,Transfer Payments,510027,School Children,05/05/2022,3998477-APRIL2022TOPUP-1,"2,482.00",BISHOP AUCKLAND COLLEGE NURSERY.
Dedicated Schools Grant BG0015,DSG High Needs Block,Transfer Payments,510025,School Children,05/05/2022,3998488-APRIL2022TOPUP,"3,391.00",BISHOP HOGARTH CATHOLIC EDUCATION TRUST.
Children and Young Peoples Services,Head of Education and Skills,Transfer Payments,510026,School Children,05/05/2022,3998489-APRIL2022TOPUP-1,969.00,BISHOP HOGARTH CATHOLIC EDUCATION TRUST.
Dedicated Schools Grant BG0015,DSG High Needs Block,Transfer Payments,510025,School Children,05/05/2022,3998489-APRIL2022TOPUP-2,"3,178.00",BISHOP HOGARTH CATHOLIC EDUCATION TRUST.
Dedicated Schools Grant BG0015,DSG High Needs Block,Transfer Payments,510025,School Children,05/05/2022,3998490-APRIL2022TOPUP-1,"1,937.00",BISHOP HOGARTH CATHOLIC EDUCATION TRUST.
Dedicated Schools Grant BG0015,DSG High Needs Block,Transfer Payments,510025,School Children,05/05/2022,3998492-APRIL2022TOPUP-2,"3,874.00",BISHOP HOGARTH CATHOLIC EDUCATION TRUST.
Children and Young Peoples Services,Head of Education and Skills,Transfer Payments,510027,School Children,05/05/2022,3998494-APRIL2022TOPUP-2,"1,453.00",BISHOP HOGARTH CATHOLIC EDUCATION TRUST.
Dedicated Schools Grant BG0015,DSG High Needs Block,Transfer Payments,510025,School Children,05/05/2022,3998495-APRIL2022TOPUP-2,"1,655.00",BISHOP IAN RAMSEY C OF E PRIMARY SCHOOL.
Dedicated Schools Grant BG0015,DSG High Needs Block,Transfer Payments,510025,School Children,05/05/2022,3998508-APRIL2022TOPUP,"7,998.00",BLUE SKY CHILDCARE.
Children and Young Peoples Services,Head of Education and Skills,Transfer Payments,510026,School Children,05/05/2022,3998516-APRIL2022TOPUP,"2,068.00",BRIGHT STAR NURSERY.
Children and Young Peoples Services,Head of Education and Skills,Transfer Payments,510027,School Children,05/05/2022,3998516-APRIL2022TOPUP-1,"1,241.00",BRIGHT STAR NURSERY.
Dedicated Schools Grant BG0015,DSG High Needs Block,Transfer Payments,510025,School Children,05/05/2022,3998523-APRIL2022TOPUP,"2,482.00",BUDDIES CHILDCARE CENTRE.
Children and Young Peoples Services,Head of Education and Skills,Transfer Payments,510026,School Children,05/05/2022,3998525-APRIL2022TOPUP,"4,525.00",BUSY BEARS (DURHAM) LTD.
Dedicated Schools Grant BG0015,DSG High Needs Block,Transfer Payments,510025,School Children,05/05/2022,3998525-APRIL2022TOPUP-1,"8,687.00",BUSY BEARS (DURHAM) LTD.
Children and Young Peoples Services,Head of Education and Skills,Transfer Payments,510027,School Children,05/05/2022,3998526-APRIL2022TOPUP,"3,310.00",BUSY BEES (DURHAM) LTD.
Dedicated Schools Grant BG0015,DSG High Needs Block,Transfer Payments,510025,School Children,05/05/2022,3998526-APRIL2022TOPUP-1,"2,895.00",BUSY BEES (DURHAM) LTD.
Children and Young Peoples Services,Head of Education and Skills,Transfer Payments,510027,School Children,05/05/2022,3998527-APRIL2022TOPUP,"1,241.00",BUSY BEES AT SUNDERLAND DOXFORD.
Dedicated Schools Grant BG0015,DSG High Needs Block,Transfer Payments,510025,School Children,05/05/2022,3998536-APRIL2022TOPUP,"3,585.00",CASTLE KINDERGARTEN LTD.
Dedicated Schools Grant BG0015,DSG High Needs Block,Transfer Payments,510025,School Children,05/05/2022,3998537-APRIL2022TOPUP,"2,482.00",CASTLE KINDERGARTEN LTD.
Children and Young Peoples Services,Head of Education and Skills,Transfer Payments,510026,School Children,05/05/2022,3998538-APRIL2022TOPUP,"2,895.00",CASTLE VIEW PRIVATE DAY NURSERY LTD.
Dedicated Schools Grant BG0015,DSG High Needs Block,Transfer Payments,510025,School Children,05/05/2022,3998538-APRIL2022TOPUP-1,"4,833.00",CASTLE VIEW PRIVATE DAY NURSERY LTD.
Dedicated Schools Grant BG0015,DSG High Needs Block,Transfer Payments,510025,School Children,05/05/2022,3998557-APRIL2022TOPUP,"2,895.00",CLEVER CLOGS DAY NURSERIES LTD.
Dedicated Schools Grant BG0015,DSG High Needs Block,Transfer Payments,510025,School Children,05/05/2022,3998558-APRIL2022TOPUP,"1,241.00",CLEVER CLOGS DAY NURSERY (DURHAM) LTD.
Dedicated Schools Grant BG0015,DSG High Needs Block,Transfer Payments,510025,School Children,05/05/2022,3998560-APRIL2022TOPUP-2,"5,327.00",CLEVES CROSS LEARNING TRUST.
Children and Young Peoples Services,Head of Education and Skills,Transfer Payments,510026,School Children,05/05/2022,3998564-APRIL2022TOPUP,"6,168.00",CO-OPERATIVE CHILDCARE SEAHAM T/A SEAHAM HOUSE DAY NURSERY.
Dedicated Schools Grant BG0015,DSG High Needs Block,Transfer Payments,510025,School Children,05/05/2022,3998564-APRIL2022TOPUP-1,"1,654.00",CO-OPERATIVE CHILDCARE SEAHAM T/A SEAHAM HOUSE DAY NURSERY.
Children and Young Peoples Services,Head of Education and Skills,Transfer Payments,510026,School Children,05/05/2022,3998577-APRIL2022TOPUP,"1,655.00",COUNDON & LEEHOLME EARLY YEARS CENTRE LTD.
Dedicated Schools Grant BG0015,DSG High Needs Block,Transfer Payments,510025,School Children,05/05/2022,3998577-APRIL2022TOPUP-1,"3,034.00",COUNDON & LEEHOLME EARLY YEARS CENTRE LTD.
Children and Young Peoples Services,Head of Education and Skills,Transfer Payments,510026,School Children,05/05/2022,3998582-APRIL2022TOPUP,"1,655.00",CRAGHEAD CHILDCARE CENTRE.
Dedicated Schools Grant BG0015,DSG High Needs Block,Transfer Payments,510025,School Children,05/05/2022,3998582-APRIL2022TOPUP-1,"1,655.00",CRAGHEAD CHILDCARE CENTRE.
Dedicated Schools Grant BG0015,DSG High Needs Block,Transfer Payments,510025,School Children,05/05/2022,3998582-APRIL2022TOPUP-2,"2,068.00",CRAGHEAD CHILDCARE CENTRE.
Children and Young Peoples Services,Head of Education and Skills,Transfer Payments,510027,School Children,05/05/2022,3998598-APRIL2022TOPUP-1,"2,741.00",DAYPARK LTD T/A YELLOW WELLIES.
Children and Young Peoples Services,Head of Education and Skills,Transfer Payments,510026,School Children,05/05/2022,3998600-APRIL2022TOPUP,"1,655.00",DAYPARK LTD T/A YELLOW WELLIES.
Dedicated Schools Grant BG0015,DSG High Needs Block,Transfer Payments,510025,School Children,05/05/2022,3998600-APRIL2022TOPUP-1,"5,792.00",DAYPARK LTD T/A YELLOW WELLIES.
Children and Young Peoples Services,Head of Education and Skills,Transfer Payments,510026,School Children,05/05/2022,3998604-APRIL2022TOPUP,"1,655.00",DEERNESS VALLEY NURSERY SCHOOL.
Children and Young Peoples Services,Head of Education and Skills,Transfer Payments,510027,School Children,05/05/2022,3998604-APRIL2022TOPUP-1,"1,250.00",DEERNESS VALLEY NURSERY SCHOOL.
Children and Young Peoples Services,Head of Education and Skills,Transfer Payments,510026,School Children,05/05/2022,3998616-APRIL2022TOPUP,"1,517.00",DO RE MI DAY NURSERY.
Dedicated Schools Grant BG0015,DSG High Needs Block,Transfer Payments,510025,School Children,05/05/2022,3998616-APRIL2022TOPUP-1,"3,033.00",DO RE MI DAY NURSERY.
Dedicated Schools Grant BG0015,DSG High Needs Block,Transfer Payments,510025,School Children,05/05/2022,3998623-APRIL2022TOPUP-2,"1,937.00",DURHAM & NEWCASTLE DIOCESAN LEARNING TRUST T/A STANHOPE BARRINGTON C OF E PRIMARY SCHOOL.
Children and Young Peoples Services,Head of Education and Skills,Transfer Payments,510026,School Children,05/05/2022,3998634-APRIL2022TOPUP,"1,125.00",EARLY LEARNERS PRIVATE DAY NURSERY.
Children and Young Peoples Services,Head of Education and Skills,Transfer Payments,510026,School Children,05/05/2022,3998638-APRIL2022TOPUP-2,"1,453.00",EDEN ACADEMY TRUST LTD T/A BLUEBELL MEADOW PRIMARY SCHOOL.
Children and Young Peoples Services,Head of Education and Skills,Transfer Payments,510027,School Children,05/05/2022,3998638-APRIL2022TOPUP-3,"2,906.00",EDEN ACADEMY TRUST LTD T/A BLUEBELL MEADOW PRIMARY SCHOOL.
Dedicated Schools Grant BG0015,DSG High Needs Block,Transfer Payments,510025,School Children,05/05/2022,3998639-APRIL2022TOPUP-2,"7,865.00",EDEN LEARNING TRUST T/A CHILTON ACADEMY.
Children and Young Peoples Services,Head of Education and Skills,Transfer Payments,510051,School Children,05/05/2022,3998641-RES-04-2022-413,"2,685.55",EDEN LEARNING TRUST T/A SEAHAM HIGH SCHOOL.
Children and Young Peoples Services,Head of Education and Skills,Transfer Payments,510026,School Children,05/05/2022,3998654-APRIL2022TOPUP,"2,482.00",EMERALDS LITTLE GEMS DAYCARE LTD.
Dedicated Schools Grant BG0015,DSG High Needs Block,Transfer Payments,510025,School Children,05/05/2022,3998654-APRIL2022TOPUP-1,"9,102.00",EMERALDS LITTLE GEMS DAYCARE LTD.
Children and Young Peoples Services,Head of Education and Skills,Transfer Payments,510027,School Children,05/05/2022,3998655-APRIL2022TOPUP,"2,625.00",EMERALDS LITTLE GEMS DAYCARE LTD.
Dedicated Schools Grant BG0015,DSG High Needs Block,Transfer Payments,510025,School Children,05/05/2022,3998655-APRIL2022TOPUP-1,"5,792.00",EMERALDS LITTLE GEMS DAYCARE LTD.
Children and Young Peoples Services,Head of Education and Skills,Transfer Payments,510026,School Children,05/05/2022,3998662-APRIL2022TOPUP,"1,655.00",EXPLORERS DAY CARE.
Dedicated Schools Grant BG0015,DSG High Needs Block,Transfer Payments,510025,School Children,05/05/2022,3998662-APRIL2022TOPUP-1,"1,241.00",EXPLORERS DAY CARE.
Children and Young Peoples Services,Head of Education and Skills,Transfer Payments,510027,School Children,05/05/2022,3998688-APRIL2022TOPUP,"1,379.00",GIANT STEPS LTD.
Dedicated Schools Grant BG0015,DSG High Needs Block,Transfer Payments,510025,School Children,05/05/2022,3998698-APRIL2022TOPUP,"1,875.00",HAPPYTIMES DAYCARE LTD.
Children and Young Peoples Services,Head of Education and Skills,Transfer Payments,510027,School Children,05/05/2022,3998703-APRIL2022TOPUP,"1,655.00",HAYSTACKS NURSERY..
Dedicated Schools Grant BG0015,DSG High Needs Block,Transfer Payments,510025,School Children,05/05/2022,3998703-APRIL2022TOPUP-1,"9,515.00",HAYSTACKS NURSERY..
Children and Young Peoples Services,Head of Education and Skills,Transfer Payments,510026,School Children,05/05/2022,3998718-APRIL2022TOPUP,"1,241.00",HOUSE OF EDEN LTD.
Dedicated Schools Grant BG0015,DSG High Needs Block,Transfer Payments,510025,School Children,05/05/2022,3998718-APRIL2022TOPUP-1,"4,275.00",HOUSE OF EDEN LTD.
Children and Young Peoples Services,Head of Education and Skills,Transfer Payments,510026,School Children,05/05/2022,3998720-APRIL2022TOPUP,"1,655.00",HOWLETCH & SHOTTON CHILDCARE LTD.
Children and Young Peoples Services,Head of Education and Skills,Transfer Payments,510026,School Children,05/05/2022,3998721-APRIL2022TOPUP,"1,241.00",HOWLETCH & SHOTTON CHILDCARE LTD.
Dedicated Schools Grant BG0015,DSG High Needs Block,Transfer Payments,510025,School Children,05/05/2022,3998721-APRIL2022TOPUP-1,"2,896.00",HOWLETCH & SHOTTON CHILDCARE LTD.
Dedicated Schools Grant BG0015,DSG High Needs Block,Transfer Payments,510025,School Children,05/05/2022,3998772-APRIL2022TOPUP,"2,068.00",KELLOE PHOENIX CENTRE (CHILDCARE).
Children and Young Peoples Services,Head of Education and Skills,Transfer Payments,510027,School Children,05/05/2022,3998774-APRIL2022TOPUP,"1,241.00",KIDS 1ST NURSERIES DURHAM.
Dedicated Schools Grant BG0015,DSG High Needs Block,Transfer Payments,510025,School Children,05/05/2022,3998775-APRIL2022TOPUP,827.00,KIDZ VILLAGE LTD.
Children and Young Peoples Services,Head of Education and Skills,Transfer Payments,510026,School Children,05/05/2022,3998776-APRIL2022TOPUP,"1,500.00",KIDZONE.
Dedicated Schools Grant BG0015,DSG High Needs Block,Transfer Payments,510025,School Children,05/05/2022,3998790-APRIL2022TOPUP,"2,896.00",LITTLE CUBS DAY NURSERY.
Children and Young Peoples Services,Head of Education and Skills,Transfer Payments,510026,School Children,05/05/2022,3998791-APRIL2022TOPUP,"1,655.00",LITTLE WAVES DAY NURSERY LTD.
Dedicated Schools Grant BG0015,DSG High Needs Block,Transfer Payments,510025,School Children,05/05/2022,3998791-APRIL2022TOPUP-1,827.00,LITTLE WAVES DAY NURSERY LTD.
Dedicated Schools Grant BG0015,DSG High Needs Block,Transfer Payments,510025,School Children,05/05/2022,3998869-APRIL2022TOPUP,"2,557.00",NURSERYTIME LTD.
Children and Young Peoples Services,Head of Education and Skills,Transfer Payments,510026,School Children,05/05/2022,3998903-APRIL2022TOPUP,827.00,PLAYDAY NURSERY.
Children and Young Peoples Services,Head of Education and Skills,Transfer Payments,510027,School Children,05/05/2022,3998903-APRIL2022TOPUP-1,"2,206.00",PLAYDAY NURSERY.
Dedicated Schools Grant BG0015,DSG High Needs Block,Transfer Payments,510025,School Children,05/05/2022,3998903-APRIL2022TOPUP-2,"2,482.00",PLAYDAY NURSERY.
Children and Young Peoples Services,Head of Education and Skills,Transfer Payments,510026,School Children,05/05/2022,3998923-APRIL2022TOPUP,"6,068.00",RAINBOW NURSERY LTD (MIDDLESTONE MOOR).
Dedicated Schools Grant BG0015,DSG High Needs Block,Transfer Payments,510025,School Children,05/05/2022,3998935-APRIL2022TOPUP-2,"1,937.00",RIBBON ACADEMY TRUST.
Children and Young Peoples Services,Head of Education and Skills,Transfer Payments,510026,School Children,05/05/2022,3998959-APRIL2022TOPUP,"1,655.00",SAPLINGS NATURE KINDERGARTEN & FOREST SCHOOL.
Dedicated Schools Grant BG0015,DSG High Needs Block,Transfer Payments,510025,School Children,05/05/2022,3998969-APRIL2022TOPUP,"4,551.00",SHOTLEY BRIDGE NURSERY SCHOOL LTD.
Dedicated Schools Grant BG0015,DSG High Needs Block,Transfer Payments,510025,School Children,05/05/2022,3998988-APRIL2022TOPUP,"5,378.00",ST OSWALD`S PRE SCHOOL LEARNING CENTRE.
Dedicated Schools Grant BG0015,DSG High Needs Block,Transfer Payments,510025,School Children,05/05/2022,3998989-APRIL2022TOPUP,"2,482.00",ST OSWALD`S SUNSHINE CLUB.
Children and Young Peoples Services,Head of Education and Skills,Transfer Payments,510027,School Children,05/05/2022,3998995-APRIL2022TOPUP-2,"1,937.00",STANLEY LEARNING PARTNERSHIP.
Dedicated Schools Grant BG0015,DSG High Needs Block,Transfer Payments,510025,School Children,05/05/2022,3998995-APRIL2022TOPUP-3,"2,322.00",STANLEY LEARNING PARTNERSHIP.
Children and Young Peoples Services,Head of Education and Skills,Transfer Payments,510027,School Children,05/05/2022,3999004-APRIL2022TOPUP,"1,125.00",SUNSHINE DAY NURSERY LTD.
Dedicated Schools Grant BG0015,DSG High Needs Block,Transfer Payments,510025,School Children,05/05/2022,3999004-APRIL2022TOPUP-1,"2,249.00",SUNSHINE DAY NURSERY LTD.
Children and Young Peoples Services,Head of Education and Skills,Transfer Payments,510026,School Children,05/05/2022,3999005-APRIL2022TOPUP,"1,597.00",SUNSHINE DAY NURSERY LTD.
Children and Young Peoples Services,Head of Education and Skills,Transfer Payments,510026,School Children,05/05/2022,3999006-APRIL2022TOPUP,"3,723.00",SUNSHINE DAY NURSERY LTD.
Children and Young Peoples Services,Head of Education and Skills,Transfer Payments,510027,School Children,05/05/2022,3999006-APRIL2022TOPUP-1,"1,655.00",SUNSHINE DAY NURSERY LTD.
Dedicated Schools Grant BG0015,DSG High Needs Block,Transfer Payments,510025,School Children,05/05/2022,3999006-APRIL2022TOPUP-2,"7,447.00",SUNSHINE DAY NURSERY LTD.
Children and Young Peoples Services,Head of Education and Skills,Transfer Payments,510026,School Children,05/05/2022,3999032-APRIL2022TOPUP,"4,435.00",THE LAURELS CHILD CARE COMPANY LTD.
Children and Young Peoples Services,Head of Education and Skills,Transfer Payments,510027,School Children,05/05/2022,3999032-APRIL2022TOPUP-1,"2,249.00",THE LAURELS CHILD CARE COMPANY LTD.
Children and Young Peoples Services,Head of Education and Skills,Transfer Payments,510027,School Children,05/05/2022,3999037-APRIL2022TOPUP,"1,379.00",THE NURSERY.
Dedicated Schools Grant BG0015,DSG High Needs Block,Transfer Payments,510025,School Children,05/05/2022,3999037-APRIL2022TOPUP-1,"6,619.00",THE NURSERY.
Children and Young Peoples Services,Head of Education and Skills,Transfer Payments,510026,School Children,05/05/2022,3999044-APRIL2022TOPUP,"2,269.00",TM NURSERY ENTERPRISES LTD T/A JACK IN THE BOX DAYCARE.
Dedicated Schools Grant BG0015,DSG High Needs Block,Transfer Payments,510025,School Children,05/05/2022,3999044-APRIL2022TOPUP-1,"7,446.00",TM NURSERY ENTERPRISES LTD T/A JACK IN THE BOX DAYCARE.
Children and Young Peoples Services,Head of Education and Skills,Transfer Payments,510026,School Children,05/05/2022,3999050-APRIL2022TOPUP,"2,069.00",TOTS `R` US.
Dedicated Schools Grant BG0015,DSG High Needs Block,Transfer Payments,510025,School Children,05/05/2022,3999050-APRIL2022TOPUP-1,"2,068.00",TOTS `R` US.
Dedicated Schools Grant BG0015,DSG High Needs Block,Transfer Payments,510025,School Children,05/05/2022,3999059-APRIL2022TOPUP-2,"5,812.00",TUDHOE LEARNING TRUST T/A SOUTH HETTON PRIMARY SCHOOL.
Dedicated Schools Grant BG0015,DSG High Needs Block,Transfer Payments,510025,School Children,05/05/2022,3999063-APRIL2022TOPUP,"1,241.00",UNIVERSITY OF DURHAM DAY NURSERY.
Children and Young Peoples Services,Head of Education and Skills,Transfer Payments,510026,School Children,05/05/2022,3999066-APRIL2022TOPUP,"1,250.00",USHAW MOOR DAYCARE.
Dedicated Schools Grant BG0015,DSG High Needs Block,Transfer Payments,510025,School Children,05/05/2022,3999066-APRIL2022TOPUP-1,"1,241.00",USHAW MOOR DAYCARE.
Children and Young Peoples Services,Head of Education and Skills,Transfer Payments,510026,School Children,05/05/2022,3999082-APRIL2022TOPUP,"1,241.00",WAYMAN DEVELOPMENTS LTD T/A CHILDSPLAY PRIVATE NURSERY.
Dedicated Schools Grant BG0015,DSG High Needs Block,Transfer Payments,510025,School Children,05/05/2022,3999082-APRIL2022TOPUP-1,"1,655.00",WAYMAN DEVELOPMENTS LTD T/A CHILDSPLAY PRIVATE NURSERY.
Dedicated Schools Grant BG0015,DSG High Needs Block,Transfer Payments,510025,School Children,05/05/2022,3999083-APRIL2022TOPUP,"2,482.00",WAYMAN DEVELOPMENTS LTD T/A CHILDSPLAY PRIVATE NURSERY.
Dedicated Schools Grant BG0015,DSG High Needs Block,Transfer Payments,510025,School Children,05/05/2022,3999088-APRIL2022TOPUP,"2,896.00",WHEATLEY HILL COMMUNITY NURSERY LTD.
Children and Young Peoples Services,Head of Education and Skills,Transfer Payments,510026,School Children,05/05/2022,3999094-APRIL2022TOPUP,"3,310.00",WINGATE COMMUNITY CHILDCARE LTD.
Dedicated Schools Grant BG0015,DSG High Needs Block,Transfer Payments,510025,School Children,05/05/2022,3999094-APRIL2022TOPUP-1,"1,937.00",WINGATE COMMUNITY CHILDCARE LTD.
Children and Young Peoples Services,Head of Education and Skills,Transfer Payments,510026,School Children,05/05/2022,3999102-APRIL2022TOPUP,"1,241.00",YORK HOUSE NURSERY.
Dedicated Schools Grant BG0015,DSG High Needs Block,Transfer Payments,510025,School Children,05/05/2022,3999102-APRIL2022TOPUP-1,"2,896.00",YORK HOUSE NURSERY.
Children and Young Peoples Services,Head of Education and Skills,Transfer Payments,510026,School Children,05/05/2022,3998754-APRIL2022TOPUP,"1,241.00",REDACTED - PAYMENT TO INDIVIDUAL
Dedicated Schools Grant BG0015,DSG High Needs Block,Transfer Payments,510025,School Children,05/05/2022,3998830-APRIL2022TOPUP,690.00,REDACTED - PAYMENT TO INDIVIDUAL
Children and Young Peoples Services,Head of Childrens Social Care,Third Party Payments,486020,Service level agreements E486,05/05/2022,3998927-PIG_125830,"1,722.78",REAL LIFE OPTIONS.
Neighbourhoods and Climate Change,Environmental Services,Supplies and Services,338066,Services,05/05/2022,3998632-10129,500.00,DURHAM WILDLIFE TRUST LTD.
Regeneration Economy and Growth,Culture Sport and Tourism,Supplies and Services,338047,Services,05/05/2022,3998941-LS433,"6,318.79",RJ LAIDLAW & W MITCHELL.
Neighbourhoods and Climate Change,Environmental Services,Supplies and Services,338027,Services,05/05/2022,3998976-0000951004,808.98,SOCOTEC UK LTD.
Regeneration Economy and Growth,Transport and Contracted Services,Supplies and Services,338045,Services,05/05/2022,3999000-647228,"2,664.00",STOCKTON ON TEES BOROUGH COUNCIL.
Resources BK0010,HR & Employee Services,Supplies and Services,338094,Services,05/05/2022,3999028-6681,741.20,THE DURHAM CENTRE LTD.
Children and Young Peoples Services,Childrens Services Operational Support,Supplies and Services,338094,Services,05/05/2022,3999040-INV-2502,586.20,THE WORK PLACE (AYCLIFFE) LTD.
Neighbourhoods and Climate Change,Technical Services CM0300,Supplies and Services,338066,Services,05/05/2022,3999100-64562322,"4,935.00",WSP UK LTD.
Children and Young Peoples Services,Head of Education and Skills,Supplies and Services,338027,Services,05/05/2022,3998438-4/2022,"2,100.00",REDACTED - PAYMENT TO INDIVIDUAL
Resources BK0010,Legal & Democratic Services,Supplies and Services,338101,Services,05/05/2022,3998619-JRB-04/2022JC,780.60,REDACTED - PAYMENT TO INDIVIDUAL
Resources BK0010,Legal & Democratic Services,Supplies and Services,338101,Services,05/05/2022,3998620-PB190,"3,401.60",REDACTED - PAYMENT TO INDIVIDUAL
Neighbourhoods and Climate Change,Environmental Services,Supplies and Services,338066,Services,05/05/2022,3998889-093,"4,999.00",REDACTED - PAYMENT TO INDIVIDUAL
Neighbourhoods and Climate Change,Environmental Services,Stock A926,926004,Stock,05/05/2022,3998466-15202193,515.23,BELL TRUCK SALES LTD T/A BELL TRUCK & VAN.
Neighbourhoods and Climate Change,Environmental Services,Stock A926,926004,Stock,05/05/2022,3998608-96422244,"1,635.01",DENNIS EAGLE LTD T/A TERBERG MATEC (UK) LTD.
Neighbourhoods and Climate Change,Environmental Services,Stock A926,926004,Stock,05/05/2022,3998608-96422421,"1,600.22",DENNIS EAGLE LTD T/A TERBERG MATEC (UK) LTD.
Neighbourhoods and Climate Change,Environmental Services,Stock A926,926004,Stock,05/05/2022,3998608-96422548,"1,870.26",DENNIS EAGLE LTD T/A TERBERG MATEC (UK) LTD.
Neighbourhoods and Climate Change,Environmental Services,Stock A926,926004,Stock,05/05/2022,3998608-96422801,"1,019.08",DENNIS EAGLE LTD T/A TERBERG MATEC (UK) LTD.
Neighbourhoods and Climate Change,Environmental Services,Stock A926,926004,Stock,05/05/2022,3998690-SI-00001738,521.11,GRAYS MACHINERY LTD.
Neighbourhoods and Climate Change,Environmental Services,Stock A926,926004,Stock,05/05/2022,3998725-SI01046008,729.04,HYDRAQUIP HOSE & HYDRAULICS LTD.
Neighbourhoods and Climate Change,Technical Services CM0300,Stock A926,926900,Stock in hand-Inventory system,05/05/2022,3998563-997173,"1,216.35",CMT EQUIPMENT LTD.
Neighbourhoods and Climate Change,Technical Services CM0300,Stock A926,926900,Stock in hand-Inventory system,05/05/2022,3998733-831497,"2,368.80",INSTARMAC GROUP PLC.
Neighbourhoods and Climate Change,Technical Services CM0300,Stock A926,926900,Stock in hand-Inventory system,05/05/2022,3999012-9045117762,"1,546.51",TARMAC TRADING LTD.
Resources BK0010,Corporate Finance & Commercial Services,Supplies and Services,372009,Subscriptions E372,05/05/2022,3998550-3164388,"31,232.25",CIPFA BUSINESS LTD.
Resources BK0010,Transactional & Customer Services,Supplies and Services,372009,Subscriptions E372,05/05/2022,3998729-1454,"9,632.00",IIZUKA SOFTWARE TECHNOLOGIES LTD.
Neighbourhoods and Climate Change,Technical Services CM0300,Supplies and Services,372009,Subscriptions E372,05/05/2022,3998967-WWB1169250,"4,625.00",SGS UNITED KINGDOM LTD.
Dedicated Schools Grant BG0015,DSG High Needs Block,Central Support and Other Recharges,689988,Unclassified E690,05/05/2022,3999038-APRIL2022TOPUP,"3,103.00",(USE 189028) THE TRINITY CATHOLIC MULTI ACADEMY TRUST T/A OUR LADY QUEEN OF PEACE CATHOLIC PRIMARY SCHOOL.
Dedicated Schools Grant BG0015,DSG High Needs Block,Central Support and Other Recharges,689988,Unclassified E690,05/05/2022,3998406-APRIL2022TOPUP,"4,608.00",1EXCELLENCE MULTI ACADEMY TRUST.
Dedicated Schools Grant BG0015,DSG High Needs Block,Central Support and Other Recharges,689989,Unclassified E690,05/05/2022,3998406-APRIL2022TOPUP-1,"6,551.00",1EXCELLENCE MULTI ACADEMY TRUST.
Dedicated Schools Grant BG0015,DSG High Needs Block,Central Support and Other Recharges,689988,Unclassified E690,05/05/2022,3998407-APRIL2022TOPUP,"11,056.00",1EXCELLENCE MULTI ACADEMY TRUST.
Dedicated Schools Grant BG0015,DSG High Needs Block,Central Support and Other Recharges,689989,Unclassified E690,05/05/2022,3998407-APRIL2022TOPUP-1,"4,336.00",1EXCELLENCE MULTI ACADEMY TRUST.
Dedicated Schools Grant BG0015,DSG High Needs Block,Central Support and Other Recharges,689988,Unclassified E690,05/05/2022,3998416-APRIL2022TOPUP,"6,814.00",ACRE RIGG ACADEMY.
Dedicated Schools Grant BG0015,DSG High Needs Block,Central Support and Other Recharges,689988,Unclassified E690,05/05/2022,3998420-APRIL2022TOPUP,"13,417.00",ADVANCE LEARNING PARTNERSHIP.
Dedicated Schools Grant BG0015,DSG High Needs Block,Central Support and Other Recharges,689988,Unclassified E690,05/05/2022,3998421-APRIL2022TOPUP,"4,951.00",ADVANCE LEARNING PARTNERSHIP.
Dedicated Schools Grant BG0015,DSG High Needs Block,Central Support and Other Recharges,689989,Unclassified E690,05/05/2022,3998421-APRIL2022TOPUP-1,"1,643.00",ADVANCE LEARNING PARTNERSHIP.
Dedicated Schools Grant BG0015,DSG High Needs Block,Central Support and Other Recharges,689988,Unclassified E690,05/05/2022,3998422-APRIL2022TOPUP,"8,947.00",ADVANCE LEARNING PARTNERSHIP.
Dedicated Schools Grant BG0015,DSG High Needs Block,Central Support and Other Recharges,689989,Unclassified E690,05/05/2022,3998422-APRIL2022TOPUP-1,"3,065.00",ADVANCE LEARNING PARTNERSHIP.
Dedicated Schools Grant BG0015,DSG High Needs Block,Central Support and Other Recharges,689986,Unclassified E690,05/05/2022,3998422-APRIL2022TOPUP-2,"16,790.00",ADVANCE LEARNING PARTNERSHIP.
Dedicated Schools Grant BG0015,DSG High Needs Block,Central Support and Other Recharges,689988,Unclassified E690,05/05/2022,3998423-APRIL2022TOPUP,"9,877.00",ADVANCE LEARNING PARTNERSHIP.
Dedicated Schools Grant BG0015,DSG High Needs Block,Central Support and Other Recharges,689988,Unclassified E690,05/05/2022,3998424-APRIL2022TOPUP,"9,044.00",ADVANCE LEARNING PARTNERSHIP.
Dedicated Schools Grant BG0015,DSG High Needs Block,Central Support and Other Recharges,689989,Unclassified E690,05/05/2022,3998424-APRIL2022TOPUP-1,"7,988.00",ADVANCE LEARNING PARTNERSHIP.
Dedicated Schools Grant BG0015,DSG High Needs Block,Central Support and Other Recharges,689988,Unclassified E690,05/05/2022,3998425-APRIL2022TOPUP,"15,292.00",ADVANCE LEARNING PARTNERSHIP.
Dedicated Schools Grant BG0015,DSG High Needs Block,Central Support and Other Recharges,689988,Unclassified E690,05/05/2022,3998426-APRIL2022TOPUP,"20,279.00",ADVANCE LEARNING PARTNERSHIP.
Dedicated Schools Grant BG0015,DSG High Needs Block,Central Support and Other Recharges,689989,Unclassified E690,05/05/2022,3998426-APRIL2022TOPUP-1,"4,437.00",ADVANCE LEARNING PARTNERSHIP.
Dedicated Schools Grant BG0015,DSG High Needs Block,Central Support and Other Recharges,689988,Unclassified E690,05/05/2022,3998426-APRIL2022TOPUP-2,"10,298.00",ADVANCE LEARNING PARTNERSHIP.
Dedicated Schools Grant BG0015,DSG High Needs Block,Central Support and Other Recharges,689988,Unclassified E690,05/05/2022,3998427-APRIL2022TOPUP,"8,874.00",ADVANCE LEARNING PARTNERSHIP.
Dedicated Schools Grant BG0015,DSG High Needs Block,Central Support and Other Recharges,689989,Unclassified E690,05/05/2022,3998427-APRIL2022TOPUP-1,"20,427.00",ADVANCE LEARNING PARTNERSHIP.
Dedicated Schools Grant BG0015,DSG High Needs Block,Central Support and Other Recharges,689988,Unclassified E690,05/05/2022,3998428-APRIL2022TOPUP,"12,909.00",ADVANCE LEARNING PARTNERSHIP.
Dedicated Schools Grant BG0015,DSG High Needs Block,Central Support and Other Recharges,689989,Unclassified E690,05/05/2022,3998428-APRIL2022TOPUP-1,"16,487.00",ADVANCE LEARNING PARTNERSHIP.
Dedicated Schools Grant BG0015,DSG High Needs Block,Central Support and Other Recharges,689989,Unclassified E690,05/05/2022,3998450-APRIL2022TOPUP,"4,124.00",APOLLO SCHOOLS TRUST T/A ENDEAVOUR ACADEMY.
Dedicated Schools Grant BG0015,DSG High Needs Block,Central Support and Other Recharges,689988,Unclassified E690,05/05/2022,3998463-APRIL2022TOPUP,"1,481.00",BALMORAL LEARNING TRUST T/A HETTON LYONS PRIMARY SCHOOL.
Dedicated Schools Grant BG0015,DSG High Needs Block,Central Support and Other Recharges,689987,Unclassified E690,05/05/2022,3998464-APRIL2022TOPUP,"17,970.00",BARBARA PRIESTMAN ACADEMY.
Dedicated Schools Grant BG0015,DSG High Needs Block,Central Support and Other Recharges,689986,Unclassified E690,05/05/2022,3998474-APRIL2022TOPUP,"5,949.00",BIDDICK ACADEMY.
Dedicated Schools Grant BG0015,DSG High Needs Block,Central Support and Other Recharges,689988,Unclassified E690,05/05/2022,3998478-APRIL2022TOPUP,"3,629.00",BISHOP AUCKLAND COLLEGE.
Dedicated Schools Grant BG0015,DSG High Needs Block,Central Support and Other Recharges,689988,Unclassified E690,05/05/2022,3998479-APRIL2022TOPUP,"13,020.00",BISHOP CHADWICK CATHOLIC EDUCATION TRUST (NSCET).
Dedicated Schools Grant BG0015,DSG High Needs Block,Central Support and Other Recharges,689989,Unclassified E690,05/05/2022,3998480-APRIL2022TOPUP,"8,074.00",BISHOP CHADWICK CATHOLIC EDUCATION TRUST (NSCET).
Dedicated Schools Grant BG0015,DSG High Needs Block,Central Support and Other Recharges,689988,Unclassified E690,05/05/2022,3998481-APRIL2022TOPUP,"15,419.00",BISHOP CHADWICK CATHOLIC EDUCATION TRUST (NSCET).
Dedicated Schools Grant BG0015,DSG High Needs Block,Central Support and Other Recharges,689989,Unclassified E690,05/05/2022,3998481-APRIL2022TOPUP-1,"4,801.00",BISHOP CHADWICK CATHOLIC EDUCATION TRUST (NSCET).
Dedicated Schools Grant BG0015,DSG High Needs Block,Central Support and Other Recharges,689988,Unclassified E690,05/05/2022,3998482-APRIL2022TOPUP,"8,256.00",BISHOP CHADWICK CATHOLIC EDUCATION TRUST (NSCET).
Dedicated Schools Grant BG0015,DSG High Needs Block,Central Support and Other Recharges,689988,Unclassified E690,05/05/2022,3998483-APRIL2022TOPUP,"1,729.00",BISHOP CHADWICK CATHOLIC EDUCATION TRUST (NSCET).
Dedicated Schools Grant BG0015,DSG High Needs Block,Central Support and Other Recharges,689989,Unclassified E690,05/05/2022,3998483-APRIL2022TOPUP-1,"4,011.00",BISHOP CHADWICK CATHOLIC EDUCATION TRUST (NSCET).
Dedicated Schools Grant BG0015,DSG High Needs Block,Central Support and Other Recharges,689988,Unclassified E690,05/05/2022,3998484-APRIL2022TOPUP,"5,959.00",BISHOP CHADWICK CATHOLIC EDUCATION TRUST (NSCET).
Dedicated Schools Grant BG0015,DSG High Needs Block,Central Support and Other Recharges,689989,Unclassified E690,05/05/2022,3998484-APRIL2022TOPUP-1,"7,663.00",BISHOP CHADWICK CATHOLIC EDUCATION TRUST (NSCET).
Dedicated Schools Grant BG0015,DSG High Needs Block,Central Support and Other Recharges,689988,Unclassified E690,05/05/2022,3998485-APRIL2022TOPUP,"9,486.00",BISHOP CHADWICK CATHOLIC EDUCATION TRUST (NSCET).
Dedicated Schools Grant BG0015,DSG High Needs Block,Central Support and Other Recharges,689989,Unclassified E690,05/05/2022,3998485-APRIL2022TOPUP-1,"2,880.00",BISHOP CHADWICK CATHOLIC EDUCATION TRUST (NSCET).
Dedicated Schools Grant BG0015,DSG High Needs Block,Central Support and Other Recharges,689988,Unclassified E690,05/05/2022,3998487-APRIL2022TOPUP,"11,665.00",BISHOP HOGARTH CATHOLIC EDUCATION TRUST T/A ST JOSEPHS PRIMARY SCHOOL.
Dedicated Schools Grant BG0015,DSG High Needs Block,Central Support and Other Recharges,689988,Unclassified E690,05/05/2022,3998489-APRIL2022TOPUP,"9,381.00",BISHOP HOGARTH CATHOLIC EDUCATION TRUST.
Dedicated Schools Grant BG0015,DSG High Needs Block,Central Support and Other Recharges,689988,Unclassified E690,05/05/2022,3998489-APRIL2022TOPUP-3,"7,497.00",BISHOP HOGARTH CATHOLIC EDUCATION TRUST.
Dedicated Schools Grant BG0015,DSG High Needs Block,Central Support and Other Recharges,689989,Unclassified E690,05/05/2022,3998490-APRIL2022TOPUP,"1,996.00",BISHOP HOGARTH CATHOLIC EDUCATION TRUST.
Dedicated Schools Grant BG0015,DSG High Needs Block,Central Support and Other Recharges,689988,Unclassified E690,05/05/2022,3998491-APRIL2022TOPUP,"12,435.00",BISHOP HOGARTH CATHOLIC EDUCATION TRUST.
Dedicated Schools Grant BG0015,DSG High Needs Block,Central Support and Other Recharges,689988,Unclassified E690,05/05/2022,3998492-APRIL2022TOPUP,"2,877.00",BISHOP HOGARTH CATHOLIC EDUCATION TRUST.
Dedicated Schools Grant BG0015,DSG High Needs Block,Central Support and Other Recharges,689989,Unclassified E690,05/05/2022,3998492-APRIL2022TOPUP-1,"5,661.00",BISHOP HOGARTH CATHOLIC EDUCATION TRUST.
Dedicated Schools Grant BG0015,DSG High Needs Block,Central Support and Other Recharges,689988,Unclassified E690,05/05/2022,3998493-APRIL2022TOPUP,"9,117.00",BISHOP HOGARTH CATHOLIC EDUCATION TRUST.
Dedicated Schools Grant BG0015,DSG High Needs Block,Central Support and Other Recharges,689989,Unclassified E690,05/05/2022,3998493-APRIL2022TOPUP-1,"1,676.00",BISHOP HOGARTH CATHOLIC EDUCATION TRUST.
Dedicated Schools Grant BG0015,DSG High Needs Block,Central Support and Other Recharges,689988,Unclassified E690,05/05/2022,3998494-APRIL2022TOPUP,"5,111.00",BISHOP HOGARTH CATHOLIC EDUCATION TRUST.
Dedicated Schools Grant BG0015,DSG High Needs Block,Central Support and Other Recharges,689989,Unclassified E690,05/05/2022,3998494-APRIL2022TOPUP-1,"3,385.00",BISHOP HOGARTH CATHOLIC EDUCATION TRUST.
Dedicated Schools Grant BG0015,DSG High Needs Block,Central Support and Other Recharges,689988,Unclassified E690,05/05/2022,3998495-APRIL2022TOPUP,"10,106.00",BISHOP IAN RAMSEY C OF E PRIMARY SCHOOL.
Dedicated Schools Grant BG0015,DSG High Needs Block,Central Support and Other Recharges,689989,Unclassified E690,05/05/2022,3998495-APRIL2022TOPUP-1,"3,393.00",BISHOP IAN RAMSEY C OF E PRIMARY SCHOOL.
Dedicated Schools Grant BG0015,DSG High Needs Block,Central Support and Other Recharges,689988,Unclassified E690,05/05/2022,3998496-APRIL2022TOPUP,"4,579.00",BISHOP WILKINSON CE TRUST.
Dedicated Schools Grant BG0015,DSG High Needs Block,Central Support and Other Recharges,689989,Unclassified E690,05/05/2022,3998496-APRIL2022TOPUP-1,"9,431.00",BISHOP WILKINSON CE TRUST.
Dedicated Schools Grant BG0015,DSG High Needs Block,Central Support and Other Recharges,689988,Unclassified E690,05/05/2022,3998498-APRIL2022TOPUP,"8,663.00",BISHOP WILKINSON CE TRUST.
Dedicated Schools Grant BG0015,DSG High Needs Block,Central Support and Other Recharges,689989,Unclassified E690,05/05/2022,3998498-APRIL2022TOPUP-1,"4,827.00",BISHOP WILKINSON CE TRUST.
Dedicated Schools Grant BG0015,DSG High Needs Block,Central Support and Other Recharges,689988,Unclassified E690,05/05/2022,3998499-APRIL2022TOPUP,"49,908.00",BISHOP WILKINSON CE TRUST.
Dedicated Schools Grant BG0015,DSG High Needs Block,Central Support and Other Recharges,689988,Unclassified E690,05/05/2022,3998500-APRIL2022TOPUP,"14,684.00",BISHOP WILKINSON CE TRUST.
Dedicated Schools Grant BG0015,DSG High Needs Block,Central Support and Other Recharges,689988,Unclassified E690,05/05/2022,3998501-APRIL2022TOPUP,"10,090.00",BISHOP WILKINSON CE TRUST.
Dedicated Schools Grant BG0015,DSG High Needs Block,Central Support and Other Recharges,689989,Unclassified E690,05/05/2022,3998501-APRIL2022TOPUP-1,"1,173.00",BISHOP WILKINSON CE TRUST.
Dedicated Schools Grant BG0015,DSG High Needs Block,Central Support and Other Recharges,689988,Unclassified E690,05/05/2022,3998502-APRIL2022TOPUP,"8,636.00",BISHOP WILKINSON CE TRUST.
Dedicated Schools Grant BG0015,DSG High Needs Block,Central Support and Other Recharges,689988,Unclassified E690,05/05/2022,3998503-APRIL2022TOPUP,"6,357.00",BISHOP WILKINSON CE TRUST.
Dedicated Schools Grant BG0015,DSG High Needs Block,Central Support and Other Recharges,689988,Unclassified E690,05/05/2022,3998504-APRIL2022TOPUP,"2,937.00",BISHOP WILKINSON CE TRUST.
Dedicated Schools Grant BG0015,DSG High Needs Block,Central Support and Other Recharges,689989,Unclassified E690,05/05/2022,3998504-APRIL2022TOPUP-1,"3,890.00",BISHOP WILKINSON CE TRUST.
Dedicated Schools Grant BG0015,DSG High Needs Block,Central Support and Other Recharges,689988,Unclassified E690,05/05/2022,3998504-APRIL2022TOPUP-2,"11,959.00",BISHOP WILKINSON CE TRUST.
Dedicated Schools Grant BG0015,DSG High Needs Block,Central Support and Other Recharges,689988,Unclassified E690,05/05/2022,3998504-APRIL2022TOPUP-3,"2,653.00",BISHOP WILKINSON CE TRUST.
Dedicated Schools Grant BG0015,DSG High Needs Block,Central Support and Other Recharges,689988,Unclassified E690,05/05/2022,3998504-APRIL2022TOPUP-4,"29,470.00",BISHOP WILKINSON CE TRUST.
Dedicated Schools Grant BG0015,DSG High Needs Block,Central Support and Other Recharges,689988,Unclassified E690,05/05/2022,3998504-APRIL2022TOPUP-5,"8,757.00",BISHOP WILKINSON CE TRUST.
Dedicated Schools Grant BG0015,DSG High Needs Block,Central Support and Other Recharges,689988,Unclassified E690,05/05/2022,3998505-APRIL2022TOPUP,"5,435.00",BISHOP WILKINSON CE TRUST.
Dedicated Schools Grant BG0015,DSG High Needs Block,Central Support and Other Recharges,689989,Unclassified E690,05/05/2022,3998505-APRIL2022TOPUP-1,"14,889.00",BISHOP WILKINSON CE TRUST.
Dedicated Schools Grant BG0015,DSG High Needs Block,Central Support and Other Recharges,689988,Unclassified E690,05/05/2022,3998506-APRIL2022TOPUP,"7,722.00",BISHOP WILKINSON CE TRUST.
Dedicated Schools Grant BG0015,DSG High Needs Block,Central Support and Other Recharges,689989,Unclassified E690,05/05/2022,3998506-APRIL2022TOPUP-1,"6,487.00",BISHOP WILKINSON CE TRUST.
Dedicated Schools Grant BG0015,DSG High Needs Block,Central Support and Other Recharges,689988,Unclassified E690,05/05/2022,3998517-APRIL2022TOPUP,892.00,BRIGHTER ACADEMY TRUST T/A FARRINGDON COMMUNITY ACADEMY.
Dedicated Schools Grant BG0015,DSG High Needs Block,Central Support and Other Recharges,689988,Unclassified E690,05/05/2022,3998519-APRIL2022TOPUP,"14,752.00",BROWNEY PRIMARY ACADEMY.
Dedicated Schools Grant BG0015,DSG High Needs Block,Central Support and Other Recharges,689989,Unclassified E690,05/05/2022,3998519-APRIL2022TOPUP-1,"2,662.00",BROWNEY PRIMARY ACADEMY.
Dedicated Schools Grant BG0015,DSG High Needs Block,Central Support and Other Recharges,689988,Unclassified E690,05/05/2022,3998532-APRIL2022TOPUP,"5,392.00",CARMEL COLLEGE.*
Dedicated Schools Grant BG0015,DSG High Needs Block,Central Support and Other Recharges,689987,Unclassified E690,05/05/2022,3998540-APRIL2022TOPUP,"16,607.00",CATCOTE ACADEMY.
Dedicated Schools Grant BG0015,DSG High Needs Block,Central Support and Other Recharges,689988,Unclassified E690,05/05/2022,3998559-APRIL2022TOPUP,"14,948.00",CLEVES CROSS LEARNING TRUST T/A ROSA STREET PRIMARY SCHOOL.
Dedicated Schools Grant BG0015,DSG High Needs Block,Central Support and Other Recharges,689989,Unclassified E690,05/05/2022,3998559-APRIL2022TOPUP-1,"7,586.00",CLEVES CROSS LEARNING TRUST T/A ROSA STREET PRIMARY SCHOOL.
Dedicated Schools Grant BG0015,DSG High Needs Block,Central Support and Other Recharges,689988,Unclassified E690,05/05/2022,3998560-APRIL2022TOPUP,"14,512.00",CLEVES CROSS LEARNING TRUST.
Dedicated Schools Grant BG0015,DSG High Needs Block,Central Support and Other Recharges,689989,Unclassified E690,05/05/2022,3998560-APRIL2022TOPUP-1,"11,296.00",CLEVES CROSS LEARNING TRUST.
Dedicated Schools Grant BG0015,DSG High Needs Block,Central Support and Other Recharges,689988,Unclassified E690,05/05/2022,3998570-APRIL2022TOPUP,"4,285.00",CONSILIUM ACADEMIES T/A THORNHILL ACADEMY.
Dedicated Schools Grant BG0015,DSG High Needs Block,Central Support and Other Recharges,689989,Unclassified E690,05/05/2022,3998572-APRIL2022TOPUP,"1,260.00",CORBRIDGE MIDDLE SCHOOL.
Dedicated Schools Grant BG0015,DSG High Needs Block,Central Support and Other Recharges,689988,Unclassified E690,05/05/2022,3998606-APRIL2022TOPUP,"26,402.00",DENE ACADEMY.
Dedicated Schools Grant BG0015,DSG High Needs Block,Central Support and Other Recharges,689989,Unclassified E690,05/05/2022,3998606-APRIL2022TOPUP-1,"7,105.00",DENE ACADEMY.
Dedicated Schools Grant BG0015,DSG High Needs Block,Central Support and Other Recharges,689988,Unclassified E690,05/05/2022,3998607-APRIL2022TOPUP,"19,105.00",DENE HOUSE PRIMARY SCHOOL (ACADEMY).
Dedicated Schools Grant BG0015,DSG High Needs Block,Central Support and Other Recharges,689989,Unclassified E690,05/05/2022,3998607-APRIL2022TOPUP-1,"8,976.00",DENE HOUSE PRIMARY SCHOOL (ACADEMY).
Dedicated Schools Grant BG0015,DSG High Needs Block,Central Support and Other Recharges,689988,Unclassified E690,05/05/2022,3998614-APRIL2022TOPUP,"3,079.00",DISCOVER LEARNING TRUST.
Dedicated Schools Grant BG0015,DSG High Needs Block,Central Support and Other Recharges,689988,Unclassified E690,05/05/2022,3998615-APRIL2022TOPUP,"4,519.00",DISCOVER LEARNING TRUST.
Dedicated Schools Grant BG0015,DSG High Needs Block,Central Support and Other Recharges,689986,Unclassified E690,05/05/2022,3998615-APRIL2022TOPUP-1,"4,619.00",DISCOVER LEARNING TRUST.
Dedicated Schools Grant BG0015,DSG High Needs Block,Central Support and Other Recharges,689988,Unclassified E690,05/05/2022,3998621-APRIL2022TOPUP,"4,820.00",DURHAM & NEWCASTLE DIOCESAN LEARNING TRUST T/A HEIGHINGTON CE PRIMARY SCHOOL.
Dedicated Schools Grant BG0015,DSG High Needs Block,Central Support and Other Recharges,689988,Unclassified E690,05/05/2022,3998622-APRIL2022TOPUP,"5,136.00",DURHAM & NEWCASTLE DIOCESAN LEARNING TRUST T/A INGLETON CE PRIMARY SCHOOL
Dedicated Schools Grant BG0015,DSG High Needs Block,Central Support and Other Recharges,689988,Unclassified E690,05/05/2022,3998623-APRIL2022TOPUP,"5,698.00",DURHAM & NEWCASTLE DIOCESAN LEARNING TRUST T/A STANHOPE BARRINGTON C OF E PRIMARY SCHOOL.
Dedicated Schools Grant BG0015,DSG High Needs Block,Central Support and Other Recharges,689989,Unclassified E690,05/05/2022,3998623-APRIL2022TOPUP-1,"4,446.00",DURHAM & NEWCASTLE DIOCESAN LEARNING TRUST T/A STANHOPE BARRINGTON C OF E PRIMARY SCHOOL.
Dedicated Schools Grant BG0015,DSG High Needs Block,Central Support and Other Recharges,689988,Unclassified E690,05/05/2022,3998628-APRIL2022TOPUP,"10,705.00",DURHAM HIGH SCHOOL.
Dedicated Schools Grant BG0015,DSG High Needs Block,Central Support and Other Recharges,689988,Unclassified E690,05/05/2022,3998631-APRIL2022TOPUP,"19,429.00",DURHAM UTC LTD (UNIVERSITY TECHNICAL COLLEGE).
Dedicated Schools Grant BG0015,DSG High Needs Block,Central Support and Other Recharges,689986,Unclassified E690,05/05/2022,3998631-APRIL2022TOPUP-1,"5,225.00",DURHAM UTC LTD (UNIVERSITY TECHNICAL COLLEGE).
Dedicated Schools Grant BG0015,DSG High Needs Block,Central Support and Other Recharges,689987,Unclassified E690,05/05/2022,3998637-APRIL2022TOPUP,"3,464.00",EDEN ACADEMY T/A HEXHAM PRIORY SCHOOL.
Dedicated Schools Grant BG0015,DSG High Needs Block,Central Support and Other Recharges,689988,Unclassified E690,05/05/2022,3998638-APRIL2022TOPUP,"15,944.00",EDEN ACADEMY TRUST LTD T/A BLUEBELL MEADOW PRIMARY SCHOOL.
Dedicated Schools Grant BG0015,DSG High Needs Block,Central Support and Other Recharges,689989,Unclassified E690,05/05/2022,3998638-APRIL2022TOPUP-1,"13,022.00",EDEN ACADEMY TRUST LTD T/A BLUEBELL MEADOW PRIMARY SCHOOL.
Dedicated Schools Grant BG0015,DSG High Needs Block,Central Support and Other Recharges,689988,Unclassified E690,05/05/2022,3998639-APRIL2022TOPUP,"7,214.00",EDEN LEARNING TRUST T/A CHILTON ACADEMY.
Dedicated Schools Grant BG0015,DSG High Needs Block,Central Support and Other Recharges,689989,Unclassified E690,05/05/2022,3998639-APRIL2022TOPUP-1,"8,676.00",EDEN LEARNING TRUST T/A CHILTON ACADEMY.
Dedicated Schools Grant BG0015,DSG High Needs Block,Central Support and Other Recharges,689988,Unclassified E690,05/05/2022,3998640-APRIL2022TOPUP,"12,118.00",EDEN LEARNING TRUST T/A FERRYHILL BUSINESS & ENTERPRISE COLLEGE.
Dedicated Schools Grant BG0015,DSG High Needs Block,Central Support and Other Recharges,689988,Unclassified E690,05/05/2022,3998641-APRIL2022TOPUP,"40,515.00",EDEN LEARNING TRUST T/A SEAHAM HIGH SCHOOL.
Dedicated Schools Grant BG0015,DSG High Needs Block,Central Support and Other Recharges,689988,Unclassified E690,05/05/2022,3998642-APRIL2022TOPUP,"15,558.00",EDEN LEARNING TRUST T/A TANFIELD SCHOOL.
Dedicated Schools Grant BG0015,DSG High Needs Block,Central Support and Other Recharges,689988,Unclassified E690,05/05/2022,3998643-APRIL2022TOPUP,"12,441.00",EDEN LEARNING TRUST T/A WOODHAM ACADEMY.
Dedicated Schools Grant BG0015,DSG High Needs Block,Central Support and Other Recharges,689987,Unclassified E690,05/05/2022,3998649-APRIL2022TOPUP,"55,720.00",EDUCATION VILLAGE ACADEMY TRUST.*
Dedicated Schools Grant BG0015,DSG High Needs Block,Central Support and Other Recharges,689988,Unclassified E690,05/05/2022,3998652-APRIL2022TOPUP,"1,320.00",ELDON GROVE ACADEMY.
Dedicated Schools Grant BG0015,DSG High Needs Block,Central Support and Other Recharges,689988,Unclassified E690,05/05/2022,3998661-APRIL2022TOPUP,"62,292.00",EXCEL ACADEMY PARTNERSHIP T/A FRAMWELLGATE SCHOOL DURHAM.
Dedicated Schools Grant BG0015,DSG High Needs Block,Central Support and Other Recharges,689989,Unclassified E690,05/05/2022,3998661-APRIL2022TOPUP-1,"7,718.00",EXCEL ACADEMY PARTNERSHIP T/A FRAMWELLGATE SCHOOL DURHAM.
Dedicated Schools Grant BG0015,DSG High Needs Block,Central Support and Other Recharges,689988,Unclassified E690,05/05/2022,3998666-APRIL2022TOPUP,"1,821.00",FATFIELD ACADEMY.
Dedicated Schools Grant BG0015,DSG High Needs Block,Central Support and Other Recharges,689988,Unclassified E690,05/05/2022,3998683-APRIL2022TOPUP,"3,030.00",GATESHEAD COUNCIL.
Dedicated Schools Grant BG0015,DSG High Needs Block,Central Support and Other Recharges,689987,Unclassified E690,05/05/2022,3998684-APRIL2022TOPUP,"6,202.00",GATESHEAD COUNCIL.
Dedicated Schools Grant BG0015,DSG High Needs Block,Central Support and Other Recharges,689987,Unclassified E690,05/05/2022,3998689-APRIL2022TOPUP,"5,369.00",GIBSIDE SCHOOL.
Dedicated Schools Grant BG0015,DSG High Needs Block,Central Support and Other Recharges,689988,Unclassified E690,05/05/2022,3998710-APRIL2022TOPUP,"20,097.00",HERMITAGE ACADEMY (NORTH EAST LEARNING ACADEMY).
Dedicated Schools Grant BG0015,DSG High Needs Block,Central Support and Other Recharges,689988,Unclassified E690,05/05/2022,3998712-APRIL2022TOPUP,"3,524.00",HIGH SPEN PRIMARY SCHOOL.
Dedicated Schools Grant BG0015,DSG High Needs Block,Central Support and Other Recharges,689987,Unclassified E690,05/05/2022,3998716-APRIL2022TOPUP,"105,053.00",HOPE WOOD ACADEMY.
Dedicated Schools Grant BG0015,DSG High Needs Block,Central Support and Other Recharges,689996,Unclassified E690,05/05/2022,3998716-RES-05-2022-048,"4,992.00",HOPE WOOD ACADEMY.
Dedicated Schools Grant BG0015,DSG High Needs Block,Central Support and Other Recharges,689988,Unclassified E690,05/05/2022,3998751-APRIL2022TOPUP,"14,311.00",JIGSAW LEARNING TRUST.
Dedicated Schools Grant BG0015,DSG High Needs Block,Central Support and Other Recharges,689989,Unclassified E690,05/05/2022,3998751-APRIL2022TOPUP-1,"2,473.00",JIGSAW LEARNING TRUST.
Dedicated Schools Grant BG0015,DSG High Needs Block,Central Support and Other Recharges,689988,Unclassified E690,05/05/2022,3998778-APRIL2022TOPUP,"20,932.00",KING JAMES I ACADEMY.
Dedicated Schools Grant BG0015,DSG High Needs Block,Central Support and Other Recharges,689987,Unclassified E690,05/05/2022,3998800-APRIL2022TOPUP,"9,896.00",MARCHBANK FREE SCHOOL.
Dedicated Schools Grant BG0015,DSG High Needs Block,Central Support and Other Recharges,689988,Unclassified E690,05/05/2022,3998810-APRIL2022TOPUP,"4,655.00",MELROSE LEARNING TRUST.
Dedicated Schools Grant BG0015,DSG High Needs Block,Central Support and Other Recharges,689989,Unclassified E690,05/05/2022,3998810-APRIL2022TOPUP-1,"6,296.00",MELROSE LEARNING TRUST.
Dedicated Schools Grant BG0015,DSG High Needs Block,Central Support and Other Recharges,689987,Unclassified E690,05/05/2022,3998824-APRIL2022TOPUP,"2,669.00",MOWBRAY SCHOOL (NORTH YORKSHIRE COUNTY COUNCIL).
Dedicated Schools Grant BG0015,DSG High Needs Block,Central Support and Other Recharges,689988,Unclassified E690,05/05/2022,3998848-APRIL2022TOPUP,"34,377.00",NEW COLLEGE ACADEMIES TRUST - CONSETT ACADEMY.
Dedicated Schools Grant BG0015,DSG High Needs Block,Central Support and Other Recharges,689988,Unclassified E690,05/05/2022,3998856-APRIL2022TOPUP,"25,840.00",NORTH DURHAM ACADEMY.
Dedicated Schools Grant BG0015,DSG High Needs Block,Central Support and Other Recharges,689988,Unclassified E690,05/05/2022,3998860-APRIL2022TOPUP,"10,053.00",NORTH EAST LEARNING TRUST (NELT).
Dedicated Schools Grant BG0015,DSG High Needs Block,Central Support and Other Recharges,689989,Unclassified E690,05/05/2022,3998860-APRIL2022TOPUP-1,"2,292.00",NORTH EAST LEARNING TRUST (NELT).
Dedicated Schools Grant BG0015,DSG High Needs Block,Central Support and Other Recharges,689988,Unclassified E690,05/05/2022,3998860-APRIL2022TOPUP-3,"6,559.00",NORTH EAST LEARNING TRUST (NELT).
Dedicated Schools Grant BG0015,DSG High Needs Block,Central Support and Other Recharges,689988,Unclassified E690,05/05/2022,3998861-APRIL2022TOPUP,"15,534.00",NORTH EAST LEARNING TRUST (NELT).
Dedicated Schools Grant BG0015,DSG High Needs Block,Central Support and Other Recharges,689989,Unclassified E690,05/05/2022,3998861-APRIL2022TOPUP-1,"3,328.00",NORTH EAST LEARNING TRUST (NELT).
Dedicated Schools Grant BG0015,DSG High Needs Block,Central Support and Other Recharges,689988,Unclassified E690,05/05/2022,3998877-APRIL2022TOPUP,"50,287.00",PARK VIEW ACADEMY.
Dedicated Schools Grant BG0015,DSG High Needs Block,Central Support and Other Recharges,689989,Unclassified E690,05/05/2022,3998877-APRIL2022TOPUP-1,"5,914.00",PARK VIEW ACADEMY.
Dedicated Schools Grant BG0015,DSG High Needs Block,Central Support and Other Recharges,689988,Unclassified E690,05/05/2022,3998883-APRIL2022TOPUP,"5,168.00",PELE TRUST T/A DARRAS HALL PRIMARY SCHOOL.
Dedicated Schools Grant BG0015,DSG High Needs Block,Central Support and Other Recharges,689988,Unclassified E690,05/05/2022,3998884-APRIL2022TOPUP,"6,441.00",PELE TRUST T/A HEDDON ST ANDREWS C OF E PRIMARY SCHOOL.
Dedicated Schools Grant BG0015,DSG High Needs Block,Central Support and Other Recharges,689987,Unclassified E690,05/05/2022,3998907-APRIL2022TOPUP,"25,567.00",PORTLAND ACADEMY.
Dedicated Schools Grant BG0015,DSG High Needs Block,Central Support and Other Recharges,689988,Unclassified E690,05/05/2022,3998920-APRIL2022TOPUP,"10,840.00",QUEEN ELIZABETH HIGH SCHOOL.
Dedicated Schools Grant BG0015,DSG High Needs Block,Central Support and Other Recharges,689988,Unclassified E690,05/05/2022,3998935-APRIL2022TOPUP,"33,159.00",RIBBON ACADEMY TRUST.
Dedicated Schools Grant BG0015,DSG High Needs Block,Central Support and Other Recharges,689989,Unclassified E690,05/05/2022,3998935-APRIL2022TOPUP-1,"1,212.00",RIBBON ACADEMY TRUST.
Dedicated Schools Grant BG0015,DSG High Needs Block,Central Support and Other Recharges,689987,Unclassified E690,05/05/2022,3998939-APRIL2022TOPUP,"2,224.00",RISE CARR COLLEGE.
Dedicated Schools Grant BG0015,DSG High Needs Block,Central Support and Other Recharges,689988,Unclassified E690,05/05/2022,3998957-APRIL2022TOPUP,"1,499.00",SAMUEL KINGS SCHOOL.
Dedicated Schools Grant BG0015,DSG High Needs Block,Central Support and Other Recharges,689989,Unclassified E690,05/05/2022,3998957-APRIL2022TOPUP-1,"2,421.00",SAMUEL KINGS SCHOOL.
Dedicated Schools Grant BG0015,DSG High Needs Block,Central Support and Other Recharges,689988,Unclassified E690,05/05/2022,3998963-APRIL2022TOPUP,"25,167.00",SEDGEFIELD COMMUNITY COLLEGE.
Dedicated Schools Grant BG0015,DSG High Needs Block,Central Support and Other Recharges,689988,Unclassified E690,05/05/2022,3998984-APRIL2022TOPUP,"40,690.00",ST BEDES CATHOLIC ACADEMY (LANCHESTER).
Dedicated Schools Grant BG0015,DSG High Needs Block,Central Support and Other Recharges,689988,Unclassified E690,05/05/2022,3998986-APRIL2022TOPUP,"5,089.00",ST JOHN THE BAPTIST PRIMARY SCHOOL.
Dedicated Schools Grant BG0015,DSG High Needs Block,Central Support and Other Recharges,689988,Unclassified E690,05/05/2022,3998987-APRIL2022TOPUP,"4,478.00",ST MICHAEL`S RCVA PRIMARY SCHOOL.
Dedicated Schools Grant BG0015,DSG High Needs Block,Central Support and Other Recharges,689989,Unclassified E690,05/05/2022,3998987-APRIL2022TOPUP-1,"2,955.00",ST MICHAEL`S RCVA PRIMARY SCHOOL.
Dedicated Schools Grant BG0015,DSG High Needs Block,Central Support and Other Recharges,689988,Unclassified E690,05/05/2022,3998990-APRIL2022TOPUP,"2,629.00",ST PATRICK`S RCVA PRIMARY SCHOOL.
Dedicated Schools Grant BG0015,DSG High Needs Block,Central Support and Other Recharges,689988,Unclassified E690,05/05/2022,3998991-APRIL2022TOPUP,"3,982.00",STANLEY LEARNING PARTNERSHIP.
Dedicated Schools Grant BG0015,DSG High Needs Block,Central Support and Other Recharges,689989,Unclassified E690,05/05/2022,3998991-APRIL2022TOPUP-1,"8,269.00",STANLEY LEARNING PARTNERSHIP.
Dedicated Schools Grant BG0015,DSG High Needs Block,Central Support and Other Recharges,689988,Unclassified E690,05/05/2022,3998991-APRIL2022TOPUP-2,"13,854.00",STANLEY LEARNING PARTNERSHIP.
Dedicated Schools Grant BG0015,DSG High Needs Block,Central Support and Other Recharges,689989,Unclassified E690,05/05/2022,3998991-APRIL2022TOPUP-3,731.00,STANLEY LEARNING PARTNERSHIP.
Dedicated Schools Grant BG0015,DSG High Needs Block,Central Support and Other Recharges,689988,Unclassified E690,05/05/2022,3998991-APRIL2022TOPUP-4,"26,425.00",STANLEY LEARNING PARTNERSHIP.
Dedicated Schools Grant BG0015,DSG High Needs Block,Central Support and Other Recharges,689989,Unclassified E690,05/05/2022,3998991-APRIL2022TOPUP-5,"3,860.00",STANLEY LEARNING PARTNERSHIP.
Dedicated Schools Grant BG0015,DSG High Needs Block,Central Support and Other Recharges,689988,Unclassified E690,05/05/2022,3998992-APRIL2022TOPUP,"12,832.00",STANLEY LEARNING PARTNERSHIP.
Dedicated Schools Grant BG0015,DSG High Needs Block,Central Support and Other Recharges,689989,Unclassified E690,05/05/2022,3998992-APRIL2022TOPUP-1,"3,057.00",STANLEY LEARNING PARTNERSHIP.
Dedicated Schools Grant BG0015,DSG High Needs Block,Central Support and Other Recharges,689986,Unclassified E690,05/05/2022,3998992-APRIL2022TOPUP-2,"5,154.00",STANLEY LEARNING PARTNERSHIP.
Dedicated Schools Grant BG0015,DSG High Needs Block,Central Support and Other Recharges,689988,Unclassified E690,05/05/2022,3998993-APRIL2022TOPUP,"5,924.00",STANLEY LEARNING PARTNERSHIP.
Dedicated Schools Grant BG0015,DSG High Needs Block,Central Support and Other Recharges,689989,Unclassified E690,05/05/2022,3998993-APRIL2022TOPUP-1,"7,857.00",STANLEY LEARNING PARTNERSHIP.
Dedicated Schools Grant BG0015,DSG High Needs Block,Central Support and Other Recharges,689988,Unclassified E690,05/05/2022,3998994-APRIL2022TOPUP,"10,708.00",STANLEY LEARNING PARTNERSHIP.
Dedicated Schools Grant BG0015,DSG High Needs Block,Central Support and Other Recharges,689988,Unclassified E690,05/05/2022,3998994-APRIL2022TOPUP-1,"2,802.00",STANLEY LEARNING PARTNERSHIP.
Dedicated Schools Grant BG0015,DSG High Needs Block,Central Support and Other Recharges,689989,Unclassified E690,05/05/2022,3998994-APRIL2022TOPUP-2,"1,319.00",STANLEY LEARNING PARTNERSHIP.
Dedicated Schools Grant BG0015,DSG High Needs Block,Central Support and Other Recharges,689988,Unclassified E690,05/05/2022,3998995-APRIL2022TOPUP,"8,709.00",STANLEY LEARNING PARTNERSHIP.
Dedicated Schools Grant BG0015,DSG High Needs Block,Central Support and Other Recharges,689989,Unclassified E690,05/05/2022,3998995-APRIL2022TOPUP-1,"6,571.00",STANLEY LEARNING PARTNERSHIP.
Dedicated Schools Grant BG0015,DSG High Needs Block,Central Support and Other Recharges,689988,Unclassified E690,05/05/2022,3998998-APRIL2022TOPUP,"7,372.00",STEPHENSON WAY ACADEMY & NURSERY SCHOOL.
Dedicated Schools Grant BG0015,DSG High Needs Block,Central Support and Other Recharges,689989,Unclassified E690,05/05/2022,3998998-APRIL2022TOPUP-1,"2,092.00",STEPHENSON WAY ACADEMY & NURSERY SCHOOL.
Dedicated Schools Grant BG0015,DSG High Needs Block,Central Support and Other Recharges,689988,Unclassified E690,05/05/2022,3999003-APRIL2022TOPUP,816.00,SUNDERLAND CITY COUNCIL.
Dedicated Schools Grant BG0015,DSG High Needs Block,Central Support and Other Recharges,689989,Unclassified E690,05/05/2022,3999017-APRIL2022TOPUP,"1,164.00",TEESSIDE HIGH SCHOOL LTD.
Dedicated Schools Grant BG0015,DSG High Needs Block,Central Support and Other Recharges,689987,Unclassified E690,05/05/2022,3999025-APRIL2022TOPUP,"7,269.00",THE CEDARS ACADEMY TRUST.
Dedicated Schools Grant BG0015,DSG High Needs Block,Central Support and Other Recharges,689987,Unclassified E690,05/05/2022,3999029-APRIL2022TOPUP,"5,362.00",THE EDUCATION PARTNERSHIP (UK) LTD.
Dedicated Schools Grant BG0015,DSG High Needs Block,Central Support and Other Recharges,689987,Unclassified E690,05/05/2022,3999035-APRIL2022TOPUP,"3,249.00",THE NEWCASTLE SPECIAL SCHOOLS TRUST T/A HADRIAN SCHOOL.
Dedicated Schools Grant BG0015,DSG High Needs Block,Central Support and Other Recharges,689987,Unclassified E690,05/05/2022,3999054-APRIL2022TOPUP,"13,064.00",TRINITY ACADEMY NEW BRIDGE.*
Dedicated Schools Grant BG0015,DSG High Needs Block,Central Support and Other Recharges,689987,Unclassified E690,05/05/2022,3999055-APRIL2022TOPUP,"2,497.00",TRINITY ACADEMY NEWCASTLE.
Dedicated Schools Grant BG0015,DSG High Needs Block,Central Support and Other Recharges,689988,Unclassified E690,05/05/2022,3999059-APRIL2022TOPUP,"13,559.00",TUDHOE LEARNING TRUST T/A SOUTH HETTON PRIMARY SCHOOL.
Dedicated Schools Grant BG0015,DSG High Needs Block,Central Support and Other Recharges,689989,Unclassified E690,05/05/2022,3999059-APRIL2022TOPUP-1,"1,860.00",TUDHOE LEARNING TRUST T/A SOUTH HETTON PRIMARY SCHOOL.
Dedicated Schools Grant BG0015,DSG High Needs Block,Central Support and Other Recharges,689988,Unclassified E690,05/05/2022,3999060-APRIL2022TOPUP,"6,807.00",TUDHOE LEARNING TRUST T/A TUDHOE COLLIERY PRIMARY SCHOOL.
Dedicated Schools Grant BG0015,DSG High Needs Block,Central Support and Other Recharges,689988,Unclassified E690,05/05/2022,3999068-APRIL2022TOPUP,"1,554.00",VENERABLE BEDE CHURCH OF ENGLAND ACADEMY.
Dedicated Schools Grant BG0015,DSG High Needs Block,Central Support and Other Recharges,689988,Unclassified E690,05/05/2022,3999069-APRIL2022TOPUP,"9,360.00",VICTORIA LANE ACADEMY.
Dedicated Schools Grant BG0015,DSG High Needs Block,Central Support and Other Recharges,689986,Unclassified E690,05/05/2022,3999089-APRIL2022TOPUP,"3,407.00",WHICKHAM SCHOOL & SPORTS COLLEGE.
Regeneration Economy and Growth,Corporate Property and Land,Premises,106082,Centrally Controlled Rep and Maint,06/05/2022,3999107-49486490,620.00,ADT FIRE & SECURITY PLC.
Regeneration Economy and Growth,Culture Sport and Tourism,Premises,106083,Centrally Controlled Rep and Maint,06/05/2022,3999258-26151,"7,684.37",JC MAINTENANCE SERVICES LTD.
Regeneration Economy and Growth,Corporate Property and Land,Premises,106080,Centrally Controlled Rep and Maint,06/05/2022,3999258-26152,"3,334.50",JC MAINTENANCE SERVICES LTD.
Regeneration Economy and Growth,Culture Sport and Tourism,Premises,106080,Centrally Controlled Rep and Maint,06/05/2022,3999464-52165536,"8,455.00",VWS (UK) LTD.
Regeneration Economy and Growth,Corporate Property and Land,Premises,106080,Centrally Controlled Rep and Maint,06/05/2022,3999464-52169608,"5,250.00",VWS (UK) LTD.
Resources BK0010,Digital Services,Vehicles Equipment Furniture and Fittings,912701,Computer equipment,06/05/2022,3999240-INV0186775,"1,665.00",GVAV LTD.
Adult and Health Services,Commissioning inc Supporting People,Supplies and Services,352001,Conference Expenses,06/05/2022,3999293-PBS-MAR2022,625.00,REDACTED - PAYMENT TO INDIVIDUAL
Neighbourhoods and Climate Change,Environmental Services,Fees,901002,Professional fees,06/05/2022,3999197-64021178,"7,814.90",DESCO (DESIGN & CONSULTANCY) LTD.
Children and Young Peoples Services,Head of Education and Skills,Transport,230008,Contract Hire,06/05/2022,3999126-907,"1,345.50",AT TAXIS LTD.
Children and Young Peoples Services,Head of Education and Skills,Transport,230008,Contract Hire,06/05/2022,3999126-908,"1,305.00",AT TAXIS LTD.
Children and Young Peoples Services,Head of Education and Skills,Transport,230034,Contract Hire,06/05/2022,3999126-909,"1,298.00",AT TAXIS LTD.
Children and Young Peoples Services,Head of Education and Skills,Transport,230007,Contract Hire,06/05/2022,3999126-910,"1,079.54",AT TAXIS LTD.
Children and Young Peoples Services,Head of Education and Skills,Transport,230034,Contract Hire,06/05/2022,3999126-911,787.05,AT TAXIS LTD.
Children and Young Peoples Services,Head of Education and Skills,Transport,230007,Contract Hire,06/05/2022,3999126-912,"1,058.20",AT TAXIS LTD.
Children and Young Peoples Services,Head of Education and Skills,Transport,230007,Contract Hire,06/05/2022,3999126-913,855.00,AT TAXIS LTD.
Children and Young Peoples Services,Head of Education and Skills,Transport,230008,Contract Hire,06/05/2022,3999128-DCC-03APRIL22,"1,431.00",ATLAS TAXIS BISHOP AUCKLAND.
Children and Young Peoples Services,Head of Education and Skills,Transport,230008,Contract Hire,06/05/2022,3999128-DCC-04APRIL22,"2,210.51",ATLAS TAXIS BISHOP AUCKLAND.
Children and Young Peoples Services,Head of Education and Skills,Transport,230008,Contract Hire,06/05/2022,3999128-DCC-10APR22,"2,623.61",ATLAS TAXIS BISHOP AUCKLAND.
Adult and Health Services,Head of Adults,Transport,230005,Contract Hire,06/05/2022,3999128-DCC-13APRIL2022,"1,246.78",ATLAS TAXIS BISHOP AUCKLAND.
Children and Young Peoples Services,Head of Education and Skills,Transport,230008,Contract Hire,06/05/2022,3999128-DCC-14APRIL22,840.00,ATLAS TAXIS BISHOP AUCKLAND.
Adult and Health Services,Head of Adults,Transport,230005,Contract Hire,06/05/2022,3999128-DCC-5APRIL22,"1,203.46",ATLAS TAXIS BISHOP AUCKLAND.
Children and Young Peoples Services,Head of Education and Skills,Transport,230008,Contract Hire,06/05/2022,3999128-DCC-7APRIL22,"1,587.42",ATLAS TAXIS BISHOP AUCKLAND.
Children and Young Peoples Services,Head of Education and Skills,Transport,230008,Contract Hire,06/05/2022,3999129-DCC-11APRIL22,"1,378.80",ATLAS TAXIS MANAGEMENT LTD.
Children and Young Peoples Services,Head of Education and Skills,Transport,230008,Contract Hire,06/05/2022,3999129-DCC-12APRIL22,"1,749.00",ATLAS TAXIS MANAGEMENT LTD.
Children and Young Peoples Services,Head of Education and Skills,Transport,230008,Contract Hire,06/05/2022,3999129-DCC-15A-APRIL22,605.00,ATLAS TAXIS MANAGEMENT LTD.
Children and Young Peoples Services,Head of Education and Skills,Transport,230008,Contract Hire,06/05/2022,3999129-DCC-2APRIL2022,"1,692.00",ATLAS TAXIS MANAGEMENT LTD.
Children and Young Peoples Services,Head of Education and Skills,Transport,230006,Contract Hire,06/05/2022,3999129-DCC-6APRIL2022,"2,079.00",ATLAS TAXIS MANAGEMENT LTD.
Children and Young Peoples Services,Head of Education and Skills,Transport,230008,Contract Hire,06/05/2022,3999129-DCC-9APRIL2022,"1,440.00",ATLAS TAXIS MANAGEMENT LTD.
Children and Young Peoples Services,Head of Education and Skills,Transport,230008,Contract Hire,06/05/2022,3999134-997,957.87,BEELINE MINI BUSES.
Children and Young Peoples Services,Head of Education and Skills,Transport,230008,Contract Hire,06/05/2022,3999134-998,885.15,BEELINE MINI BUSES.
Children and Young Peoples Services,Head of Education and Skills,Transport,230008,Contract Hire,06/05/2022,3999134-999,786.72,BEELINE MINI BUSES.
Children and Young Peoples Services,Head of Education and Skills,Transport,230007,Contract Hire,06/05/2022,3999141-INV-593,"1,178.06",BILL SCOTT TAXIS LTD.
Children and Young Peoples Services,Head of Education and Skills,Transport,230008,Contract Hire,06/05/2022,3999141-INV-604,660.00,BILL SCOTT TAXIS LTD.
Children and Young Peoples Services,Head of Education and Skills,Transport,230034,Contract Hire,06/05/2022,3999144-03-5435-APR22,"1,430.00",BON VOYAGE TAXIS LTD.
Children and Young Peoples Services,Head of Education and Skills,Transport,230008,Contract Hire,06/05/2022,3999144-03-APR22-N342,"1,760.00",BON VOYAGE TAXIS LTD.
Children and Young Peoples Services,Head of Education and Skills,Transport,230008,Contract Hire,06/05/2022,3999144-08-APR22-N324,"1,436.94",BON VOYAGE TAXIS LTD.
Children and Young Peoples Services,Head of Education and Skills,Transport,230008,Contract Hire,06/05/2022,3999144-08-APRIL22,"2,080.00",BON VOYAGE TAXIS LTD.
Children and Young Peoples Services,Head of Education and Skills,Transport,230008,Contract Hire,06/05/2022,3999144-08-APRIL22-N080,"1,875.00",BON VOYAGE TAXIS LTD.
Children and Young Peoples Services,Head of Education and Skills,Transport,230008,Contract Hire,06/05/2022,3999144-08-N070-APR22,"1,408.00",BON VOYAGE TAXIS LTD.
Children and Young Peoples Services,Head of Education and Skills,Transport,230008,Contract Hire,06/05/2022,3999146-BZ00398,570.00,BREZ`S TAXIS.
Children and Young Peoples Services,Head of Education and Skills,Transport,230008,Contract Hire,06/05/2022,3999146-BZ00399,977.32,BREZ`S TAXIS.
Children and Young Peoples Services,Head of Education and Skills,Transport,230008,Contract Hire,06/05/2022,3999172-054,513.00,CJ COACHES.
Children and Young Peoples Services,Head of Childrens Social Care,Transport,230005,Contract Hire,06/05/2022,3999176-CLUB2209A,505.00,CLUBMAN CABS.
Children and Young Peoples Services,Head of Childrens Social Care,Transport,230005,Contract Hire,06/05/2022,3999176-CLUB2209B,785.00,CLUBMAN CABS.
Children and Young Peoples Services,Head of Childrens Social Care,Transport,230005,Contract Hire,06/05/2022,3999176-CLUB2209F,910.00,CLUBMAN CABS.
Children and Young Peoples Services,Head of Childrens Social Care,Transport,230005,Contract Hire,06/05/2022,3999176-CLUB2209T,620.00,CLUBMAN CABS.
Children and Young Peoples Services,Head of Childrens Social Care,Transport,230005,Contract Hire,06/05/2022,3999176-CLUB2213N,895.00,CLUBMAN CABS.
Children and Young Peoples Services,Head of Childrens Social Care,Transport,230005,Contract Hire,06/05/2022,3999176-CLUB2213W,730.00,CLUBMAN CABS.
Children and Young Peoples Services,Head of Childrens Social Care,Transport,230005,Contract Hire,06/05/2022,3999176-CLUB2213ZC,550.00,CLUBMAN CABS.
Children and Young Peoples Services,Head of Childrens Social Care,Transport,230005,Contract Hire,06/05/2022,3999176-CLUB2214D,600.00,CLUBMAN CABS.
Children and Young Peoples Services,Head of Childrens Social Care,Transport,230005,Contract Hire,06/05/2022,3999176-CLUB2214P,605.00,CLUBMAN CABS.
Children and Young Peoples Services,Head of Childrens Social Care,Transport,230005,Contract Hire,06/05/2022,3999176-CLUB2214U,620.00,CLUBMAN CABS.
Children and Young Peoples Services,Head of Childrens Social Care,Transport,230005,Contract Hire,06/05/2022,3999176-CLUB2214X,730.00,CLUBMAN CABS.
